Workbook

Sheet Summary
A1: Biochemical Renewable Sugar Process Engineering Analysis
A3: ='Set-up'!E6&" Pretreatment, Enzymatic Hydrolysis, SL Separation, "&DCFROR!B35&" Sugars" -> DDA Pretreatment, Enzymatic Hydrolysis, SL Separation, Concentrated Sugars
A4: ="All Values in "&DCFROR!B34&"$" -> All Values in 2014$
A5: Minimum Sugar Selling Price (MSSP): | D5: =IF((ABS(DCFROR!B38)<0.1),DCFROR!B36,"")*100 -> 18.35256297 | E5: /lb
B6: Contributions: | C6: Feedstock | D6: =F18 -> 7.482202995 | E6: lb
C7: Enzymes | D7: =SUM(OPEX!M21:M27) -> 0.9832101174 | E7: lb
C8: Non-Enzyme Conversion | D8: =MFSP-D6-D7 -> 9.887149863 | E8: lb
C10: Sugar Production | D10: =OPEX!B3 -> 817.54965 | E10: MMlbs per year
C11: Sugar Yield | D11: =OPEX!E4 -> 1128.872824 | E11: ="lb / dry U.S. ton feedstock " -> lb / dry U.S. ton feedstock
C13: Feedstock + Handling Cost | D13: =OPEX!I7 -> 84.45 | E13: /dry U.S. ton feedstock
C14: Internal Rate of Return (After-Tax) | D14: =DCFROR!B31 -> 0.1
C15: Equity Percent of Total Investment | D15: =DCFROR!B8 -> 0.4
A17: Capital Costs | D17: Manufacturing Costs (cents/lb sugar product)
A18: Pretreatment | B18: =ROUND(CAPEXpt,-5) -> 53600000 | D18: Feedstock + Handling | F18: =OPEX!M12 -> 7.482202995
A19: Neutralization/Other Pretreatment Equipment | B19: =ROUND(CAPEX200-CAPEXpt, -5) -> 2300000 | D19: Sulfuric Acid | F19: =OPEX!M13 -> 0.2568147581
A20: Enzymatic Hydrolysis/Hydrolysate Conditioning | B20: =ROUND(CAPEX300,-5) -> 57500000 | D20: Ammonia (pretreatment conditioning) | F20: =OPEX!M15 -> 0.1775760817
A21: On-site Enzyme Production | B21: =ROUND(CAPEX400,-5) -> 12200000 | D21: Caustic | F21: =OPEX!M14 -> 0.270671167
A22: Wastewater Treatment | B22: =ROUND(CAPEX600,-5) -> 46600000 | D22: Glucose (enzyme production) | F22: =OPEX!M22 -> 0.8965517038
A23: Storage | B23: =ROUND(CAPEX700,-5) -> 11200000 | D23: Other Raw Materials | F23: =OPEX!M35-SUM(Summary!F18:F22) -> 0.7501073858
A24: Boiler/Turbo-generator | B24: =ROUND(CAPEX800,-5) -> 65800000 | D24: Waste Disposal | F24: =OPEX!M37 -> 0.1811665704
A25: Utilities | B25: =ROUND(CAPEX900,-5) -> 6500000 | D25: Electricity (export) | F25: =-OPEX!M42 -> -0.7754531017
A26: Total Installed Equipment Cost | B26: =SUM(B18:B25) -> 255700000 | D26: Fixed Costs | F26: =OPEX!M64 -> 1.357791976
D27: Capital Depreciation | F27: =F41/(D10*1000000)*100 -> 1.810287608
A28: Added Direct + Indirect Costs | B28: =B31-B26 -> 212500000 | D28: Average Income Tax | F28: =D5*DCFROR!B80/DCFROR!B81 -> 1.056649164
A29: (% of TCI) | B29: =B28/B31 -> 0.4538658693 | D29: Average Return on Investment | F29: =D5-SUM(F18:F28) -> 4.888196667
A31: Total Capital Investment (TCI) | B31: =ROUND(DCFROR!K27,-5) -> 468200000 | D31: Manufacturing Costs ($/yr)
D32: =D18 -> Feedstock + Handling | F32: =ROUND(F18*SUGMMLBS*10000,-5) -> 61200000
A33: Installed Equipment Cost/Annual Sugar lb | B33: =B26/(D10*1000000) -> 0.3127638792 | D33: Sulfuric Acid | F33: 2100000
A34: Total Capital Investment/Annual Sugar lb | B34: =B31/(D10*1000000) -> 0.572686931 | D34: Ammonia (pretreatment conditioning) | F34: 1500000
D35: Caustic | F35: 2200000
A36: Loan Rate | B36: =IF(D15<0.999,DCFROR!B9,"N/A") -> 0.08 | D36: Glucose (enzyme production) | F36: 7300000
A37: Term (years) | B37: =IF(D15<0.999,DCFROR!B10,"N/A") -> 10 | D37: Other Raw Materials | F37: 6100000
A38: Capital Charge Factor (Computed) | B38: =(F41+F42+F43)/B31 -> 0.135412217 | D38: Waste Disposal | F38: 1500000
D39: Electricity (export) | F39: -6300000
A40: Sugar Carbon Retention Efficiencies: | D40: Fixed Costs | F40: 11100000
A41: From Biomass (Sugar C / Biomass C) | B41: =IF(DCFROR!$B$35="Concentrated",VLOOKUP("CARB307",INDIRECT(LU_SENS),2,FALSE)/'Operating Summaries'!N42*1000,VLOOKUP("CARB306",INDIRECT(LU_SENS),2,FALSE)/'Operating Summaries'!N42*1000) -> 0.5374995889 | D41: Capital Depreciation | F41: =ROUND(DCFROR!B4/30,-5) -> 14800000
D42: Average Income Tax | F42: =ROUND(F28*SUGMMLBS*10000,-5) -> 8600000
D43: Average Return on Investment | F43: =ROUND(F29*SUGMMLBS*10000,-5) -> 40000000
D45: Specific Operating Conditions
D46: Enzyme Loading (mg/g cellulose) | F46: ='Operating Summaries'!D38 -> 9.962427723
D47: Saccharification Time (days) | F47: =VLOOKUP("SACHDAYS",INDIRECT(LU_SENS),2,FALSE) -> 3.5
D48: Net Electricity Export (kWh/lb) | F48: =(OPEX!E40+OPEX!E41)*OPHOURS/(SUGMMLBS)/10^6 -> 0.1355687241
D49: Product Sugar Concentration (g/L) | F49: =IF(DCFROR!B35="concentrated",'Set-up'!G47,'Set-up'!C47) -> 658.1781779

Sheet Set-up
A1: FILE: | B1: C:\Aspentech Data\ASPENTECH\Aspen Plus V7.2\biochem models\FY17 sugar model\BC1707A sugars.bkp | F1: aspen | G1: aspenQW
A2: *Current ASPEN model Change with "Update File Name" | B2: C:\Aspentech Data\ASPENTECH\Aspen Plus V7.2\biochem models\FY17 sugar model\ | C2: BC1707A sugars | D2: .bkp | F2: =IF(BKPNAME=aspen!C4,"Data Matches","Load Data") -> Data Matches | G2: =IF(BKPNAME=aspenqw!C4,"Data Matches","Load Data") -> Data Matches
A4: Unit | B4: Desired Units
A5: Type | B5: (Defaults to SI) | D5: Mode selector from Aspen | E5: =VLOOKUP("PTmode",INDIRECT(LU_SENS),2,FALSE) -> 2
A6: MASS-FLOW | B6: KG/HR | D6: Pretreatment Technology: | E6: =IF(E5=1,D9,IF(E5=2,D10,IF(E5=3,D11))) -> DDA | F6: Specified in Aspen model
A7: ENTHALPY-FLO | B7: MMKCAL/HR
A8: MOLE-FLOW | B8: KMOL/HR | D8: Pretreatment Technologies
A9: VOLUME-FLOW | B9: L/MIN | D9: DA | E9: Dilute Acid (DA)
A10: TEMPERATURE | B10: C | D10: DDA | E10: Deacetylation + Dilute Acid (DDA)
A11: PRESSURE | B11: ATM | D11: DMR | E11: Deacetylation + Mechanical Refining (DMR)
A12: MOLE-ENTHALP | B12: CAL/MOL
A13: MASS-ENTHALP | B13: KCAL/KG
A14: MOLE-ENTROPY | B14: CAL/MOL-K
A15: MASS-ENTROPY | B15: KCAL/KG-K | D15: Sugar Product
A16: MOLE-DENSITY | B16: MOL/CC | D16: Concentrated
A17: MASS-DENSITY | B17: GM/CC | D17: Dilute
A18: POWER | B18: KW
A21: LOOKUP strings
A22: Data Set | B22: Sheet | C22: Start Col | D22: Start Row | E22: End Col | F22: End row | G22: Lookup String
A23: Sensitivity | B23: aspen | C23: C | D23: 7 | E23: E | F23: 1000 | G23: =B23&"!"&C23&D23&":"&E23&F23 -> aspen!C7:E1000
A24: Material streams | B24: aspen2 | C24: B | D24: 9 | E24: NW | F24: =COUNTA(INDIRECT(B24&"!"&C24&D24&":"&C24&65556))+D24-1 -> 8 | G24: =B24&"!"&C24&D24&":"&E24&F24 -> aspen2!B9:NW8
A25: Heat streams | B25: aspenqw | C25: B | D25: 7 | E25: D | F25: =COUNTA(INDIRECT(B25&"!"&C25&D25&":"&C25&65556))+D25-1 -> 119 | G25: =B25&"!"&C25&D25&":"&E25&F25 -> aspenqw!B7:D119
A26: Work Streams | B26: aspenqw | C26: F | D26: 7 | E26: H | F26: =COUNTA(INDIRECT(B26&"!"&C26&D26&":"&C26&65556))+D26-1 -> 212 | G26: =B26&"!"&C26&D26&":"&E26&F26 -> aspenqw!F7:H212
A28: Index-Capital | G28: INDICES!b15:e40
A29: Index-Chemical | G29: INDICES!b57:e92
A30: Index-Labor | G30: INDICES!b113:e148
A34: Sugar Product Stream Details
A35: Dilute | E35: Concentrated
A36: ASPEN stream | B36: ID | C36: Value | D36: Units | E36: ASPEN stream | F36: ID | G36: Value | H36: Units
A37: CMIX.ARABINOS.A300.306A | B37: Arabinose in product | C37: =VLOOKUP(A37,INDIRECT(LU_SENS),2,FALSE) -> 1907.47235 | D37: kg/hr | E37: CMIX.ARABINOS.A300.307 | F37: Arabinose in product | G37: =VLOOKUP(E37,INDIRECT(LU_SENS),2,FALSE) -> 1907.47197 | H37: kg/hr
A38: CMIX.GALACTOS.A300.306A | B38: Galactose in product | C38: =VLOOKUP(A38,INDIRECT(LU_SENS),2,FALSE) -> 1120.62655 | D38: kg/hr | E38: CMIX.GALACTOS.A300.307 | F38: Galactose in product | G38: =VLOOKUP(E38,INDIRECT(LU_SENS),2,FALSE) -> 1120.62655 | H38: kg/hr
A39: cmix.glucose.A300.306A | B39: Glucose in product | C39: =VLOOKUP(A39,INDIRECT(LU_SENS),2,FALSE) -> 28043.6918 | D39: kg/hr | E39: cmix.glucose.A300.307 | F39: Glucose in product | G39: =VLOOKUP(E39,INDIRECT(LU_SENS),2,FALSE) -> 28043.6918 | H39: kg/hr
A40: cmix.mannose.A300.306A | B40: Mannose in product | C40: =VLOOKUP(A40,INDIRECT(LU_SENS),2,FALSE) -> 470.192959 | D40: kg/hr | E40: cmix.mannose.A300.307 | F40: Mannose in product | G40: =VLOOKUP(E40,INDIRECT(LU_SENS),2,FALSE) -> 470.192957 | H40: kg/hr
A41: cmix.xylose.A300.306A | B41: Xylose in product | C41: =VLOOKUP(A41,INDIRECT(LU_SENS),2,FALSE) -> 15494.3877 | D41: kg/hr | E41: cmix.xylose.A300.307 | F41: Xylose in product | G41: =VLOOKUP(E41,INDIRECT(LU_SENS),2,FALSE) -> 15494.3846 | H41: kg/hr
B42: Total Sugars | C42: =SUM(C37:C41) -> 47036.37136 | D42: kg/hr | F42: Total Sugars | G42: =SUM(G37:G41) -> 47036.36788 | H42: kg/hr
A44: strm.A300.306A | B44: total stream flow | C44: =VLOOKUP(A44,INDIRECT(LU_SENS),2,FALSE) -> 449348.175 | D44: kg/hr | E44: strm.A300.307 | F44: total stream flow | G44: =VLOOKUP(E44,INDIRECT(LU_SENS),2,FALSE) -> 102041.92 | H44: kg/hr
A45: den.A300.306A | B45: total stream density | C45: =VLOOKUP(A45,INDIRECT(LU_SENS),2,FALSE) -> 1.04645809 | D45: kg/L | E45: den.A300.307 | F45: total stream density | G45: =VLOOKUP(E45,INDIRECT(LU_SENS),2,FALSE) -> 1.42786886 | H45: kg/L
B46: total stream volume | C46: =C44/C45 -> 429399.1124 | D46: L/hr | F46: total stream volume | G46: =G44/G45 -> 71464.49009 | H46: L/hr
B47: Sugar concentration | C47: =C42/C46*1000 -> 109.5399827 | D47: g/L | F47: Sugar concentration | G47: =G42/G46*1000 -> 658.1781779 | H47: g/L

Sheet DCFROR
B1: Based on DOE targeting assumptions | D1: 1 | G1: Total Capital Investment | Q1: Total Capital Investment (Rounded Table)
G2: Process Area | J2: Purchased Cost | K2: Installed Cost | Q2: Process Area | T2: Purchased Cost | U2: Installed Cost
A3: Assumptions | B3: Value | D3: Land Requirement | G3: Area 100: Feedstock handling* | J3: =CAPEX!V26 -> 15579953.47 | K3: =CAPEX!W26 -> 26485920.9 | Q3: =G3 -> Area 100: Feedstock handling* | T3: =ROUND(J3,-5) -> 15600000 | U3: =ROUND(K3,-5) -> 26500000
A4: Fixed Capital Investment | B4: =K24*D1 -> 444188308.1 | D4: 132 | E4: Acres | G4: Area 200: Pretreatment | J4: =CAPEX!V49+CAPEX!V62+CAPEX!V63 -> 35233514.6 | K4: =SUM(CAPEX!W49:W51)+CAPEX!W62+CAPEX!W63 -> 53573643.39 | Q4: =G4 -> Area 200: Pretreatment | T4: =ROUND(J4,-5) -> 35200000 | U4: =ROUND(K4,-5) -> 53600000
A5: General Plant | B5: =B4-B6 -> 378426809.1 | D5: 14000 | E5: /acre | G5: Area 200: Neutralization/Supporting Equipment | J5: =CAPEX!V65-J4 -> 1129321.086 | K5: =CAPEX!W65-CAPEXpt -> 2262849.465 | L5: Area 200 Total | M5: =CAPEXpt+CAPEXnc -> 55836492.85 | Q5: Area 200: Neutralization/Supporting Equipment | T5: 1100000 | U5: 2300000
A6: Steam Plant | B6: =CAPEX800*D1 -> 65761498.97 | G6: Area 300: Enzymatic hydrolysis/conditioning | J6: =CAPEX!V79 -> 32051920.74 | K6: =CAPEX!W79 -> 57539925.12 | Q6: Area 300: Enzymatic hydrolysis/conditioning | T6: 32100000 | U6: 57500000
G7: Area 400: Enzyme Production | J7: =CAPEX!V101 -> 7145344.513 | K7: =CAPEX!W101 -> 12203876.67 | Q7: Area 400: Enzyme Production | T7: 7100000 | U7: 12200000
A8: Equity | B8: 0.4 | G8: Area 500: Recovery + Upgrading (sugar model N/A) | J8: 0 | K8: 0 | L8: ISBL Total | M8: =SUM(K4:K8) -> 125580294.6 | Q8: Area 500: Recovery + Upgrading (sugar model N/A) | T8: 0 | U8: 0
A9: Loan Interest | B9: 0.08 | G9: Area 600: Wastewater | J9: =CAPEX!V123 -> 32979586.23 | K9: =CAPEX!W123 -> 46604256.09 | Q9: Area 600: Wastewater | T9: 33000000 | U9: 46600000
A10: Loan Term, years | B10: 10 | G10: Area 700: Storage | J10: =CAPEX!V142 -> 6448792.07 | K10: =CAPEX!W142 -> 11162631.77 | Q10: Area 700: Storage | T10: 6400000 | U10: 11200000
A11: Annual Loan Payment | B11: =-PMT(B9,B10,FCI*(1-B8)) -> 39718293.86 | G11: Area 800: Boiler | J11: =CAPEX!V165 -> 36341182.95 | K11: =CAPEX!W165 -> 65761498.97 | Q11: Area 800: Boiler | T11: 36300000 | U11: 65800000
A12: Periodic expenses | C12: No. Bags | D12: 4320 | G12: Area 900: Utilities | J12: =CAPEX!V177 -> 3725741.106 | K12: =CAPEX!W177 -> 6532459.5 | Q12: Area 900: Utilities | T12: 3700000 | U12: 6500000
A13: Baghouse Bags (5 yr life, Ryton MOC) | B13: =(D12*D13)*VLOOKUP(B34,INDIRECT(IX_CAP),4,FALSE)/VLOOKUP(D14,INDIRECT(IX_CAP),4,FALSE) -> 511168.5751 | C13: Bag Cost | D13: 80 | G13: Totals (Excl. Area 100) | J13: =SUM(J4:J12) -> 155055403.3 | K13: =SUM(K4:K12) -> 255641141 | Q13: Totals (Excl. Area 100) | T13: 155100000 | U13: 255600000
C14: Quote year | D14: 1998 | G14: Warehouse | I14: 0.04 | J14: of ISBL | K14: =I14*ISBL -> 5023211.786 | Q14: Warehouse | S14: 0.04 | T14: of ISBL | U14: 5000000
G15: Site Development | I15: 0.09 | J15: of ISBL | K15: =I15*ISBL -> 11302226.52 | Q15: Site Development | S15: 0.09 | T15: of ISBL | U15: 11300000
A16: Working Capital (% of FCI) | B16: 0.05 | G16: Additional Piping | I16: 0.045 | J16: of ISBL | K16: =I16*ISBL -> 5651113.259 | Q16: Additional Piping | S16: 0.045 | T16: of ISBL | U16: 5700000
A17: Salvage Value | G17: Total Direct Costs (TDC) | K17: =SUM(K13:K16) -> 277617692.5 | Q17: Total Direct Costs (TDC) | U17: 277600000
A18: General Plant | B18: 0 | C18: Not permitted since 2002 | G18: Prorateable Expenses | I18: 0.1 | J18: of TDC | K18: =I18*K17 -> 27761769.25 | Q18: Prorateable Expenses | S18: 0.1 | T18: of TDC | U18: 27800000
A19: Steam Plant | B19: 0 | C19: Not permitted since 2002 | G19: Field Expenses | I19: 0.1 | J19: of TDC | K19: =I19*K17 -> 27761769.25 | Q19: Field Expenses | S19: 0.1 | T19: of TDC | U19: 27800000
A20: Depreciation Period (Years) | B20: MACR (IRS publication 946, Table A1, Page 76. http://www.irs.gov/pub/irs-pdf/p946.pdf ) | G20: Home Office & Construction Fee | I20: 0.2 | J20: of TDC | K20: =I20*K17 -> 55523538.51 | Q20: Home Office & Construction Fee | S20: 0.2 | T20: of TDC | U20: 55500000
A21: General Plant | B21: 7 | C21: IRS Pub 946 | G21: Project Contingency | I21: 0.1 | J21: of TDC | K21: =I21*K17 -> 27761769.25 | Q21: Project Contingency | S21: 0.1 | T21: of TDC | U21: 27800000
A22: Steam/Electricity System | B22: 20 | C22: IRS Pub 946 | G22: Other Costs (Start-Up, Permits, etc.) | I22: 0.1 | J22: of TDC | K22: =I22*K17 -> 27761769.25 | Q22: Other Costs (Start-Up, Permits, etc.) | S22: 0.1 | T22: of TDC | U22: 27800000
A23: Construction Period (Years) | B23: 3 | G23: Total Indirect Costs | K23: =SUM(K18:K22) -> 166570615.5 | Q23: Total Indirect Costs | U23: 166600000
A24: % Spent in Year -2 | B24: 0.08 | G24: Fixed Capital Investment (FCI) | K24: =K17+K23 -> 444188308.1 | Q24: Fixed Capital Investment (FCI) | U24: =ROUND(K24,-5) -> 444200000
A25: % Spent in Year -1 | B25: 0.6 | G25: Land | K25: =D4*D5 -> 1848000 | Q25: Land | U25: =ROUND(K25,-5) -> 1800000
A26: % Spent in Year 0 | B26: =1-SUM(B24:B25) -> 0.32 | G26: Working Capital | I26: 0.05 | J26: of FCI | K26: =I26*K24 -> 22209415.4 | Q26: Working Capital | S26: 0.05 | T26: of FCI | U26: =ROUND(K26,-5) -> 22200000
A27: Start-up Time (Years) | B27: 0.5 | G27: Total Capital Investment (TCI) | K27: =FCI+K26+K25 -> 468245723.5 | Q27: Total Capital Investment (TCI) | U27: =ROUND(K27,-5) -> 468200000
A28: Sugar production/Feedstock use (% of Normal) | B28: 0.5
A29: Variable Costs (% of Normal) | B29: 0.75 | G29: Lang Factor (FCI/Purchased Equip Cost) | K29: =(FCI-J9*1.6)/(J13-CAPEX600) -> 3.609191606 | Q29: Lang Factor (TCI/Purchased Equip Cost) | U29: =K29 -> 3.609191606
A30: Fixed Cost (% of Normal) | B30: 1 | G30: TCI per annual lbs | K30: =TEXT(Summary!B34,"$#.##") & "/lb" -> $.57/lb | Q30: TCI per annual lbs | U30: =K30 -> $.57/lb
A31: Discount Rate (Internal Rate of Return [IRR]) | B31: 0.1 | C31: Short et. al
A32: Income Tax Rate | B32: 0.35 | G32: =DCFROR!$B$34&" Dollars" -> 2014 Dollars | Q32: =DCFROR!$B$34&" Dollars" -> 2014 Dollars
A33: Total Sugar Production Rate (MM lb/yr) | B33: =SUGMMLBS -> 817.54965 | C33: ASPEN | G33: *Feedstock Handling not included in this calculation | Q33: *Feedstock Handling not included in this calculation
A34: Cost Year for Analysis | B34: 2014
A35: Select sugar basis (concentrated or dilute): | B35: Concentrated
A36: Minimum Sugar Selling Price ($/lb) | B36: 0.1835256297 | C36: Manipulated Value | J36: Delta-T factor | K36: =SUM(K4:K8,CAPEX700,CAPEX900)/SUM(J4:J8,J10,J12) -> 1.671149441
A37: Minimum Sugar Selling Price ($/kg) | B37: =B36*2.205 -> 0.4046740136
A38: Net Present Value | B38: =E72 -> 0 | C38: Targeted Value
A40: DCFROR Worksheet
A41: Year | C41: -2 | D41: -1 | E41: 0 | F41: 1 | G41: 2 | H41: 3 | I41: 4 | J41: 5 | K41: 6 | L41: 7 | M41: 8 | N41: 9 | O41: 10 | P41: 11 | Q41: 12 | R41: 13 | S41: 14 | T41: 15 | U41: 16 | V41: 17 | W41: 18 | X41: 19 | Y41: 20 | Z41: 21 | AA41: 22 | AB41: 23 | AC41: 24 | AD41: 25 | AE41: 26 | AF41: 27 | AG41: 28 | AH41: 29 | AI41: 30
A42: Fixed Capital Investment | C42: =FCI*B24*B8 -> 14214025.86 | D42: =FCI*B25*B8 -> 106605193.9 | E42: =FCI*B26*B8 -> 56856103.43
A43: Land | C43: =K25 -> 1848000 | AI43: =-C43 -> -1848000
A44: Working Capital | E44: =B16*B4 -> 22209415.4 | AI44: =-E44 -> -22209415.4
A45: Loan Payment | F45: =B11 -> 39718293.86 | G45: =IF($B$10>1,$B$11,0) -> 39718293.86 | H45: =IF($B$10>2,$B$11,0) -> 39718293.86 | I45: =IF($B$10>3,$B$11,0) -> 39718293.86 | J45: =IF($B$10>4,$B$11,0) -> 39718293.86 | K45: =IF($B$10>5,$B$11,0) -> 39718293.86 | L45: =IF($B$10>6,$B$11,0) -> 39718293.86 | M45: =IF($B$10>7,$B$11,0) -> 39718293.86 | N45: =IF($B$10>8,$B$11,0) -> 39718293.86 | O45: =IF($B$10>9,$B$11,0) -> 39718293.86 | P45: =IF($B$10>10,$B$11,0) -> 0 | Q45: =IF($B$10>11,$B$11,0) -> 0 | R45: =IF($B$10>12,$B$11,0) -> 0 | S45: =IF($B$10>13,$B$11,0) -> 0 | T45: =IF($B$10>14,$B$11,0) -> 0 | U45: =IF($B$10>15,$B$11,0) -> 0 | V45: =IF($B$10>16,$B$11,0) -> 0 | W45: =IF($B$10>17,$B$11,0) -> 0 | X45: =IF($B$10>18,$B$11,0) -> 0 | Y45: 0 | Z45: 0 | AA45: 0 | AB45: 0 | AC45: 0 | AD45: 0 | AE45: 0 | AF45: 0 | AG45: 0 | AH45: 0 | AI45: =IF($B$10>19,$B$11,0) -> 0
A46: Loan Interest Payment | C46: =$B$9*C47 -> 1705683.103 | D46: =$B$9*D47 -> 14498306.38 | E46: =$B$9*E47 -> 21321038.79 | F46: =B4*(1-B8)*B9 -> 21321038.79 | G46: =$B$9*F47 -> 19849258.38 | H46: 18259735.54 | I46: 16543050.88 | J46: 14689031.44 | K46: 12686690.44 | L46: 10524162.17 | M46: 8188631.636 | N46: 5666258.658 | O46: 2942095.842 | P46: 1.937150955e-09 | Q46: 2.092123032e-09 | R46: 2.259492874e-09 | S46: 2.440252304e-09 | T46: 2.635472488e-09 | U46: 2.846310287e-09 | V46: 3.07401511e-09 | W46: 3.319936319e-09 | X46: 3.585531225e-09 | Y46: 3.872373723e-09 | Z46: 4.182163621e-09 | AA46: 4.51673671e-09 | AB46: 4.878075647e-09 | AC46: 5.268321699e-09 | AD46: 5.689787435e-09 | AE46: 6.14497043e-09 | AF46: 6.636568064e-09 | AG46: 7.167493509e-09 | AH46: 7.74089299e-09 | AI46: =$B$9*X47 -> 3.872373723e-09
A47: Loan Principal | C47: =FCI*(1-B8)*B24 -> 21321038.79 | D47: =FCI*(1-B8)*B25+C47 -> 181228829.7 | E47: =FCI*(1-B8)*B26+D47 -> 266512984.8 | F47: =FCI*(1-B8)-F45+F46 -> 248115729.8 | G47: =F47-G45+G46 -> 228246694.3 | H47: 206788136 | I47: 183612893 | J47: 158583630.6 | K47: 131552027.1 | L47: 102357895.4 | M47: 70828233.22 | N47: 36776198.02 | O47: 2.421438694e-08 | P47: 2.61515379e-08 | Q47: 2.824366093e-08 | R47: 3.05031538e-08 | S47: 3.294340611e-08 | T47: 3.557887859e-08 | U47: 3.842518888e-08 | V47: 4.149920399e-08 | W47: 4.481914031e-08 | X47: 4.840467154e-08 | Y47: =X47-Y45+Y46 -> 5.227704526e-08 | Z47: 5.645920888e-08 | AA47: 6.097594559e-08 | AB47: 6.585402124e-08 | AC47: 7.112234294e-08 | AD47: 7.681213037e-08 | AE47: 8.29571008e-08 | AF47: 8.959366886e-08 | AG47: 9.676116237e-08 | AH47: 1.045020554e-07 | AI47: =X47-AI45+AI46 -> 5.227704526e-08
A48: Sugar Sales | F48: =($B$33*$B$36*1000000)*(1-B27)+($B$33*$B$36*1000000)*B27*B28 -> 112530985.8 | G48: =$B$33*$B$36*1000000 -> 150041314.4 | H48: 150041314.4 | I48: 150041314.4 | J48: 150041314.4 | K48: 150041314.4 | L48: 150041314.4 | M48: 150041314.4 | N48: 150041314.4 | O48: 150041314.4 | P48: 150041314.4 | Q48: 150041314.4 | R48: 150041314.4 | S48: 150041314.4 | T48: 150041314.4 | U48: 150041314.4 | V48: 150041314.4 | W48: 150041314.4 | X48: 150041314.4 | Y48: 150041314.4 | Z48: 150041314.4 | AA48: 150041314.4 | AB48: 150041314.4 | AC48: 150041314.4 | AD48: 150041314.4 | AE48: 150041314.4 | AF48: 150041314.4 | AG48: 150041314.4 | AH48: 150041314.4 | AI48: 150041314.4
A49: Co-Product Credit | F49: =(OPEX!$L$42*1000000)*(1-B27)+(OPEX!$L$42*1000000)*B27*B28 -> 4754785.589 | G49: =OPEX!$L$42*1000000 -> 6339714.119 | H49: =OPEX!$L$42*1000000 -> 6339714.119 | I49: =OPEX!$L$42*1000000 -> 6339714.119 | J49: =OPEX!$L$42*1000000 -> 6339714.119 | K49: =OPEX!$L$42*1000000 -> 6339714.119 | L49: =OPEX!$L$42*1000000 -> 6339714.119 | M49: =OPEX!$L$42*1000000 -> 6339714.119 | N49: =OPEX!$L$42*1000000 -> 6339714.119 | O49: =OPEX!$L$42*1000000 -> 6339714.119 | P49: =OPEX!$L$42*1000000 -> 6339714.119 | Q49: =OPEX!$L$42*1000000 -> 6339714.119 | R49: =OPEX!$L$42*1000000 -> 6339714.119 | S49: =OPEX!$L$42*1000000 -> 6339714.119 | T49: =OPEX!$L$42*1000000 -> 6339714.119 | U49: =OPEX!$L$42*1000000 -> 6339714.119 | V49: =OPEX!$L$42*1000000 -> 6339714.119 | W49: =OPEX!$L$42*1000000 -> 6339714.119 | X49: =OPEX!$L$42*1000000 -> 6339714.119 | Y49: =OPEX!$L$42*1000000 -> 6339714.119 | Z49: =OPEX!$L$42*1000000 -> 6339714.119 | AA49: =OPEX!$L$42*1000000 -> 6339714.119 | AB49: =OPEX!$L$42*1000000 -> 6339714.119 | AC49: =OPEX!$L$42*1000000 -> 6339714.119 | AD49: =OPEX!$L$42*1000000 -> 6339714.119 | AE49: =OPEX!$L$42*1000000 -> 6339714.119 | AF49: =OPEX!$L$42*1000000 -> 6339714.119 | AG49: =OPEX!$L$42*1000000 -> 6339714.119 | AH49: =OPEX!$L$42*1000000 -> 6339714.119 | AI49: =OPEX!$L$42*1000000 -> 6339714.119
A50: Total Annual Sales | F50: =F48+F49 -> 117285771.4 | G50: 156381028.5 | H50: 156381028.5 | I50: 156381028.5 | J50: 156381028.5 | K50: 156381028.5 | L50: 156381028.5 | M50: 156381028.5 | N50: 156381028.5 | O50: 156381028.5 | P50: 156381028.5 | Q50: 156381028.5 | R50: 156381028.5 | S50: 156381028.5 | T50: 156381028.5 | U50: 156381028.5 | V50: 156381028.5 | W50: 156381028.5 | X50: 156381028.5 | Y50: =Y48+Y49 -> 156381028.5 | Z50: 156381028.5 | AA50: 156381028.5 | AB50: 156381028.5 | AC50: 156381028.5 | AD50: 156381028.5 | AE50: 156381028.5 | AF50: 156381028.5 | AG50: 156381028.5 | AH50: 156381028.5 | AI50: =AI48+AI49 -> 156381028.5
A51: Annual Manufacturing Cost
A52: Feedstock | F52: =(OPEX!$L$12*1000000)*(1-B27)+(OPEX!$L$12*1000000)*(B27)*B28 -> 45878043.3 | G52: =OPEX!$L$12*1000000 -> 61170724.39 | H52: =OPEX!$L$12*1000000 -> 61170724.39 | I52: =OPEX!$L$12*1000000 -> 61170724.39 | J52: =OPEX!$L$12*1000000 -> 61170724.39 | K52: =OPEX!$L$12*1000000 -> 61170724.39 | L52: =OPEX!$L$12*1000000 -> 61170724.39 | M52: =OPEX!$L$12*1000000 -> 61170724.39 | N52: =OPEX!$L$12*1000000 -> 61170724.39 | O52: =OPEX!$L$12*1000000 -> 61170724.39 | P52: =OPEX!$L$12*1000000 -> 61170724.39 | Q52: =OPEX!$L$12*1000000 -> 61170724.39 | R52: =OPEX!$L$12*1000000 -> 61170724.39 | S52: =OPEX!$L$12*1000000 -> 61170724.39 | T52: =OPEX!$L$12*1000000 -> 61170724.39 | U52: =OPEX!$L$12*1000000 -> 61170724.39 | V52: =OPEX!$L$12*1000000 -> 61170724.39 | W52: =OPEX!$L$12*1000000 -> 61170724.39 | X52: =OPEX!$L$12*1000000 -> 61170724.39 | Y52: =OPEX!$L$12*1000000 -> 61170724.39 | Z52: =OPEX!$L$12*1000000 -> 61170724.39 | AA52: =OPEX!$L$12*1000000 -> 61170724.39 | AB52: =OPEX!$L$12*1000000 -> 61170724.39 | AC52: =OPEX!$L$12*1000000 -> 61170724.39 | AD52: =OPEX!$L$12*1000000 -> 61170724.39 | AE52: =OPEX!$L$12*1000000 -> 61170724.39 | AF52: =OPEX!$L$12*1000000 -> 61170724.39 | AG52: =OPEX!$L$12*1000000 -> 61170724.39 | AH52: =OPEX!$L$12*1000000 -> 61170724.39 | AI52: =OPEX!$L$12*1000000 -> 61170724.39
A53: Baghouse Bags | F53: =B13 -> 511168.5751 | K53: =B13 -> 511168.5751 | P53: =B13 -> 511168.5751 | U53: =B13 -> 511168.5751 | Z53: =U53 -> 511168.5751 | AE53: =Z53 -> 511168.5751
A54: Other Variable Costs | F54: =((SUM(OPEX!$L$13:$L$34)+OPEX!$L$37)*1000000)*(1-B27)+((SUM(OPEX!$L$13:$L$34)+OPEX!$L$37)*1000000)*B27*B29 -> 18119162.47 | G54: =(SUM(OPEX!$L$13:$L$34)+OPEX!$L$37)*1000000 -> 20707614.25 | H54: =(SUM(OPEX!$L$13:$L$34)+OPEX!$L$37)*1000000 -> 20707614.25 | I54: =(SUM(OPEX!$L$13:$L$34)+OPEX!$L$37)*1000000 -> 20707614.25 | J54: =(SUM(OPEX!$L$13:$L$34)+OPEX!$L$37)*1000000 -> 20707614.25 | K54: =(SUM(OPEX!$L$13:$L$34)+OPEX!$L$37)*1000000 -> 20707614.25 | L54: =(SUM(OPEX!$L$13:$L$34)+OPEX!$L$37)*1000000 -> 20707614.25 | M54: =(SUM(OPEX!$L$13:$L$34)+OPEX!$L$37)*1000000 -> 20707614.25 | N54: =(SUM(OPEX!$L$13:$L$34)+OPEX!$L$37)*1000000 -> 20707614.25 | O54: =(SUM(OPEX!$L$13:$L$34)+OPEX!$L$37)*1000000 -> 20707614.25 | P54: =(SUM(OPEX!$L$13:$L$34)+OPEX!$L$37)*1000000 -> 20707614.25 | Q54: =(SUM(OPEX!$L$13:$L$34)+OPEX!$L$37)*1000000 -> 20707614.25 | R54: =(SUM(OPEX!$L$13:$L$34)+OPEX!$L$37)*1000000 -> 20707614.25 | S54: =(SUM(OPEX!$L$13:$L$34)+OPEX!$L$37)*1000000 -> 20707614.25 | T54: =(SUM(OPEX!$L$13:$L$34)+OPEX!$L$37)*1000000 -> 20707614.25 | U54: =(SUM(OPEX!$L$13:$L$34)+OPEX!$L$37)*1000000 -> 20707614.25 | V54: =(SUM(OPEX!$L$13:$L$34)+OPEX!$L$37)*1000000 -> 20707614.25 | W54: =(SUM(OPEX!$L$13:$L$34)+OPEX!$L$37)*1000000 -> 20707614.25 | X54: =(SUM(OPEX!$L$13:$L$34)+OPEX!$L$37)*1000000 -> 20707614.25 | Y54: =(SUM(OPEX!$L$13:$L$34)+OPEX!$L$37)*1000000 -> 20707614.25 | Z54: =(SUM(OPEX!$L$13:$L$34)+OPEX!$L$37)*1000000 -> 20707614.25 | AA54: =(SUM(OPEX!$L$13:$L$34)+OPEX!$L$37)*1000000 -> 20707614.25 | AB54: =(SUM(OPEX!$L$13:$L$34)+OPEX!$L$37)*1000000 -> 20707614.25 | AC54: =(SUM(OPEX!$L$13:$L$34)+OPEX!$L$37)*1000000 -> 20707614.25 | AD54: =(SUM(OPEX!$L$13:$L$34)+OPEX!$L$37)*1000000 -> 20707614.25 | AE54: =(SUM(OPEX!$L$13:$L$34)+OPEX!$L$37)*1000000 -> 20707614.25 | AF54: =(SUM(OPEX!$L$13:$L$34)+OPEX!$L$37)*1000000 -> 20707614.25 | AG54: =(SUM(OPEX!$L$13:$L$34)+OPEX!$L$37)*1000000 -> 20707614.25 | AH54: =(SUM(OPEX!$L$13:$L$34)+OPEX!$L$37)*1000000 -> 20707614.25 | AI54: =(SUM(OPEX!$L$13:$L$34)+OPEX!$L$37)*1000000 -> 20707614.25
A55: Fixed Operating Costs | F55: =(OPEX!$L$64*1000000)*(1-B27)+(OPEX!$L$64*1000000)*B27*B30 -> 11100623.55 | G55: =OPEX!$L$64*1000000 -> 11100623.55 | H55: =OPEX!$L$64*1000000 -> 11100623.55 | I55: =OPEX!$L$64*1000000 -> 11100623.55 | J55: =OPEX!$L$64*1000000 -> 11100623.55 | K55: =OPEX!$L$64*1000000 -> 11100623.55 | L55: =OPEX!$L$64*1000000 -> 11100623.55 | M55: =OPEX!$L$64*1000000 -> 11100623.55 | N55: =OPEX!$L$64*1000000 -> 11100623.55 | O55: =OPEX!$L$64*1000000 -> 11100623.55 | P55: =OPEX!$L$64*1000000 -> 11100623.55 | Q55: =OPEX!$L$64*1000000 -> 11100623.55 | R55: =OPEX!$L$64*1000000 -> 11100623.55 | S55: =OPEX!$L$64*1000000 -> 11100623.55 | T55: =OPEX!$L$64*1000000 -> 11100623.55 | U55: =OPEX!$L$64*1000000 -> 11100623.55 | V55: =OPEX!$L$64*1000000 -> 11100623.55 | W55: =OPEX!$L$64*1000000 -> 11100623.55 | X55: =OPEX!$L$64*1000000 -> 11100623.55 | Y55: =OPEX!$L$64*1000000 -> 11100623.55 | Z55: =OPEX!$L$64*1000000 -> 11100623.55 | AA55: =OPEX!$L$64*1000000 -> 11100623.55 | AB55: =OPEX!$L$64*1000000 -> 11100623.55 | AC55: =OPEX!$L$64*1000000 -> 11100623.55 | AD55: =OPEX!$L$64*1000000 -> 11100623.55 | AE55: =OPEX!$L$64*1000000 -> 11100623.55 | AF55: =OPEX!$L$64*1000000 -> 11100623.55 | AG55: =OPEX!$L$64*1000000 -> 11100623.55 | AH55: =OPEX!$L$64*1000000 -> 11100623.55 | AI55: =OPEX!$L$64*1000000 -> 11100623.55
A56: Total Product Cost | F56: =SUM(F52:F55) -> 75608997.89 | G56: 92978962.2 | H56: 92978962.2 | I56: 92978962.2 | J56: 92978962.2 | K56: 93490130.77 | L56: 92978962.2 | M56: 92978962.2 | N56: 92978962.2 | O56: 92978962.2 | P56: 93490130.77 | Q56: 92978962.2 | R56: 92978962.2 | S56: 92978962.2 | T56: 92978962.2 | U56: 93490130.77 | V56: 92978962.2 | W56: 92978962.2 | X56: 92978962.2 | Y56: =SUM(Y52:Y55) -> 92978962.2 | Z56: 93490130.77 | AA56: 92978962.2 | AB56: 92978962.2 | AC56: 92978962.2 | AD56: 92978962.2 | AE56: 93490130.77 | AF56: 92978962.2 | AG56: 92978962.2 | AH56: 92978962.2 | AI56: =SUM(AI52:AI55) -> 92978962.2
A57: Annual Depreciation
A58: General Plant Writedown | F58: 0.1429 | G58: 0.2449 | H58: 0.1749 | I58: 0.1249 | J58: 0.0893 | K58: 0.0892 | L58: 0.0893 | M58: 0.0446
A59: Depreciation Charge | F59: =$B$5*F58 -> 54077191.02 | G59: =$B$5*G58 -> 92676725.55 | H59: 66186848.91 | I59: 47265508.45 | J59: 33793514.05 | K59: 33755671.37 | L59: 33793514.05 | M59: 16877835.69
A60: Remaining Value | F60: =$B$5-$B$18-F59 -> 324349618.1 | G60: =F60-G59 -> 231672892.5 | H60: 165486043.6 | I60: 118220535.2 | J60: 84427021.11 | K60: 50671349.74 | L60: 16877835.69 | M60: 0
A61: Steam Plant Writedown | F61: 0.0375 | G61: 0.07219 | H61: 0.06677 | I61: 0.06177 | J61: 0.05713 | K61: 0.05285 | L61: 0.04888 | M61: 0.04522 | N61: 0.04462 | O61: 0.04461 | P61: 0.04462 | Q61: 0.04461 | R61: 0.04462 | S61: 0.04461 | T61: 0.04462 | U61: 0.04461 | V61: 0.04462 | W61: 0.04461 | X61: 0.04462 | Y61: 0.04461 | Z61: 0.02231
A62: Depreciation Charge | F62: =$B$6*F61 -> 2466056.212 | G62: 4747322.611 | H62: 4390895.286 | I62: 4062087.792 | J62: 3756954.436 | K62: 3475495.221 | L62: 3214422.07 | M62: 2973734.984 | N62: 2934278.084 | O62: 2933620.469 | P62: 2934278.084 | Q62: 2933620.469 | R62: 2934278.084 | S62: 2933620.469 | T62: 2934278.084 | U62: 2933620.469 | V62: 2934278.084 | W62: 2933620.469 | X62: 2934278.084 | Y62: 2933620.469 | Z62: 1467139.042
A63: Remaining Value | F63: =B6-B19-F62 -> 63295442.76 | G63: =F63-G62 -> 58548120.15 | H63: =G63-H62 -> 54157224.86 | I63: 50095137.07 | J63: 46338182.64 | K63: 42862687.42 | L63: 39648265.35 | M63: 36674530.36 | N63: 33740252.28 | O63: 30806631.81 | P63: 27872353.73 | Q63: 24938733.26 | R63: 22004455.17 | S63: 19070834.7 | T63: 16136556.62 | U63: 13202936.15 | V63: =U63-V62 -> 10268658.06 | W63: =V63-W62 -> 7335037.596 | X63: =W63-X62 -> 4400759.511 | Y63: =X63-Y62 -> 1467139.042 | Z63: =Y63-Z62 -> -7.683411241e-09
A64: Net Revenue | F64: =F50-F56-F59-F62-F46 -> -36187512.54 | G64: =G50-G56-G59-G62-G46 -> -53871240.25 | H64: -25435413.45 | I64: -4468580.836 | J64: 11162566.36 | K64: 12973040.68 | L64: 15869968 | M64: 35361863.98 | N64: 54801529.55 | O64: 57526349.98 | P64: 59956619.63 | Q64: 60468445.82 | R64: 60467788.2 | S64: 60468445.82 | T64: 60467788.2 | U64: 59957277.24 | V64: 60467788.2 | W64: 60468445.82 | X64: 60467788.2 | Y64: 60468445.82 | Z64: 61423758.67 | AA64: 63402066.29 | AB64: 63402066.29 | AC64: 63402066.29 | AD64: 63402066.29 | AE64: 62890897.71 | AF64: 63402066.29 | AG64: 63402066.29 | AH64: 63402066.29 | AI64: 63402066.29
A65: Losses Forward | G65: =IF(F66<0,F66,0) -> -36187512.54 | H65: =IF(G66<0,G66,0) -> -90058752.79 | I65: -115494166.2 | J65: -119962747.1 | K65: -108800180.7 | L65: -95827140.04 | M65: -79957172.05 | N65: -44595308.06 | O65: 0 | P65: 0 | Q65: 0 | R65: 0 | S65: 0 | T65: 0 | U65: 0 | V65: 0 | W65: 0 | X65: 0 | Y65: =IF(X66<0,X66,0) -> 0 | Z65: 0 | AA65: 0 | AB65: 0 | AC65: 0 | AD65: 0 | AE65: 0 | AF65: 0 | AG65: 0 | AH65: 0 | AI65: =IF(X66<0,X66,0) -> 0
A66: Taxable Income | F66: =F64+F65 -> -36187512.54 | G66: =G64+G65 -> -90058752.79 | H66: -115494166.2 | I66: -119962747.1 | J66: -108800180.7 | K66: -95827140.04 | L66: -79957172.05 | M66: -44595308.06 | N66: =N64+N65 -> 10206221.48 | O66: 57526349.98 | P66: 59956619.63 | Q66: 60468445.82 | R66: 60467788.2 | S66: 60468445.82 | T66: 60467788.2 | U66: 59957277.24 | V66: 60467788.2 | W66: 60468445.82 | X66: 60467788.2 | Y66: =Y64+Y65 -> 60468445.82 | Z66: 61423758.67 | AA66: 63402066.29 | AB66: 63402066.29 | AC66: 63402066.29 | AD66: 63402066.29 | AE66: 62890897.71 | AF66: 63402066.29 | AG66: 63402066.29 | AH66: 63402066.29 | AI66: =AI64+AI65 -> 63402066.29
A67: Income Tax | F67: =IF(F66*($B$32)<0,0,F66*$B$32) -> 0 | G67: 0 | H67: 0 | I67: 0 | J67: 0 | K67: 0 | L67: 0 | M67: 0 | N67: 3572177.519 | O67: 20134222.49 | P67: 20984816.87 | Q67: 21163956.04 | R67: 21163725.87 | S67: 21163956.04 | T67: 21163725.87 | U67: 20985047.04 | V67: 21163725.87 | W67: 21163956.04 | X67: 21163725.87 | Y67: =IF(Y66*($B$32)<0,0,Y66*$B$32) -> 21163956.04 | Z67: 21498315.53 | AA67: 22190723.2 | AB67: 22190723.2 | AC67: 22190723.2 | AD67: 22190723.2 | AE67: 22011814.2 | AF67: 22190723.2 | AG67: 22190723.2 | AH67: 22190723.2 | AI67: =IF(AI66*($B$32)<0,0,AI66*$B$32) -> 22190723.2
A68: Annual Cash Income | F68: =F50-F56-F67-F45 -> 1958479.611 | G68: 23683772.43 | H68: 23683772.43 | I68: 23683772.43 | J68: 23683772.43 | K68: 23172603.85 | L68: 23683772.43 | M68: 23683772.43 | N68: 20111594.91 | O68: 3549549.935 | P68: 41906080.84 | Q68: 42238110.25 | R68: 42238340.42 | S68: 42238110.25 | T68: 42238340.42 | U68: 41905850.68 | V68: 42238340.42 | W68: 42238110.25 | X68: 42238340.42 | Y68: 42238110.25 | Z68: 41392582.18 | AA68: 41211343.09 | AB68: 41211343.09 | AC68: 41211343.09 | AD68: 41211343.09 | AE68: 40879083.51 | AF68: 41211343.09 | AG68: 41211343.09 | AH68: 41211343.09 | AI68: 41211343.09
A69: Discount Factor | C69: =1/(1+$B$31)^C41 -> 1.21 | D69: 1.1 | E69: 1 | F69: 0.9090909091 | G69: 0.826446281 | H69: 0.7513148009 | I69: 0.6830134554 | J69: 0.6209213231 | K69: 0.5644739301 | L69: 0.5131581182 | M69: 0.4665073802 | N69: 0.4240976184 | O69: 0.3855432894 | P69: 0.3504938995 | Q69: 0.3186308177 | R69: 0.2896643797 | S69: 0.2633312543 | T69: 0.2393920494 | U69: 0.2176291358 | V69: 0.1978446689 | W69: 0.1798587899 | X69: 0.1635079908 | Y69: =1/(1+$B$31)^Y41 -> 0.148643628 | Z69: 0.1351305709 | AA69: 0.1228459736 | AB69: 0.1116781578 | AC69: 0.101525598 | AD69: 0.09229599818 | AE69: 0.08390545289 | AF69: 0.07627768444 | AG69: 0.06934334949 | AH69: =1/(1+$B$31)^AH41 -> 0.06303940863 | AI69: =1/(1+$B$31)^AI41 -> 0.0573085533
A70: Annual Present Value | B70: =SUM(F70:AI70) -> 253720640.1 | F70: =F69*F68 -> 1780436.01 | G70: =G69*G68 -> 19573365.64 | H70: 17793968.77 | I70: 16176335.24 | J70: 14705759.31 | K70: 13080330.77 | L70: 12153520.09 | M70: 11048654.63 | N70: 8529279.502 | O70: 1368505.158 | P70: 14687825.69 | Q70: 13458363.61 | R70: 12234942.68 | S70: 11122614.55 | T70: 10111522.87 | U70: 9119934.067 | V70: 8356630.475 | W70: 7596895.398 | X70: 6906306.177 | Y70: =Y69*Y68 -> 6278425.949 | Z70: 5593403.262 | AA70: 5062647.564 | AB70: 4602406.876 | AC70: 4184006.251 | AD70: 3803642.046 | AE70: 3429978.016 | AF70: 3143505.823 | AG70: 2857732.567 | AH70: 2597938.697 | AI70: =AI69*AI68 -> 2361762.452
A71: Total Capital Investment + Interest | C71: =(C42+C43+C46)*C69 -> 21498927.84 | D71: =(D42+D46)*D69 -> 133213850.3 | E71: =(E42+E46+E44)*E69 -> 100386557.6 | AI71: =(AI42+AI46+AI44+AI43)*AI69 -> -1378695.673
A72: Net Present Worth | E72: =B70-SUM(B71:AI71) -> 0
F75: If taxable income < 0, tax = $0
F76: Loan Interest subtracted from taxable income.
F77: Loan payment subtracted from annual cash income
F78: Interest on construction loan added to investment
A80: NPV of Income Tax | B80: =SUM(F80:AI80) -> 79472315.33 | F80: =F67*F69 -> 0 | G80: 0 | H80: 0 | I80: 0 | J80: 0 | K80: 0 | L80: 0 | M80: 0 | N80: 1514951.978 | O80: 7762614.37 | P80: 7355050.295 | Q80: 6743488.618 | R80: 6130377.527 | S80: 5573131.089 | T80: 5066427.709 | U80: 4566957.651 | V80: 4187130.338 | W80: 3806523.522 | X80: 3460438.296 | Y80: =Y67*Y69 -> 3145887.209 | Z80: 2905079.652 | AA80: 2726040.996 | AB80: 2478219.087 | AC80: 2252926.443 | AD80: 2048114.948 | AE80: 1846911.239 | AF80: 1692656.982 | AG80: 1538779.074 | AH80: 1398890.068 | AI80: =AI67*AI69 -> 1271718.243
A81: NPV of Product Income | B81: =SUM(F81:AI81) -> 1380326338 | F81: =F48*F69 -> 102300896.2 | G81: =G48*G69 -> 124001086.3 | H81: 112728260.2 | I81: 102480236.6 | J81: 93163851.43 | K81: 84694410.39 | L81: 76994918.54 | M81: 69995380.49 | N81: 63632164.08 | O81: 57847421.89 | P81: 52588565.35 | Q81: 47807786.69 | R81: 43461624.26 | S81: 39510567.51 | T81: 35918697.74 | U81: 32653361.58 | V81: 29684874.16 | W81: 26986249.24 | X81: 24532953.85 | Y81: 22302685.32 | Z81: 20275168.47 | AA81: 18431971.34 | AB81: 16756337.58 | AC81: 15233034.16 | AD81: 13848212.88 | AE81: 12589284.43 | AF81: 11444804.03 | AG81: 10404367.3 | AH81: 9458515.728 | AI81: 8598650.662 | AK81: =SUM(C81:AI81) -> 1380326338

Sheet OPEX
A1: Sugar Stream | B1: =DCFROR!B35 -> Concentrated
A2: Sugar Production Rate (kg/hr) | B2: =IF(DCFROR!$B$35="Concentrated",'Set-up'!G42,'Set-up'!C42) -> 47036.36788
A3: Total Sugar Rate (MM lbs/yr) | B3: =SUGRATE*OPHOURS*2.20462/(1000000) -> 817.54965 | D3: Feedstock Dry Tons/yr | E3: =E12*2.20462*(1-$M$7)*B7/2000 -> 724217.6732
D4: lb Sugar/ton | E4: =B3*1000000/E3 -> 1128.872824
A5: Operating Cost Analysis
A7: Operating Hours/Yr | B7: =D7*(365*24) -> 7884 | C7: On stream time | D7: 0.9 | H7: Feedstock cost | I7: 84.45 | J7: /dry US ton | L7: Feedstock moisture | M7: ='Operating Summaries'!D3 -> 0.199999999
A9: Variable Operating Costs | E9: =E14/(E12/0.8)*1000 -> 10.87999999
C10: Raw Material | D10: Stream No. | E10: kg/hr | F10: lb/hr | G10: Quoted Price (cents / ton) | H10: Year of Price Quote | I10: =costyear & " Cost ($ / ton)" -> 2014 Cost ($ / ton) | J10: =costyear & " Cost ($/lb)" -> 2014 Cost ($/lb) | K10: $/hour | L10: ="MM$/yr ("&costyear&")" -> MM$/yr (2014) | M10: ="Cents/lbs Sugar ("&costyear&")" -> Cents/lbs Sugar (2014) | N10: Cost reference
A11: Raw Materials
A12: NONE | C12: Feedstock | D12: STRM.101 | E12: =IFERROR(VLOOKUP(D12,INDIRECT(LU_SENS),2,FALSE),0) -> 104166.667 | F12: =E12*2.205 -> 229687.5007 | G12: =I7*100*(1-$M$7) -> 6756.000008 | H12: 2014 | I12: =G12*VLOOKUP(DCFROR!$B$34,INDIRECT(IX_CHEM),4,FALSE)/VLOOKUP(H12,INDIRECT(IX_CHEM),4,FALSE)/100 -> 67.56000008 | J12: =I12/2000 -> 0.03378000004 | K12: =F12*J12 -> 7758.843784 | L12: =($K12*$B$7/1000000) -> 61.17072439 | M12: =(L12*100)/$B$3 -> 7.482202995 | N12: Set in Cell I7
A13: A200 | B13: Pretreatment | C13: Sulfuric Acid, 93% | D13: STRM.710 | E13: 2240.23928 | F13: 4939.727612 | G13: 9000 | H13: 2009 | I13: =G13*VLOOKUP(DCFROR!$B$34,INDIRECT(IX_CHEM),4,FALSE)/VLOOKUP(H13,INDIRECT(IX_CHEM),4,FALSE)/100 -> 107.823765 | J13: =I13/2000 -> 0.05391188251 | K13: 266.3100147 | L13: =($K13*$B$7/1000000) -> 2.099588156 | M13: =(L13*100)/$B$3 -> 0.2568147581 | N13: Basic Chemical, Omaha via HGI
B14: Deacetylation | C14: Caustic (as pure) | D14: STRM.A200.2 | E14: =IFERROR(VLOOKUP(D14,INDIRECT(LU_SENS),2,FALSE),0) -> 1416.66667 | F14: =E14*2.205 -> 3123.750007 | G14: 15000 | H14: 2009 | I14: =G14*VLOOKUP(DCFROR!$B$34,INDIRECT(IX_CHEM),4,FALSE)/VLOOKUP(H14,INDIRECT(IX_CHEM),4,FALSE)/100 -> 179.706275 | J14: =I14/2000 -> 0.08985313752 | K14: =F14*J14 -> 280.678739 | L14: 2.212871178 | M14: =(L14*100)/$B$3 -> 0.270671167
B15: Pretreatment | C15: Ammonia | D15: STRM.A200.273 | E15: 309.805337 | F15: 683.1207681 | G15: 45000 | H15: 2009 | I15: =G15*VLOOKUP(DCFROR!$B$34,INDIRECT(IX_CHEM),4,FALSE)/VLOOKUP(H15,INDIRECT(IX_CHEM),4,FALSE)/100 -> 539.1188251 | J15: 0.2695594126 | K15: 184.1416329 | L15: 1.451772634 | M15: 0.1775760817 | N15: Terra Industries via HGI, anhydrous, delivery to Iowa
A16: A300 | B16: NA (fermentation only) | C16: Corn Steep Liquor | D16: STRM.A700.CSL-A300 | E16: 0.001801528 | F16: 0.00397236924 | G16: 5700 | H16: 2009 | I16: =G16*VLOOKUP(DCFROR!$B$34,INDIRECT(IX_CHEM),4,FALSE)/VLOOKUP(H16,INDIRECT(IX_CHEM),4,FALSE)/100 -> 68.28838451 | J16: 0.03414419226 | K16: 0.000135633339 | L16: 1.069333245e-06 | M16: 1.307973461e-07 | N16: Corn Products via HGI
B17: NA (fermentation only) | C17: Diammonium Phosph | D17: STRM.755 | E17: 0 | F17: 0 | G17: 99000 | H17: 2009 | I17: =G17*VLOOKUP(DCFROR!$B$34,INDIRECT(IX_CHEM),4,FALSE)/VLOOKUP(H17,INDIRECT(IX_CHEM),4,FALSE)/100 -> 1186.061415 | J17: 0.5930307076 | K17: 0 | L17: 0 | M17: 0 | N17: Ronas Chemicals via HGI
B18: NA (fermentation only) | C18: Corn oil | D18: STRM.A300.309A | E18: =IFERROR(VLOOKUP(D18,INDIRECT(LU_SENS),2,FALSE),0) -> 0 | F18: =E18*2.205 -> 0 | G18: =134000*2000/2205 -> 121541.9501 | H18: 2011 | I18: =G18*VLOOKUP(DCFROR!$B$34,INDIRECT(IX_CHEM),4,FALSE)/VLOOKUP(H18,INDIRECT(IX_CHEM),4,FALSE)/100 -> 1297.861681 | J18: =I18/2000 -> 0.6489308404 | K18: =F18*J18 -> 0 | L18: =($K18*$B$7/1000000) -> 0 | M18: =(L18*100)/$B$3 -> 0 | N18: SRI CEH
B19: SLS Clarification | C19: Flocculant | D19: STRM.A700.FLOC-I | E19: =IFERROR(VLOOKUP(D19,INDIRECT(LU_SENS),2,FALSE),0) -> 158.354547 | F19: =E19*2.205 -> 349.1717761 | G19: 200000 | H19: 2011 | I19: =G19*VLOOKUP(DCFROR!$B$34,INDIRECT(IX_CHEM),4,FALSE)/VLOOKUP(H19,INDIRECT(IX_CHEM),4,FALSE)/100 -> 2135.660452 | J19: =I19/2000 -> 1.067830226 | K19: =F19*J19 -> 372.8561767 | L19: =($K19*$B$7/1000000) -> 2.939598097 | M19: =(L19*100)/$B$3 -> 0.3595620274
B20: NA (fermentation only) | C20: Sorbitol | D20: SORBIT | E20: 0 | F20: 0 | G20: 113000 | H20: 2009 | I20: =G20*VLOOKUP(DCFROR!$B$34,INDIRECT(IX_CHEM),4,FALSE)/VLOOKUP(H20,INDIRECT(IX_CHEM),4,FALSE)/100 -> 1353.787272 | J20: 0.676893636 | K20: 0 | L20: 0 | M20: 0 | N20: Coast Southwest via HGI
A21: A400 | C21: Purchased Enzyme | D21: CCIS.ENZYME.750 | E21: 1e-05 | F21: 2.205e-05 | G21: 0 | H21: =DCFROR!$B$34 -> 2014 | I21: =G21*VLOOKUP(DCFROR!$B$34,INDIRECT(IX_CHEM),4,FALSE)/VLOOKUP(H21,INDIRECT(IX_CHEM),4,FALSE)/100 -> 0 | J21: 0 | K21: 0 | L21: 0 | M21: 0 | N21: Set in Cell G21
C22: Glucose | D22: CMIX.GLUCOSE.A400.401 | E22: 1208.98268 | F22: 2665.806809 | G22: 58220 | H22: 2009 | I22: =G22*VLOOKUP(DCFROR!$B$34,INDIRECT(IX_CHEM),4,FALSE)/VLOOKUP(H22,INDIRECT(IX_CHEM),4,FALSE)/100 -> 697.4999555 | J22: 0.3487499777 | K22: 929.7000655 | L22: 7.329755316 | M22: 0.8965517038 | N22: USDA
C23: Corn Steep Liquor | D23: STRM.A700.CSL-A400 | E23: 82.246535 | F23: 181.3536097 | G23: =G16 -> 5700 | H23: =H16 -> 2009 | I23: =G23*VLOOKUP(DCFROR!$B$34,INDIRECT(IX_CHEM),4,FALSE)/VLOOKUP(H23,INDIRECT(IX_CHEM),4,FALSE)/100 -> 68.28838451 | J23: 0.03414419226 | K23: 6.192172515 | L23: 0.04881908811 | M23: 0.005971391231 | N23: =N16 -> Corn Products via HGI
C24: Corn oil | D24: STRM.A400.444 | E24: =IFERROR(VLOOKUP(D24,INDIRECT(LU_SENS),2,FALSE),0) -> 6.67896954 | F24: =E24*2.205 -> 14.72712784 | G24: =134000*2000/2205 -> 121541.9501 | H24: 2011 | I24: =G24*VLOOKUP(DCFROR!$B$34,INDIRECT(IX_CHEM),4,FALSE)/VLOOKUP(H24,INDIRECT(IX_CHEM),4,FALSE)/100 -> 1297.861681 | J24: =I24/2000 -> 0.6489308404 | K24: =F24*J24 -> 9.556887442 | L24: =($K24*$B$7/1000000) -> 0.0753465006 | M24: =(L24*100)/$B$3 -> 0.009216137588 | N24: SRI CEH
C25: Ammonia | D25: STRM.A700.NH3-A400 | E25: 57.4865666 | F25: 126.7578794 | G25: =G15 -> 45000 | H25: =H15 -> 2009 | I25: =G25*VLOOKUP(DCFROR!$B$34,INDIRECT(IX_CHEM),4,FALSE)/VLOOKUP(H25,INDIRECT(IX_CHEM),4,FALSE)/100 -> 539.1188251 | J25: 0.2695594126 | K25: 34.16877949 | L25: 0.2693866575 | M25: 0.03295049512 | N25: =N15 -> Terra Industries via HGI, anhydrous, delivery to Iowa
C26: Host nutrients | D26: STRM.A400.440 | E26: 33.6760616 | F26: 74.25571583 | G26: 74530 | H26: 2007 | I26: =G26*VLOOKUP(DCFROR!$B$34,INDIRECT(IX_CHEM),4,FALSE)/VLOOKUP(H26,INDIRECT(IX_CHEM),4,FALSE)/100 -> 986.8901131 | J26: 0.4934450566 | K26: 36.6411159 | L26: 0.2888785577 | M26: 0.03533468062 | N26: SRI CEH
C27: Sulfur Dioxide | D27: STRM.A400.442 | E27: =IFERROR(VLOOKUP(D27,INDIRECT(LU_SENS),2,FALSE),0) -> 8.20774839 | F27: =E27*2.205 -> 18.0980852 | G27: 25400 | H27: 2005 | I27: =G27*VLOOKUP(DCFROR!$B$34,INDIRECT(IX_CHEM),4,FALSE)/VLOOKUP(H27,INDIRECT(IX_CHEM),4,FALSE)/100 -> 365.06567 | J27: =I27/2000 -> 0.182532835 | K27: =F27*J27 -> 3.3034948 | L27: =($K27*$B$7/1000000) -> 0.026044753 | M27: =(L27*100)/$B$3 -> 0.003185709027 | N27: SRI CEH
A28: A600 | C28: Ammonia/urea | D28: WWT subcontract | E28: ='Operating Summaries'!F37*17/14 -> 314.7825985 | F28: 694.0956296 | G28: 45000 | H28: 2009 | I28: =G28*VLOOKUP(DCFROR!$B$34,INDIRECT(IX_CHEM),4,FALSE)/VLOOKUP(H28,INDIRECT(IX_CHEM),4,FALSE)/100 -> 539.1188251 | J28: =I28/2000 -> 0.2695594126 | K28: =F28*J28 -> 187.1000102 | L28: 1.47509648 | M28: =(L28*100)/$B$3 -> 0.1804289783 | N28: =N22 -> USDA
C29: Polymer | D29: WWT subcontract | E29: ='Operating Summaries'!F38 -> 1.718296434 | F29: 3.788843637 | G29: 496125 | H29: 2011 | I29: =G29*VLOOKUP(DCFROR!$B$34,INDIRECT(IX_CHEM),4,FALSE)/VLOOKUP(H29,INDIRECT(IX_CHEM),4,FALSE)/100 -> 5297.772709 | J29: =I29/2000 -> 2.648886355 | K29: =F29*J29 -> 10.03621621 | L29: 0.0791255286 | M29: =(L29*100)/$B$3 -> 0.009678375937 | N29: Brown and Caldwell
A30: A800 | C30: Boiler Chems | D30: STRM.A900.921 | E30: =IFERROR(VLOOKUP(D30,INDIRECT(LU_SENS),2,FALSE),0) -> 0.205693891 | F30: 0.4535550297 | G30: 280000 | H30: 1991 | I30: =G30*VLOOKUP(DCFROR!$B$34,INDIRECT(IX_CHEM),4,FALSE)/VLOOKUP(H30,INDIRECT(IX_CHEM),4,FALSE)/100 -> 6001.273885 | J30: =I30/2000 -> 3.000636943 | K30: =F30*J30 -> 1.360953978 | L30: 0.01072976116 | M30: =(L30*100)/$B$3 -> 0.001312429301
C31: FGD Lime | D31: STRM.A800.851 | E31: =IFERROR(VLOOKUP(D31,INDIRECT(LU_SENS),2,FALSE),0) -> 150.559686 | F31: 331.9841076 | G31: 20000 | H31: 2009 | I31: =G31*VLOOKUP(DCFROR!$B$34,INDIRECT(IX_CHEM),4,FALSE)/VLOOKUP(H31,INDIRECT(IX_CHEM),4,FALSE)/100 -> 239.6083667 | J31: 0.1198041834 | K31: 39.7730849 | L31: 0.3135710014 | M31: 0.03835497959
C32: Natural Gas | D32: STRM.A800.840 | E32: =IFERROR(VLOOKUP(D32,INDIRECT(LU_SENS),2,FALSE),0) -> 1e-06 | F32: 2.205e-06 | G32: =(55.6/1055.87*5)*100*907.185 -> 23885.27281 | H32: =H12 -> 2014 | I32: =G32*VLOOKUP(DCFROR!$B$34,INDIRECT(IX_CHEM),4,FALSE)/VLOOKUP(H32,INDIRECT(IX_CHEM),4,FALSE)/100 -> 238.8527281 | J32: 0.119426364 | K32: 2.633351327e-07 | L32: 2.076134186e-09 | M32: 2.539459452e-10
A33: A900 | C33: Cooling Tower Chems | D33: STRM.A900.922 | E33: =IFERROR(VLOOKUP(D33,INDIRECT(LU_SENS),2,FALSE),0) -> 2.18780807 | F33: 4.824116794 | G33: 200000 | H33: 1999 | I33: =G33*VLOOKUP(DCFROR!$B$34,INDIRECT(IX_CHEM),4,FALSE)/VLOOKUP(H33,INDIRECT(IX_CHEM),4,FALSE)/100 -> 3596.526386 | J33: 1.798263193 | K33: 8.67503167 | L33: 0.06839394969 | M33: 0.008365724295
C34: Makeup Water | D34: STRM.903 | E34: =IFERROR(VLOOKUP(D34,INDIRECT(LU_SENS),2,FALSE),0) -> 198770.089 | F34: 438288.0462 | G34: 19.97 | H34: 2004 | I34: =G34*VLOOKUP(DCFROR!$B$34,INDIRECT(IX_CHEM),4,FALSE)/VLOOKUP(H34,INDIRECT(IX_CHEM),4,FALSE)/100 -> 0.311106713 | J34: 0.0001555533565 | K34: 68.1771767 | L34: 0.5375088611 | M34: 0.06574632637 | N34: Peters & Timmerhaus
C35: Subtotal | K35: =SUM(K12:K34) -> 10197.51547 | L35: =SUM(L12:L34) -> 80.39721199 | M35: =SUM(M12:M34) -> 9.833924091
A36: Waste Streams
A37: A800 | C37: Disposal of Ash | D37: STRM.A800.809 | E37: =VLOOKUP(D37,INDIRECT(LU_SENS),2,FALSE) -> 4458.70324 | F37: =E37*2.205 -> 9831.440644 | G37: 1820 | H37: 1993 | I37: =G37*VLOOKUP(DCFROR!$B$34,INDIRECT(IX_CHEM),4,FALSE)/VLOOKUP(H37,INDIRECT(IX_CHEM),4,FALSE)/100 -> 38.21716069 | J37: =I37/2000 -> 0.01910858034 | K37: =F37*J37 -> 187.8648734 | L37: =($K37*$B$7/1000000) -> 1.481126662 | M37: =(L37*100)/$B$3 -> 0.1811665704
C38: Subtotal | K38: =SUM(K37:K37) -> 187.8648734 | L38: =SUM(L37:L37) -> 1.481126662 | M38: =SUM(M37:M37) -> 0.1811665704
A39: By-Products and Credits
C40: Grid Electricity | D40: WORK.A900.WKNET | E40: =IF(DCFROR!$B$35="Concentrated",-1*VLOOKUP(D40,INDIRECT(LU_SENS),2,FALSE),-1*VLOOKUP(D40,INDIRECT(LU_SENS),2,FALSE)+VLOOKUP("WORK.A300.SUGWORK",INDIRECT(LU_SENS),2,FALSE)) -> 13198.6283 | F40: kW | I40: $/kWh | J40: 0.0572 | K40: =J40*E40 -> 754.9615388 | L40: =($K40*$B$7/1000000) -> 5.952116772 | M40: =(L40*100)/$B$3 -> 0.7280434615
C41: Area 100 Electricity | D41: WORK.A900.WKA100 | E41: =VLOOKUP(D41,INDIRECT(LU_SENS),2,FALSE) -> 859.484703 | F41: kW | I41: $/kWh | J41: 0.0572 | K41: =J41*E41 -> 49.16252501 | L41: =($K41*$B$7/1000000) -> 0.3875973472 | M41: =(L41*100)/$B$3 -> 0.04740964016
C42: Subtotal | K42: =SUM(K40:K41) -> 804.1240638 | L42: =SUM(L40:L41) -> 6.339714119 | M42: =SUM(M40:M41) -> 0.7754531017
C43: Total Variable Operating Costs | K43: =K38+K35-K40 -> 9630.418807 | L43: =L38+L35-L42 -> 75.53862453 | M43: =M38+M35-M42 -> 9.23963756
A44: Fixed Operating Costs
C45: Position | D45: Salary | E45: Year of salary quote | F45: =costyear & " Salary" -> 2014 Salary | G45: # Required | H45: Total | I45: =costyear & " Cost" -> 2014 Cost | L45: ="MM$/yr ("&DCFROR!$B$34&")" -> MM$/yr (2014) | M45: ="Cents/lbs Sugar ("&costyear&")" -> Cents/lbs Sugar (2014)
A46: Labor & Supervision
C47: Plant Manager | D47: 147000 | E47: 2009 | F47: =(D47)*VLOOKUP(costyear,INDIRECT(IX_LABOR),4,FALSE)/VLOOKUP(E47,INDIRECT(IX_LABOR),4,FALSE) -> 155617.2414 | G47: 1 | H47: =G47*D47 -> 147000 | I47: =(H47)*VLOOKUP(DCFROR!$B$34,INDIRECT(IX_LABOR),4,FALSE)/VLOOKUP(E47,INDIRECT(IX_LABOR),4,FALSE) -> 155617.2414
C48: Plant Engineer | D48: 70000 | E48: 2009 | F48: 74103.44828 | G48: 2 | H48: 140000 | I48: =(H48)*VLOOKUP(DCFROR!$B$34,INDIRECT(IX_LABOR),4,FALSE)/VLOOKUP(E48,INDIRECT(IX_LABOR),4,FALSE) -> 148206.8966
C49: Maintenance Supr | D49: 57000 | E49: 2009 | F49: 60341.37931 | G49: 1 | H49: 57000 | I49: =(H49)*VLOOKUP(DCFROR!$B$34,INDIRECT(IX_LABOR),4,FALSE)/VLOOKUP(E49,INDIRECT(IX_LABOR),4,FALSE) -> 60341.37931
C50: Maintenance Tech | D50: 40000 | E50: 2009 | F50: 42344.82759 | G50: 8 | H50: 320000 | I50: =(H50)*VLOOKUP(DCFROR!$B$34,INDIRECT(IX_LABOR),4,FALSE)/VLOOKUP(E50,INDIRECT(IX_LABOR),4,FALSE) -> 338758.6207
C51: Lab Manager | D51: 56000 | E51: 2009 | F51: 59282.75862 | G51: 1 | H51: 56000 | I51: =(H51)*VLOOKUP(DCFROR!$B$34,INDIRECT(IX_LABOR),4,FALSE)/VLOOKUP(E51,INDIRECT(IX_LABOR),4,FALSE) -> 59282.75862
C52: Lab Technician | D52: 40000 | E52: 2009 | F52: 42344.82759 | G52: 2 | H52: 80000 | I52: =(H52)*VLOOKUP(DCFROR!$B$34,INDIRECT(IX_LABOR),4,FALSE)/VLOOKUP(E52,INDIRECT(IX_LABOR),4,FALSE) -> 84689.65517
C53: Lab Tech-Enzyme | D53: 40000 | E53: 2009 | F53: 42344.82759 | G53: 2 | H53: 80000 | I53: =(H53)*VLOOKUP(DCFROR!$B$34,INDIRECT(IX_LABOR),4,FALSE)/VLOOKUP(E53,INDIRECT(IX_LABOR),4,FALSE) -> 84689.65517
C54: Shift Supervisor | D54: 48000 | E54: 2009 | F54: 50813.7931 | G54: 3 | H54: 144000 | I54: =(H54)*VLOOKUP(DCFROR!$B$34,INDIRECT(IX_LABOR),4,FALSE)/VLOOKUP(E54,INDIRECT(IX_LABOR),4,FALSE) -> 152441.3793
C55: Shift Operators | D55: 40000 | E55: 2009 | F55: 42344.82759 | G55: 15 | H55: 600000 | I55: =(H55)*VLOOKUP(DCFROR!$B$34,INDIRECT(IX_LABOR),4,FALSE)/VLOOKUP(E55,INDIRECT(IX_LABOR),4,FALSE) -> 635172.4138
C56: Shift Oper-Enzyme | D56: 40000 | E56: 2009 | F56: 42344.82759 | G56: 8 | H56: 320000 | I56: =(H56)*VLOOKUP(DCFROR!$B$34,INDIRECT(IX_LABOR),4,FALSE)/VLOOKUP(E56,INDIRECT(IX_LABOR),4,FALSE) -> 338758.6207
C57: Yard Employees | D57: 28000 | E57: 2009 | F57: 29641.37931 | G57: 3 | H57: 84000 | I57: =(H57)*VLOOKUP(DCFROR!$B$34,INDIRECT(IX_LABOR),4,FALSE)/VLOOKUP(E57,INDIRECT(IX_LABOR),4,FALSE) -> 88924.13793
C58: Clerks & Secretaries | D58: 36000 | E58: 2009 | F58: 38110.34483 | G58: 2 | H58: 72000 | I58: =(H58)*VLOOKUP(DCFROR!$B$34,INDIRECT(IX_LABOR),4,FALSE)/VLOOKUP(E58,INDIRECT(IX_LABOR),4,FALSE) -> 76220.68966
C59: Total Salaries | H59: =SUM(H47:H58) -> 2100000 | I59: =SUM(I47:I58) -> 2223103.448 | L59: =I59/1000000 -> 2.223103448 | M59: =(L59*100)/$B$3 -> 0.2719227448
C60: Labor Burden (90%) | H60: =0.9*H59 -> 1890000 | I60: =0.9*I59 -> 2000793.103 | L60: =I60/1000000 -> 2.000793103 | M60: =(L60*100)/$B$3 -> 0.2447304703
A61: Other Overhead
C62: Maintenance | D62: 0.03 | E62: of ISBL | I62: =ISBL*OPEX!D62 -> 3767408.839 | L62: =I62/1000000 -> 3.767408839 | M62: =(L62*100)/$B$3 -> 0.4608171307
C63: Property Insur. & Tax | D63: 0.007 | E63: of FCI | I63: =FCI*OPEX!D63 -> 3109318.156 | L63: =I63/1000000 -> 3.109318156 | M63: =(L63*100)/$B$3 -> 0.3803216302
C64: Total Fixed Operating Costs | L64: =SUM(L47:L63) -> 11.10062355 | M64: =SUM(M47:M63) -> 1.357791976
L66: ="MM$/yr ("&DCFROR!$B$34&")" -> MM$/yr (2014) | M66: Cents/lbs Sugar (2014)
A67: Total Operating Costs | L67: =L64+L43 -> 86.63924808 | M67: =M64+M43 -> 10.59742954

Sheet CAPEX
D1: Rev | E1: REV | F1: DATE | G1: BY | H1: =CASEID -> 
E3: E
E4: D
E5: C
E6: B
D7: 0
D8: Mechanical Equipment List: Advanced Biofuels Engineering Design: Biochemical Conversion to Sugars | L8: Scaled Installed Costs | Y8: Associated Details and Remarks
A10: EQPT NO | C10: EQUIPMENT TITLE | D10: VENDOR | E10: MODEL | F10: DESCRIPTION | G10: HP | H10: MATERIAL | I10: QUOTE INFO | J10: NUM REQD | K10: $ | L10: Year of Quote | M10: Purch Cost in Base Yr | N10: Scaling Variable | O10: Scaling Val | P10: Units | Q10: Scaling Exp | R10: Inst Factor | S10: New Val | T10: Size Ratio | U10: Scaled Purch Cost | V10: Purch Cost in Proj year | W10: Inst Cost in Proj year | Y10: installation factor category | Z10: NREL Remarks | AA10: Comments
A11: A100: Feestock Handling | F11: Mechanical Equipment List | L11: Scaled Installed Costs
A12: C | B12: 101 | C12: Transfer Conveyor | D12: Dearborn Midwest | F12: 160 MTPH ea., enclosed, 60 in. x 65 ft. long | G12: 20 hp ea. | H12: CS | I12: DMWCC Price | J12: 2 | K12: 5397000 | L12: 2009 | M12: =K12 -> 5397000 | N12: STRM.101 | O12: 94697 | P12: kg/hr | Q12: 0.6 | R12: 1.7 | S12: =IF(N12<>"",VLOOKUP(N12,INDIRECT(LU_SENS),2,FALSE),"") -> 104166.667 | T12: =S12/O12 -> 1.099999652 | U12: =M12*T12^Q12 -> 5714627.761 | V12: =U12*VLOOKUP(DCFROR!$B$34,INDIRECT(IX_CAP),4,FALSE)/VLOOKUP(L12,INDIRECT(IX_CAP),4,FALSE) -> 6308099.354 | W12: =V12*R12 -> 10723768.9 | Y12: solids handling
A13: C | B13: 102 | C13: High Angle Transfer Conveyor | D13: Dearborn Midwest | F13: 160 MTPH ea., enclosed, 72 in. wide | G13: 50 hp ea. | H13: CS | I13: Included with DMWCC | J13: 2 | K13: INCLUDED | Y13: solids handling
A14: C | B14: 103 | C14: Reversing Load-in Conveyor | D14: Dearborn Midwest | F14: 320 MT / hr, enclosed, 84 in. wide | G14: 20 hp | H14: CS | I14: Included with DMWCC | J14: 1 | K14: INCLUDED | Y14: solids handling
A15: C | B15: 104 | C15: Dome Reclaim System | D15: Cambelt | F15: 100 MTPH ea. | G15: 45 kw ea. | H15: CS | I15: YES | J15: 2 | K15: 3046000 | L15: 2009 | M15: =K15 -> 3046000 | N15: STRM.101 | O15: 94697 | P15: kg/hr | Q15: 0.6 | R15: 1.7 | S15: =IF(N15<>"",VLOOKUP(N15,INDIRECT(LU_SENS),2,FALSE),"") -> 104166.667 | T15: 1.099999652 | U15: =M15*T15^Q15 -> 3225265.177 | V15: =U15*VLOOKUP(DCFROR!$B$34,INDIRECT(IX_CAP),4,FALSE)/VLOOKUP(L15,INDIRECT(IX_CAP),4,FALSE) -> 3560213.199 | W15: =V15*R15 -> 6052362.438 | Y15: solids handling
A16: C | B16: 105 | C16: Reclaim Conveyor | D16: Dearborn Midwest | F16: 100 MTPH ea., enclosed, 48 in. x 125 ft. long | G16: 10 hp ea. | H16: CS | I16: Included with DMWCC | J16: 2 | K16: INCLUDED
A17: C | B17: 106 | C17: High Angle Transfer Conveyor | D17: Dearborn Midwest | F17: 100 MTPH, enclosed, 72 in. wide | G17: 20 hp | H17: CS | I17: Included with DMWCC | J17: 1 | K17: INCLUDED
A18: C | B18: 107 | C18: Elevated Transfer Conveyor | D18: Dearborn Midwest | F18: 100 MTPH, enclosed, 48 in. x 200 ft. long | G18: 10 hp | H18: CS | I18: Included with DMWCC | J18: 1 | K18: INCLUDED
A19: C | B19: 108 | C19: Process Feed Conveyor | D19: Dearborn Midwest | F19: 70 MTPH ea., enclosed, 42 in. x 25 ft. long | G19: 5 hp ea. | H19: CS | I19: Included with DMWCC | J19: 1 | K19: INCLUDED
A20: M | B20: 101 | C20: Truck Scale | D20: St. Louis Scale | F20: 10' x 70', 200,000 lb | H20: CONCRETE | I20: YES | J20: 2 | K20: 110000 | L20: 2009 | M20: 110000 | N20: STRM.101 | O20: 94697 | P20: kg/hr | Q20: 0.6 | R20: 1.7 | S20: =IF(N20<>"",VLOOKUP(N20,INDIRECT(LU_SENS),2,FALSE),"") -> 104166.667 | T20: 1.099999652 | U20: =M20*T20^Q20 -> 116473.7917 | V20: =U20*VLOOKUP(DCFROR!$B$34,INDIRECT(IX_CAP),4,FALSE)/VLOOKUP(L20,INDIRECT(IX_CAP),4,FALSE) -> 128569.7478 | W20: 218568.5713 | Y20: solids handling
A21: M | B21: 102 | C21: Truck Dumper | D21: Jeffrey Rader | F21: 70' x 55 ton x 63 degree | G21: 2 x 50 hp ea. | H21: CS | I21: YES | J21: 2 | K21: 484000 | L21: 2009 | M21: 484000 | N21: STRM.101 | O21: 94697 | P21: kg/hr | Q21: 0.6 | R21: 1.7 | S21: 104166.667 | T21: 1.099999652 | U21: 512484.6834 | V21: =U21*VLOOKUP(DCFROR!$B$34,INDIRECT(IX_CAP),4,FALSE)/VLOOKUP(L21,INDIRECT(IX_CAP),4,FALSE) -> 565706.8904 | W21: 961701.7137 | Y21: solids handling
A22: M | B22: 103 | C22: Truck Dumper Hopper | D22: Jeffrey Rader | F22: 3500 cu.ft. hopper w/ drag chain conveyor | G22: 50 hp ea. | H22: CS | I22: YES | J22: 2 | K22: 502000 | L22: 2009 | M22: 502000 | N22: STRM.101 | O22: 94697 | P22: kg/hr | Q22: 0.6 | R22: 1.7 | S22: 104166.667 | T22: 1.099999652 | U22: 531544.0311 | V22: =U22*VLOOKUP(DCFROR!$B$34,INDIRECT(IX_CAP),4,FALSE)/VLOOKUP(L22,INDIRECT(IX_CAP),4,FALSE) -> 586745.5764 | W22: 997467.4799 | Y22: solids handling
A23: M | B23: 104 | C23: Concrete Feedstock Storage Dome | D23: Domtec | F23: 98 ft. dia., 160 ft. high., 4000 MT | H23: CONCRETE | I23: YES | J23: 2 | K23: 3500000 | L23: 2009 | M23: 3500000 | N23: STRM.101 | O23: 94697 | P23: kg/hr | Q23: 0.6 | R23: 1.7 | S23: 104166.667 | T23: 1.099999652 | U23: 3705984.281 | V23: =U23*VLOOKUP(DCFROR!$B$34,INDIRECT(IX_CAP),4,FALSE)/VLOOKUP(L23,INDIRECT(IX_CAP),4,FALSE) -> 4090855.613 | W23: 6954454.541 | Y23: solids handling
A24: M | B24: 105 | C24: Belt Scale | D24: Tecweigh | F24: Scale plus processor | H24: CS | I24: YES | J24: 2 | K24: 10790 | L24: 2009 | M24: 10790 | N24: STRM.101 | O24: 94697 | P24: kg/hr | Q24: 0.6 | R24: 1.7 | S24: 104166.667 | T24: 1.099999652 | U24: 11425.02011 | V24: =U24*VLOOKUP(DCFROR!$B$34,INDIRECT(IX_CAP),4,FALSE)/VLOOKUP(L24,INDIRECT(IX_CAP),4,FALSE) -> 12611.52345 | W24: 21439.58986 | Y24: solids handling
A25: M | B25: 106 | C25: Dust Collection System | D25: Sly | F25: 8500 ACFM | G25: 25 hp ea. | H25: CS | I25: YES | J25: 6 | K25: 279900 | L25: 2009 | M25: 279900 | N25: STRM.101 | O25: 94697 | P25: kg/hr | Q25: 0.6 | R25: 1.7 | S25: 104166.667 | T25: 1.099999652 | U25: 296372.8572 | V25: =U25*VLOOKUP(DCFROR!$B$34,INDIRECT(IX_CAP),4,FALSE)/VLOOKUP(L25,INDIRECT(IX_CAP),4,FALSE) -> 327151.5674 | W25: 556157.6646 | Y25: solids handling
T26: Area 100 Totals | U26: =SUM(U12:U25) -> 14114177.6 | V26: =SUM(V12:V25) -> 15579953.47 | W26: =SUM(W12:W25) -> 26485920.9
A27: A200: Pretreatment & Neutralization | F27: Mechanical Equipment List | L27: Scaled Installed Costs
A28: S | B28: 201 | C28: In-line Sulfuric Acid Mixer | D28: KOMAX | F28: Kynar Lined - 600 gpm H2O - 5 gpm acid | H28: SS304 | I28: Komax | J28: 1 | K28: 6000 | L28: 2009 | M28: =K28 -> 6000 | N28: strm.a200.214 | O28: 136260 | P28: kg/hr | Q28: 0.5 | R28: 1 | S28: =IF(N28<>"",VLOOKUP(N28,INDIRECT(LU_SENS),2,FALSE),"") -> 806.451613 | T28: =S28/O28 -> 0.005918476538 | U28: =M28*T28^Q28 -> 461.5898129 | V28: =U28*VLOOKUP(DCFROR!$B$34,INDIRECT(IX_CAP),4,FALSE)/VLOOKUP(L28,INDIRECT(IX_CAP),4,FALSE) -> 509.5265208 | W28: =V28*R28 -> 509.5265208 | Y28: in line mixer
A29: A | B29: 203 | C29: Blowdown Tank Agitator | F29: Side-mounted, 3 x 75 hp. ( 170 kW) | G29: 170 kW | H29: 316LSS | I29: Andritz Price | J29: 1 | K29: INCLUDED
A30: A | B30: 204 | C30: Flash Tank Agitator | D30: UET Mixers | F30: Side-mounted, 3 x 75 hp. ( 170 kW) | G30: 170 kW | H30: 316LSS | I30: YES | J30: 3 | K30: =J30*30000 -> 90000 | L30: 2009 | M30: =K30 -> 90000 | N30: strm.a200.254 | O30: 252891 | P30: kg/hr | Q30: 0.5 | R30: 1.5 | S30: 216167.942 | T30: =S30/O30 -> 0.854787011 | U30: =M30*T30^Q30 -> 83209.22298 | V30: =U30*VLOOKUP(DCFROR!$B$34,INDIRECT(IX_CAP),4,FALSE)/VLOOKUP(L30,INDIRECT(IX_CAP),4,FALSE) -> 91850.61 | W30: =V30*R30 -> 137775.915 | Y30: Agitator, SS
A31: A | B31: 208 | C31: Oligomer Hold Tank Agitator | D31: UET Mixers | F31: Side-mounted, 3 x 75 hp. ( 170 kW) | G31: 170 kW | H31: 316LSS | I31: YES | J31: 3 | K31: =J31*30000 -> 90000 | L31: 2009 | M31: 0 | N31: strm.a200.222 | O31: 264116 | P31: kg/hr | Q31: 0.5 | R31: 1.5 | S31: 239925.63 | T31: 0.9084100547 | U31: 0 | V31: =U31*VLOOKUP(DCFROR!$B$34,INDIRECT(IX_CAP),4,FALSE)/VLOOKUP(L31,INDIRECT(IX_CAP),4,FALSE) -> 0 | W31: 0 | Y31: Agitator, SS
A32: A | B32: 209 | C32: Ammonia Addition Tank Agitator | D32: Lotus | G32: 10 hp | H32: SS | I32: YES | J32: 1 | K32: 21900 | L32: 2009 | M32: =K32 -> 21900 | N32: strm.a200.228 | O32: 410369 | P32: kg/hr | Q32: 0.5 | R32: 1.5 | S32: 328997.776 | T32: 0.8017120591 | U32: 19608.90412 | V32: =U32*VLOOKUP(DCFROR!$B$34,INDIRECT(IX_CAP),4,FALSE)/VLOOKUP(L32,INDIRECT(IX_CAP),4,FALSE) -> 21645.31455 | W32: 32467.97182 | Y32: Agitator, SS
A33: A | B33: 210 | C33: Ammonia Static Mixer | D33: KOMAX | H33: SS | I33: HGI database | J33: 1 | K33: 5000 | L33: 2009 | M33: =K33 -> 5000 | N33: strm.a200.275 | O33: 157478 | P33: kg/hr | Q33: 0.5 | R33: 1 | S33: 112829.834 | T33: 0.7164799782 | U33: 4232.257017 | V33: =U33*VLOOKUP(DCFROR!$B$34,INDIRECT(IX_CAP),4,FALSE)/VLOOKUP(L33,INDIRECT(IX_CAP),4,FALSE) -> 4671.782463 | W33: 4671.782463 | Y33: in line mixer
A34: C | B34: 201 | C34: Transfer Conveyor | F34: 800 mm x 7600 mm (2'-8" x 25') | G34: 60 hp ea | H34: 316LSS | I34: Included with Andritz | J34: 2 | K34: INCLUDED
A35: C | B35: 202 | C35: Distribution Conveyor | F35: 800 mm x 7600 mm (2'-8" x 25') | G35: 60 hp ea | H35: 316LSS | I35: Included with Andritz | J35: 2 | K35: INCLUDED
A36: C | B36: 203 | C36: Overfeed Conveyor | F36: 800 mm x 7600 mm (2'-8" x 25') | G36: 60 hp ea | H36: 316LSS | I36: Included with Andritz | J36: 4 | K36: INCLUDED
A37: C | B37: 204 | C37: Pressurized Heating Screw | F37: 2500 mm x 9500 mm (8' x 31') | G37: 100 hp ea | H37: Dup. 2205 | I37: Included with Andritz | J37: 1 | K37: INCLUDED
A38: C | B38: 205 | C38: Pressurized Pre-heater Discharge | F38: 850 mm x 3500 mm (2'-10" x 12') | G38: 50 hp ea. | H38: Dup. 2205 | I38: Included with Andritz | J38: 2 | K38: INCLUDED
A39: C | B39: 206 | C39: Pressurized Transport - No. 1 | F39: 900 mm x 3500 mm (3' x 12') | G39: 25 hp ea. | H39: Incoloy 825-CLAD; CS | I39: Included with Andritz | J39: 1 | K39: INCLUDED
A40: C | B40: 207 | C40: Pressurized Transport - No. 2 | F40: 1200 mm x 3500 mm (4' x 12') | G40: 50 hp ea. | H40: Incoloy 825-CLAD; CS | I40: Included with Andritz | J40: 1 | K40: INCLUDED
A41: H | B41: 201 | C41: Pretreatment Water Heater | D41: Mueller | F41: 29.9 MMBtu | H41: 304SS | I41: HGI database | J41: 1 | K41: 92000 | L41: 2010 | M41: =K41 -> 92000 | N41: Heat.A200.QH201 | O41: -7.5 | P41: Gcal/hr | Q41: 0.7 | R41: 2.2 | S41: =IF(N41<>"",VLOOKUP(N41,INDIRECT(LU_SENS),2,FALSE),"") -> -14.1339559 | T41: =S41/O41 -> 1.884527453 | U41: =M41*T41^Q41 -> 143360.5159 | V41: =U41*VLOOKUP(DCFROR!$B$34,INDIRECT(IX_CAP),4,FALSE)/VLOOKUP(L41,INDIRECT(IX_CAP),4,FALSE) -> 149945.5215 | W41: =V41*R41 -> 329880.1473 | Y41: Heat Ex, S&T, SS
A42: H | B42: 244 | C42: Waste Vapor Condenser | D42: Mueller | F42: Copied H-201 | H42: 304SS | I42: HGI database | J42: 1 | K42: 34000 | L42: 2009 | M42: =K42 -> 34000 | N42: Heat.A200.QH244 | O42: 1.83 | P42: Gcal/hr | Q42: 0.7 | R42: 2.2 | S42: =ABS(IF(N42<>"",VLOOKUP(N42,INDIRECT(LU_SENS),2,FALSE),"")) -> 0.666466961 | T42: =S42/O42 -> 0.3641895962 | U42: =M42*T42^Q42 -> 16765.17888 | V42: =U42*VLOOKUP(DCFROR!$B$34,INDIRECT(IX_CAP),4,FALSE)/VLOOKUP(L42,INDIRECT(IX_CAP),4,FALSE) -> 18506.26471 | W42: =V42*R42 -> 40713.78237 | Y42: Heat Ex, S&T, SS | Z42: Did not use the ACHE from Harris.
A43: M | B43: 201 | C43: Doffing Roll Storage Bins | F43: 60 cu. m. (2100 cu.ft.) with conveyors/scrapers | G43: 54 hp ea | H43: 304/316SS | I43: Included with Andritz | J43: 2 | K43: INCLUDED
A44: M | B44: 202 | C44: Pin Drum Feeder | G44: 7.5 hp ea | H44: 316LSS | I44: Included with Andritz | J44: 2 | K44: INCLUDED
A45: M | B45: 203 | C45: Plug Screw Feeder | G45: 1510 hp ea | H45: 316LSS | I45: Included with Andritz | J45: 2 | K45: INCLUDED
A46: M | B46: 204 | C46: Prehydrolysis / Vertical Preheater | F46: 16' x 62' - 10 min. residence time | H46: Dup. 2205 | I46: Included with Andritz | J46: 1 | K46: INCLUDED
A47: M | B47: 205 | C47: Pin Drum Feeder | G47: 7.5 hp ea | H47: Incoloy 825-CLAD; CS | I47: Included with Andritz | J47: 2 | K47: INCLUDED
A48: M | B48: 206 | C48: Plug Screw Feeder | G48: 1510 hp ea | H48: Incoloy 825-CLAD; CS | I48: Included with Andritz | J48: 2 | K48: INCLUDED
A49: M | B49: 207 | C49: Pretreatment Reactor | F49: 3,000 mm x 10,300 mm each - scaled to 5 min. residence time | G49: 135 hp ea | H49: Incoloy 825-CLAD; CS | I49: Andritz Price | J49: 5 | K49: =16400000 -> 16400000 | L49: 2013 | M49: =K49+7.4*ROUND(J49/3.3, 0)*10^6 -> 31200000 | N49: SCIS.a200.211e | O49: 63166 | P49: kg/hr | Q49: 0.6 | R49: 1.5 | S49: =IF(N49<>"",VLOOKUP(N49,INDIRECT(LU_SENS),2,FALSE),"") -> 62942.4749 | T49: =S49/O49 -> 0.9964613067 | U49: =IF('Set-up'!$E$6="DA",M49*T49^Q49,IF('Set-up'!$E$6="DDA",M49*T49^Q49,0)) -> 31133708.7 | V49: =U49*VLOOKUP(DCFROR!$B$34,INDIRECT(IX_CAP),4,FALSE)/VLOOKUP(L49,INDIRECT(IX_CAP),4,FALSE) -> 31616657.12 | W49: =V49*R49 -> 47424985.68 | Y49: PT Reactor | AA49: 3/13 - Scaled from 2011 and 2013 vendor quotes to allow for 5 minutes residence time in pretreatment reactor section
A50: M- | B50: 204 | C50: Milling Equipment-DiscRefiner | D50: Disc Refiner | F50: 200kw/dry ton | I50: Andritz Price | J50: =ROUNDUP(8*T50,0) -> 8 | K50: 2466700 | L50: 2013 | M50: =K50 -> 2466700 | N50: SCIS.a200.211e | O50: 62942.4749 | P50: kg/hr | Q50: 0.6 | R50: 1.5 | S50: 62942.4749 | T50: 1 | U50: =IF('Set-up'!$E$6="DMR",M50*J50,0) -> 0 | V50: =U50*VLOOKUP(DCFROR!$B$34,INDIRECT(IX_CAP),4,FALSE)/VLOOKUP(L50,INDIRECT(IX_CAP),4,FALSE) -> 0 | W50: =V50*R50 -> 0 | Y50: Solids Milling
A51: M- | B51: 204 | C51: Milling Equipment-Szego Mill | D51: Szego Mill | I51: Szego Mill | J51: =ROUNDUP(12*T51,0) -> 12 | K51: 578000 | L51: 2013 | M51: =K51 -> 578000 | N51: SCIS.a200.211e | O51: 62942.4749 | P51: kg/hr | Q51: 0.6 | R51: 1.4 | S51: 62942.4749 | T51: 1 | U51: =IF('Set-up'!$E$6="DMR",M51*J51, 0) -> 0 | V51: =U51*VLOOKUP(DCFROR!$B$34,INDIRECT(IX_CAP),4,FALSE)/VLOOKUP(L51,INDIRECT(IX_CAP),4,FALSE) -> 0 | W51: =V51*R51 -> 0 | Y51: Solids Milling
A52: P | B52: 201 | C52: Sulfuric Acid Pump | D52: Goulds | E52: 3196; 2X3-6 | F52: 9 GPM, 245 FT TDH | H52: 316SS | I52: HGI database | J52: 1 | K52: 8000 | L52: 2009 | M52: =K52 -> 8000 | N52: strm.710 | O52: 3720 | P52: kg/hr | Q52: 0.8 | R52: 2.3 | S52: 2240.23928 | T52: 0.6022148602 | U52: =M52*T52^Q52 -> 5332.01253 | V52: =U52*VLOOKUP(DCFROR!$B$34,INDIRECT(IX_CAP),4,FALSE)/VLOOKUP(L52,INDIRECT(IX_CAP),4,FALSE) -> 5885.74903 | W52: 13537.22277 | Y52: Pump, SS | Z52: density 1.8
A53: P | B53: 203 | C53: Blowdown Tank Discharge Pump | D53: Viking | F53: 1900 GPM, 150 FT TDH | G53: 125 | H53: 316SS | I53: HGI database | J53: 1 | K53: 25635 | L53: 2010 | M53: =K53 -> 25635 | N53: strm.a200.222 | O53: 292407 | P53: kg/hr | Q53: 0.8 | R53: 2.3 | S53: 239925.63 | T53: 0.8205194472 | U53: 21882.87728 | V53: =U53*VLOOKUP(DCFROR!$B$34,INDIRECT(IX_CAP),4,FALSE)/VLOOKUP(L53,INDIRECT(IX_CAP),4,FALSE) -> 22888.0276 | W53: 52642.46347 | Y53: Pump, SS | Z53: density 1.0
A54: P | B54: 204 | C54: Flash Tank Discharge Pump | D54: Viking | F54: 900 GPM, 150 FT TDH | G54: 75 | H54: 316SS | I54: HGI database | J54: 1 | K54: 30000 | L54: 2009 | M54: =K54 -> 30000 | N54: strm.a200.254 | O54: 204390 | P54: kg/hr | Q54: 0.8 | R54: 2.3 | S54: 216167.942 | T54: 1.057624845 | U54: 31375.20486 | V54: =U54*VLOOKUP(DCFROR!$B$34,INDIRECT(IX_CAP),4,FALSE)/VLOOKUP(L54,INDIRECT(IX_CAP),4,FALSE) -> 34633.56106 | W54: 79657.19044 | Y54: Pump, SS | Z54: density 1.0
A55: P | B55: 208 | C55: Oligomer Hold Tank Discharge | D55: Viking | F55: 900 GPM, 150 FT TDH | G55: 75 | H55: 316SS | I55: HGI database | J55: 1 | K55: 17408 | L55: 2010 | M55: 0 | N55: strm.a200.223 | O55: 292407 | P55: kg/hr | Q55: 0.8 | R55: 2.3 | S55: 239925.63 | T55: 0.8205194472 | U55: 0 | V55: =U55*VLOOKUP(DCFROR!$B$34,INDIRECT(IX_CAP),4,FALSE)/VLOOKUP(L55,INDIRECT(IX_CAP),4,FALSE) -> 0 | W55: 0 | Y55: Pump, SS | Z55: density 1.0
A56: P | B56: 209 | C56: Hydrolyzate Pump | D56: Goulds | E56: 3196; 6X8-13 | F56: 1771 GPM, 150 FT TDH | G56: 100 | H56: 316SS | I56: HGI database | J56: 1 | K56: 22500 | L56: 2009 | M56: =K56 -> 22500 | N56: strm.a200.228 | O56: 402194 | P56: kg/hr | Q56: 0.8 | R56: 2.3 | S56: 328997.776 | T56: 0.8180076679 | U56: 19159.68735 | V56: =U56*VLOOKUP(DCFROR!$B$34,INDIRECT(IX_CAP),4,FALSE)/VLOOKUP(L56,INDIRECT(IX_CAP),4,FALSE) -> 21149.44603 | W56: 48643.72586 | Y56: Pump, SS | Z56: density 1.0
A57: T | B57: 201 | C57: Sulfuric Acid Tank | F57: 12,800 gal, 24hr residence time | H57: PLASTIC | I57: HGI database | J57: 1 | K57: 6210 | L57: 2010 | M57: =K57 -> 6210 | N57: strm.710 | O57: 1981 | P57: kg/hr | Q57: 0.7 | R57: 3 | S57: 2240.23928 | T57: 1.130862837 | U57: 6768.283676 | V57: =U57*VLOOKUP(DCFROR!$B$34,INDIRECT(IX_CAP),4,FALSE)/VLOOKUP(L57,INDIRECT(IX_CAP),4,FALSE) -> 7079.172523 | W57: 21237.51757 | Y57: Tank, storage, plastic
A58: T | B58: 203 | C58: Blowdown Tank | D58: Andritz | F58: 23' x 48' - 25 min. - 110,000 gal. | H58: SS316 | I58: Included with Andritz | J58: 1 | K58: INCLUDED
A59: T | B59: 204 | C59: Flash Tank | F59: 23' x 48' - 110,000 gal. | H59: SS316 | I59: HGI database | J59: 1 | K59: 511000 | L59: 2009 | M59: =K59 -> 511000 | N59: strm.a200.223 | O59: 264116 | P59: kg/hr | Q59: 0.7 | R59: 2 | S59: =IF(N59<>"",VLOOKUP(N59,INDIRECT(LU_SENS),2,FALSE),"") -> 239925.63 | T59: =S59/O59 -> 0.9084100547 | U59: =M59*T59^Q59 -> 477769.3143 | V59: =U59*VLOOKUP(DCFROR!$B$34,INDIRECT(IX_CAP),4,FALSE)/VLOOKUP(L59,INDIRECT(IX_CAP),4,FALSE) -> 527386.2847 | W59: =V59*R59 -> 1054772.569 | Y59: Pressure vessel, SS
A60: T | B60: 208 | C60: Oligomer Conversion Tank | F60: 2.6 atm, 130C operating 30 min. hold = 30,000 gal | H60: SS316 | I60: HGI database | J60: 1 | K60: 203000 | L60: 2009 | M60: =K60 -> 203000 | N60: strm.a200.223 | O60: 264116 | P60: kg/hr | Q60: 0.7 | R60: 2 | S60: 0 | T60: 0 | U60: =M60*T60^Q60 -> 0 | V60: =U60*VLOOKUP(DCFROR!$B$34,INDIRECT(IX_CAP),4,FALSE)/VLOOKUP(L60,INDIRECT(IX_CAP),4,FALSE) -> 0 | W60: 0 | Y60: Pressure vessel, SS
A61: T | B61: 209 | C61: Ammonia Addition Tank | F61: 118,000 gal, 1hr residence time | H61: SS304 | I61: HGI database | J61: 1 | K61: 236000 | L61: 2009 | M61: =K61 -> 236000 | N61: strm.a200.228 | O61: 410369 | P61: kg/hr | Q61: 0.7 | R61: 2 | S61: =IF(N61<>"",VLOOKUP(N61,INDIRECT(LU_SENS),2,FALSE),"") -> 328997.776 | T61: 0.8017120591 | U61: =M61*T61^Q61 -> 202173.8094 | V61: =U61*VLOOKUP(DCFROR!$B$34,INDIRECT(IX_CAP),4,FALSE)/VLOOKUP(L61,INDIRECT(IX_CAP),4,FALSE) -> 223169.8249 | W61: 446339.6498 | Y61: Pressure vessel, SS
A62: T | B62: 225 | C62: Deacetylation reactor | F62: 14' x 30' vessel, quad discharge screw live btm | G62: 15hp ea | H62: SS316 | I62: HGI database | J62: 3 | K62: 780000 | L62: 2013 | M62: =K62 -> 780000 | N62: strm.a200.211a | O62: 277167 | P62: kg/hr | Q62: 0.7 | R62: 1.7 | S62: =IF(N62<>"",VLOOKUP(N62,INDIRECT(LU_SENS),2,FALSE),"") -> 415288.344 | T62: 1.498332572 | U62: =IF('Set-up'!$E$6="DA", 0, M62*T62^Q62*J62) -> 3105572.068 | V62: =U62*VLOOKUP(DCFROR!$B$34,INDIRECT(IX_CAP),4,FALSE)/VLOOKUP(L62,INDIRECT(IX_CAP),4,FALSE) -> 3153745.934 | W62: 5361368.087 | Y62: PT Reactor | AA62: 4/18/13 - Price based on 2013 vendor quote
C63: Deacetylation reactor conveyors | F63: Feed and discharge drag conveyors | G63: 40 hp | H63: SS316 | J63: 3 | K63: 110000 | L63: 2013 | M63: =(250000+300000)/5 -> 110000 | N63: strm.a200.211a | O63: =O62 -> 277167 | P63: kg/hr | Q63: 0.8 | R63: 1.7 | S63: =S62 -> 415288.344 | T63: 1.498332572 | U63: =IF('Set-up'!$E$6="DA", 0, M63*T63^Q63*J63) -> 456037.4582 | V63: =U63*VLOOKUP(DCFROR!$B$34,INDIRECT(IX_CAP),4,FALSE)/VLOOKUP(L63,INDIRECT(IX_CAP),4,FALSE) -> 463111.5454 | W63: 787289.6271 | Y63: PT Reactor | AA63: 3/12/13 - drag conveyors on inlet and outlet of reactors, price based on HGI estimate
A64: T | B64: 224 | C64: Reacidification Tank | D64: Mueller | F64: 500,000 gallon | H64: SS304 | I64: YES | J64: 1 | K64: 0 | L64: 2009 | M64: =K64 -> 0 | N64: strm.a200.239 | O64: 410369 | P64: kg/hr | Q64: 0.7 | R64: 2 | S64: =IF(N64<>"",VLOOKUP(N64,INDIRECT(LU_SENS),2,FALSE),"") -> 328997.872 | T64: 0.8017122931 | U64: =M64*T64^Q64 -> 0 | V64: =U64*VLOOKUP(DCFROR!$B$34,INDIRECT(IX_CAP),4,FALSE)/VLOOKUP(L64,INDIRECT(IX_CAP),4,FALSE) -> 0 | W64: 0 | Y64: Pressure vessel, SS
T65: Area 200 Totals | U65: =SUM(U28:U64) -> 35727417.08 | V65: =SUM(V28:V64) -> 36362835.68 | W65: =SUM(W28:W64) -> 55836492.85
A66: A300: Enzymatic hydrolysis & Conditioning | F66: Mechanical Equipment List | L66: Scaled Installed Costs
A67: A | B67: 300A | C67: Enzymatic Hydrolysis Reactor Agitator | D67: Lotus | G67: 30 hp | H67: SS304 | I67: YES | J67: 1 | K67: 52500 | L67: 2009 | M67: =K67 -> 52500 | N67: inumsscf | O67: 1 | P67: ea | Q67: 1 | R67: 1.5 | S67: =IF(N67<>"",VLOOKUP(N67,INDIRECT(LU_SENS),2,FALSE),"") -> 6 | T67: =S67/O67 -> 6 | U67: =M67*T67^Q67 -> 315000 | V67: =U67*VLOOKUP(DCFROR!$B$34,INDIRECT(IX_CAP),4,FALSE)/VLOOKUP(L67,INDIRECT(IX_CAP),4,FALSE) -> 347713.1634 | W67: =V67*R67 -> 521569.7452 | Y67: Agitator, SS | AA67: 4/2/13 - Pricing scaled based on quantity
A68: A | B68: 306A | C68: Enzymatic Hydrolysis Storage Tank Agitator | D68: Lotus | G68: 20 hp | H68: SS304 | I68: YES | J68: 2 | K68: 68300 | L68: 2009 | M68: 68300 | N68: strm.a300.306b | O68: 425878 | P68: kg/hr | Q68: 0.5 | R68: 1.5 | S68: 335916.195 | T68: =S68/O68 -> 0.7887615585 | U68: 60658.76611 | V68: =U68*VLOOKUP(DCFROR!$B$34,INDIRECT(IX_CAP),4,FALSE)/VLOOKUP(L68,INDIRECT(IX_CAP),4,FALSE) -> 66958.25859 | W68: 100437.3879 | Y68: Agitator, SS | AA68: 3/18/13 - Pricing scaled based on flowrate
A69: A | B69: 308 | C69: Enzyme-Hydrolysate Mixer | D69: GLV | F69: inline mixer 1673 gpm | G69: 100 hp | H69: SS316 | I69: HGI database | J69: 1 | K69: 109000 | L69: 2009 | M69: 109000 | N69: strm.a300.t310fd | O69: 379938 | P69: kg/hr | Q69: 0.5 | R69: 1.7 | S69: 335916.195 | T69: 0.8841342403 | U69: 102490.9699 | V69: =U69*VLOOKUP(DCFROR!$B$34,INDIRECT(IX_CAP),4,FALSE)/VLOOKUP(L69,INDIRECT(IX_CAP),4,FALSE) -> 113134.7916 | W69: 192329.1458 | Y69: solids handling | Z69: density 1.0
A70: E | B70: 303 | C70: Sugar Concentration | F70: Mechanical vapor recompression system | G70: 3600 kW | H70: 304SS | J70: 1 | K70: 6370000 | L70: 2013 | M70: 6370000 | N70: strm.a300.306A | O70: 244084 | P70: kg/hr | Q70: 0.7 | R70: 2 | S70: 449348.175 | T70: 1.840957109 | U70: =IF(DCFROR!$B$35="Concentrated",M70*T70^Q70*J70,0) -> 9764949.498 | V70: =U70*VLOOKUP(DCFROR!$B$34,INDIRECT(IX_CAP),4,FALSE)/VLOOKUP(L70,INDIRECT(IX_CAP),4,FALSE) -> 9916424.125 | W70: 19832848.25 | Y70: Evaporator | AA70: 4/10/13 - Pricing based on 2013 vendor quote
A71: F | B71: 300A | C71: Enzymatic Hydrolysis Reactor | F71: 1,000,000 gallon ea | H71: 304SS | I71: YES | J71: 12 | K71: =J71*844000 -> 10128000 | L71: 2009 | M71: 10128000 | N71: inumsscf | O71: 12 | P71: ea | Q71: 1 | R71: 1.5 | S71: 6 | T71: 0.5 | U71: =M71*T71^Q71 -> 5064000 | V71: =U71*VLOOKUP(DCFROR!$B$34,INDIRECT(IX_CAP),4,FALSE)/VLOOKUP(L71,INDIRECT(IX_CAP),4,FALSE) -> 5589903.047 | W71: 8384854.57 | Y71: Tank, field-erected, SS | Z71: Sacccharification | AA71: 4/2/13 - Pricing scaled based on quantity
A72: H | B72: 301 | C72: Hydrolyzate Cooler | D72: Fox Engineering | E72: Size 54-240 | F72: Plate & Frame 32.5 MMBtu/hr | H72: SS 304 | I72: YES | J72: 1 | K72: 85000 | L72: 2010 | M72: 85000 | N72: heat.a300.qc301 | O72: 8.2 | P72: Gcal/hr | Q72: 0.7 | R72: 2.2 | S72: 2 | T72: 0.243902439 | U72: =M72*T72^Q72 -> 31657.03424 | V72: =U72*VLOOKUP(DCFROR!$B$34,INDIRECT(IX_CAP),4,FALSE)/VLOOKUP(L72,INDIRECT(IX_CAP),4,FALSE) -> 33111.14275 | W72: 72844.51406 | Y72: Heat Ex, S&T, SS
A73: P | B73: 306A | C73: Hydrolyzate Storage Transfer Pump | D73: Goulds | E73: 3196; 6X8-15 | F73: 2152 GPM, 171 FT TDH | G73: 125 hp | H73: 316SS | I73: HGI database | J73: 1 | K73: 26800 | L73: 2009 | M73: =K73 -> 26800 | N73: strm.a300.306b | O73: 488719 | P73: kg/hr | Q73: 0.8 | R73: 2.3 | S73: =IF(N73<>"",VLOOKUP(N73,INDIRECT(LU_SENS),2,FALSE),"") -> 335916.195 | T73: =S73/O73 -> 0.6873401587 | U73: =M73*T73^Q73 -> 19855.10413 | V73: =U73*VLOOKUP(DCFROR!$B$34,INDIRECT(IX_CAP),4,FALSE)/VLOOKUP(L73,INDIRECT(IX_CAP),4,FALSE) -> 21917.08276 | W73: =V73*R73 -> 50409.29034 | Y73: Pump, SS | Z73: density 1.0 | AA73: 3/18/13 - Pricing scaled based on flowrate
A74: P | B74: 310 | C74: Saccharification Transfer Pump | D74: Goulds | E74: 3196; 2X3-13 | F74: 352 GPM, 150 FT TDH | G74: 20 | H74: 316SS | I74: HGI database | J74: 5 | K74: 47200 | L74: 2009 | M74: 47200 | N74: strm.a300.306 | O74: 421776 | P74: kg/hr | Q74: 0.8 | R74: 2.3 | S74: =IF(N74<>"",VLOOKUP(N74,INDIRECT(LU_SENS),2,FALSE),"") -> 335916.195 | T74: 0.7964326918 | U74: =M74*T74^Q74 -> 39342.43731 | V74: =U74*VLOOKUP(DCFROR!$B$34,INDIRECT(IX_CAP),4,FALSE)/VLOOKUP(L74,INDIRECT(IX_CAP),4,FALSE) -> 43428.20106 | W74: 99884.86244 | Y74: Pump, SS
A75: S | B75: 205 | C75: Lignin Filter (after enzymatic hydrolysis) | F75: (4) 170 m2 Horizontal Belt Filters | G75: 660 hp ea | H75: 304SS | J75: =ROUNDUP(S75/VLOOKUP("memcap",INDIRECT(LU_SENS),2,FALSE)/170,0) -> 5 | K75: =ROUND(2100000*4*1.025, -3)/4 -> 2152500 | L75: 2013 | M75: =K75 -> 2152500 | N75: scis.a300.306B | O75: 328984 | P75: kg/hr | Q75: 1 | R75: 1.7 | S75: 15835.4547 | T75: 1 | U75: =M75*T75^Q75*J75 -> 10762500 | V75: =U75*VLOOKUP(DCFROR!$B$34,INDIRECT(IX_CAP),4,FALSE)/VLOOKUP(L75,INDIRECT(IX_CAP),4,FALSE) -> 10929448.7 | W75: =V75*R75 -> 18580062.8 | Y75: solids handling | AA75: l
A76: T | B76: 305 | C76: Filtered Hydrolysate Storage Tank | F76: 30,000 gallons - 20 min residence time | G76: 20 hp | H76: SS | J76: 1 | K76: =43000*1.2 -> 51600 | L76: 2011 | M76: 51600 | N76: strm.a300.306a | O76: 348690 | P76: kg/hr | Q76: 0.7 | R76: 1.8 | S76: 449348.175 | T76: =S76/O76 -> 1.288675256 | U76: =M76*T76^Q76 -> 61624.03683 | V76: =U76*VLOOKUP(DCFROR!$B$34,INDIRECT(IX_CAP),4,FALSE)/VLOOKUP(L76,INDIRECT(IX_CAP),4,FALSE) -> 60613.9792 | W76: 109105.1626 | Y76: Pressure vessel, SS | AA76: 3/18/13 - Pricing scaled based on flowrate. Includes 20% for pump/agitator
A77: T | B77: 306A | C77: Enzymatic Hydrolysis Storage Tank | F77: 1,200,000 gallon | H77: 316SS | J77: 1 | K77: 1317325 | L77: 2011 | M77: 1317325 | N77: strm.a300.306b | O77: 328984 | P77: kg/hr | Q77: 0.7 | R77: 1.8 | S77: 335916.195 | T77: 1.021071526 | U77: =M77*T77^Q77 -> 1336694.773 | V77: =U77*VLOOKUP(DCFROR!$B$34,INDIRECT(IX_CAP),4,FALSE)/VLOOKUP(L77,INDIRECT(IX_CAP),4,FALSE) -> 1314785.485 | W77: 2366613.873 | Y77: Pressure vessel, SS | AA77: 3/18/13 - Pricing scaled based on flowrate. Includes 20% for pump/agitator
A78: T | B78: 310 | C78: Saccharification Tank | D78: Caldwell | F78: 250,000 gal each - 19' dia. x 120' tall | H78: 304SS | I78: YES | J78: 8 | K78: 3840000 | L78: 2009 | M78: 3840000 | N78: strm.a300.306 | O78: 421776 | P78: kg/hr | Q78: 0.7 | R78: 2 | S78: 335916.195 | T78: 0.7964326918 | U78: =M78*T78^Q78 -> 3274429.01 | V78: =U78*VLOOKUP(DCFROR!$B$34,INDIRECT(IX_CAP),4,FALSE)/VLOOKUP(L78,INDIRECT(IX_CAP),4,FALSE) -> 3614482.761 | W78: 7228965.521 | Y78: Pressure vessel, SS
T79: Area 300 Totals | U79: =SUM(U67:U78) -> 30833201.63 | V79: =SUM(V67:V78) -> 32051920.74 | W79: =SUM(W67:W78) -> 57539925.12
A80: A400: Enzyme Production | F80: Mechanical Equipment List | L80: Scaled Installed Costs
A81: A | B81: 400 | C81: Cellulase Fermentor Agitators | D81: Lotus | G81: 800 | H81: SS316 | I81: YES | K81: 580000 | L81: 2009 | M81: =K81 -> 580000 | N81: CLVESSEL | O81: 1 | P81: ea | Q81: 1 | R81: 1.5 | S81: =IF(N81<>"",CEILING(VLOOKUP(N81,INDIRECT(LU_SENS),2,FALSE),1),"") -> 5 | T81: =S81/O81 -> 5 | U81: =M81*T81^Q81 -> 2900000 | V81: =U81*VLOOKUP(DCFROR!$B$34,INDIRECT(IX_CAP),4,FALSE)/VLOOKUP(L81,INDIRECT(IX_CAP),4,FALSE) -> 3201168.806 | W81: =V81*R81 -> 4801753.209 | Y81: Agitator, SS
A82: A | B82: 401 | C82: Cellulase Fermentor Agitators | D82: Lotus | G82: 0.75hp | H82: SS316 | I82: YES | K82: 3420 | L82: 2009 | M82: =K82 -> 3420 | N82: ICLSEED | O82: 1 | P82: ea | Q82: 1 | R82: 1.5 | S82: =IF(N82<>"",CEILING(VLOOKUP(N82,INDIRECT(LU_SENS),2,FALSE),1),"") -> 4 | T82: 4 | U82: 13680 | V82: =U82*VLOOKUP(DCFROR!$B$34,INDIRECT(IX_CAP),4,FALSE)/VLOOKUP(L82,INDIRECT(IX_CAP),4,FALSE) -> 15100.68596 | W82: 22651.02893 | Y82: Agitator, SS
A83: A | B83: 402 | C83: Cellulase Fermentor Agitators | D83: Lotus | G83: 8 hp | H83: SS316 | I83: YES | K83: 11000 | L83: 2009 | M83: 11000 | N83: ICLSEED | O83: 1 | P83: ea | Q83: 1 | R83: 1.5 | S83: =IF(N83<>"",CEILING(VLOOKUP(N83,INDIRECT(LU_SENS),2,FALSE),1),"") -> 4 | T83: 4 | U83: 44000 | V83: =U83*VLOOKUP(DCFROR!$B$34,INDIRECT(IX_CAP),4,FALSE)/VLOOKUP(L83,INDIRECT(IX_CAP),4,FALSE) -> 48569.45775 | W83: 72854.18663 | Y83: Agitator, SS
A84: A | B84: 403 | C84: Cellulase Fermentor Agitators | D84: Lotus | G84: 80 hp | H84: SS316 | I84: YES | K84: 63000 | L84: 2009 | M84: 63000 | N84: ICLSEED | O84: 1 | P84: ea | Q84: 1 | R84: 1.5 | S84: =IF(N84<>"",CEILING(VLOOKUP(N84,INDIRECT(LU_SENS),2,FALSE),1),"") -> 4 | T84: 4 | U84: 252000 | V84: =U84*VLOOKUP(DCFROR!$B$34,INDIRECT(IX_CAP),4,FALSE)/VLOOKUP(L84,INDIRECT(IX_CAP),4,FALSE) -> 278170.5308 | W84: 417255.7961 | Y84: Agitator, CS
A85: A | B85: 406 | C85: Cellulase Nutrient Mix Tank Agitator | D85: Lotus | G85: 3 hp | H85: CS | I85: YES | J85: 1 | K85: 4800 | L85: 2009 | M85: 4800 | N85: strm.a400.416 | O85: 174 | P85: kg/hr | Q85: 0.5 | R85: 1.6 | S85: =IF(N85<>"",VLOOKUP(N85,INDIRECT(LU_SENS),2,FALSE),"") -> 111.992484 | T85: 0.6436349655 | U85: 3850.889456 | V85: =U85*VLOOKUP(DCFROR!$B$34,INDIRECT(IX_CAP),4,FALSE)/VLOOKUP(L85,INDIRECT(IX_CAP),4,FALSE) -> 4250.809381 | W85: 6801.295009 | Y85: Pressure vessel, SS
A86: A | B86: 410 | C86: Cellulase Hold Tank Agitator | D86: Lotus | G86: 10 hp | H86: SS316 | I86: YES | J86: 1 | K86: 26900 | L86: 2009 | M86: 26900 | N86: strm.422 | O86: 10930 | P86: kg/hr | Q86: 0.5 | R86: 1.5 | S86: =IF(N86<>"",VLOOKUP(N86,INDIRECT(LU_SENS),2,FALSE),"") -> 6918.32341 | T86: 0.6329664602 | U86: 21401.42192 | V86: =U86*VLOOKUP(DCFROR!$B$34,INDIRECT(IX_CAP),4,FALSE)/VLOOKUP(L86,INDIRECT(IX_CAP),4,FALSE) -> 23623.98768 | W86: 35435.98152 | Y86: Skid equip
A87: F | B87: 400 | C87: Cellulase Fermentor | D87: Mueller | F87: 80,000 gal, 1 atm, 28 °C, Internal coil | H87: SS316 | I87: YES | K87: 400500 | L87: 2009 | M87: =K87 -> 400500 | N87: CLVESSEL | O87: 1 | P87: ea | Q87: 1 | R87: 2 | S87: =IF(N87<>"",CEILING(VLOOKUP(N87,INDIRECT(LU_SENS),2,FALSE),1),"") -> 5 | T87: 5 | U87: 2002500 | V87: =U87*VLOOKUP(DCFROR!$B$34,INDIRECT(IX_CAP),4,FALSE)/VLOOKUP(L87,INDIRECT(IX_CAP),4,FALSE) -> 2210462.253 | W87: 4420924.507 | Y87: Skid equip
A88: F | B88: 401 | C88: 1st Cellulase Seed Fermentor | D88: A&B Process | F88: 80 gallon skid complete - $46,000 ea | H88: 304SS | I88: YES | K88: 46000 | L88: 2009 | M88: 46000 | N88: ICLSEED | O88: 1 | P88: ea | Q88: 1 | R88: 1.8 | S88: =IF(N88<>"",CEILING(VLOOKUP(N88,INDIRECT(LU_SENS),2,FALSE),1),"") -> 4 | T88: 4 | U88: 184000 | V88: =U88*VLOOKUP(DCFROR!$B$34,INDIRECT(IX_CAP),4,FALSE)/VLOOKUP(L88,INDIRECT(IX_CAP),4,FALSE) -> 203108.6415 | W88: 365595.5547 | Y88: Skid equip
A89: F | B89: 402 | C89: 2nd Cellulase Seed Fermentor | D89: A&B Process | F89: 800 gallon skid complete - $57,500 ea | H89: 304SS | I89: YES | K89: 57500 | L89: 2009 | M89: 57500 | N89: ICLSEED | O89: 1 | P89: ea | Q89: 1 | R89: 1.8 | S89: =IF(N89<>"",CEILING(VLOOKUP(N89,INDIRECT(LU_SENS),2,FALSE),1),"") -> 4 | T89: 4 | U89: 230000 | V89: =U89*VLOOKUP(DCFROR!$B$34,INDIRECT(IX_CAP),4,FALSE)/VLOOKUP(L89,INDIRECT(IX_CAP),4,FALSE) -> 253885.8019 | W89: 456994.4434 | Y89: Skid equip
A90: F | B90: 403 | C90: 3rd Cellulase Seed Fermentor | D90: A&B Process | F90: 8,000 gallon skid complete - $95,400 ea | H90: 304SS | I90: YES | K90: 95400 | L90: 2009 | M90: 95400 | N90: ICLSEED | O90: 1 | P90: ea | Q90: 1 | R90: 1.8 | S90: =IF(N90<>"",CEILING(VLOOKUP(N90,INDIRECT(LU_SENS),2,FALSE),1),"") -> 4 | T90: 4 | U90: 381600 | V90: =U90*VLOOKUP(DCFROR!$B$34,INDIRECT(IX_CAP),4,FALSE)/VLOOKUP(L90,INDIRECT(IX_CAP),4,FALSE) -> 421229.6609 | W90: 758213.3895 | Y90: Skid equip
A91: H | B91: 400 | C91: Cellulase Fermentation Cooler | D91: Mueller | F91: Cooling coil included with Cellulase Fermenter | H91: 304SS | I91: YES | K91: INCLUDED
A92: H | B92: 405 | C92: Media Prep Tank Cooler | D92: Mueller | F92: Cooling coil included with Media Prep Tank | H92: 304SS | I92: YES | J92: 1 | K92: INCLUDED
A93: M | B93: 401 | C93: Fermenter Air Compressor Package | D93: Dresser Roots | E93: 2030 RAJ | F93: 8000 SCFM @ 16 psig | H93: CS | I93: YES | J93: 2 | K93: =175000*2 -> 350000 | L93: 2009 | M93: 350000 | N93: strm.a400.450 | O93: 33168 | P93: kg/hr | Q93: 0.6 | R93: 1.6 | S93: =IF(N93<>"",VLOOKUP(N93,INDIRECT(LU_SENS),2,FALSE),"") -> 16291.4144 | T93: 0.4911786782 | U93: =M93*T93^Q93 -> 228460.8288 | V93: =U93*VLOOKUP(DCFROR!$B$34,INDIRECT(IX_CAP),4,FALSE)/VLOOKUP(L93,INDIRECT(IX_CAP),4,FALSE) -> 252186.7857 | W93: 403498.8572 | Y93: Compressor, motor-driven | Z93: density 1.0
A94: P | B94: 400 | C94: Cellulase Transfer Pump | D94: Goulds | E94: 3196; 1.5X3-13 | F94: 59 gpm, 100 FT, TDH SIZE 2X1-10C | G94: 3 | H94: 316SS | I94: HGI database | J94: 1 | K94: 7357 | L94: 2010 | M94: 7357 | N94: strm.a400.420 | O94: =59*60*3.785 -> 13398.9 | P94: kg/hr | Q94: 0.8 | R94: 2.3 | S94: 6918.32341 | T94: 0.5163351775 | U94: 4335.56925 | V94: =U94*VLOOKUP(DCFROR!$B$34,INDIRECT(IX_CAP),4,FALSE)/VLOOKUP(L94,INDIRECT(IX_CAP),4,FALSE) -> 4534.715768 | W94: 10429.84627 | Y94: Pump, SS | Z94: density 1.0. increased # to 4
A95: P | B95: 401 | C95: Cellulase Seed Pump | D95: Goulds | E95: 3196; 2X3-8 | F95: 3 GPM, 100 FT TDH SIZE 2X1-10 | G95: 2 | H95: 316SS | I95: HGI database | J95: 4 | K95: =7493*4 -> 29972 | L95: 2010 | M95: 29972 | N95: strm.a400.409 | O95: =3*60*3.785 -> 681.3 | P95: kg/hr | Q95: 0.8 | R95: 2.3 | S95: 384.854873 | T95: 0.5648831249 | U95: 18979.4055 | V95: =U95*VLOOKUP(DCFROR!$B$34,INDIRECT(IX_CAP),4,FALSE)/VLOOKUP(L95,INDIRECT(IX_CAP),4,FALSE) -> 19851.1901 | W95: 45657.73724 | Y95: Pump, SS | Z95: density 1.0
A96: P | B96: 406 | C96: Cellulase Nutrient Transfer Pump | D96: Viking | F96: Gear Pump 2 GPM, 100 FT | G96: 0.5 | H96: 316SS | I96: HGI database | J96: 1 | K96: 1500 | L96: 2009 | M96: 1500 | N96: strm.a400.416 | O96: 454 | P96: kg/hr | Q96: 0.8 | R96: 2.3 | S96: 111.992484 | T96: 0.2466794802 | U96: 489.5507032 | V96: =U96*VLOOKUP(DCFROR!$B$34,INDIRECT(IX_CAP),4,FALSE)/VLOOKUP(L96,INDIRECT(IX_CAP),4,FALSE) -> 540.3911862 | W96: 1242.899728 | Y96: Pump, SS | Z96: quote incomplete, used P-400
A97: P | B97: 410 | C97: Cellulase Feed Pump | D97: Viking | F97: Gear Pump | G97: 1 | H97: 316SS | I97: HGI database | J97: 1 | K97: 1500 | L97: 2009 | M97: 5700 | N97: strm.a400.422 | O97: 18168 | P97: kg/hr | Q97: 0.8 | R97: 2.3 | S97: 6918.32341 | T97: =S97/O97 -> 0.3807971934 | U97: 2632.872611 | V97: =U97*VLOOKUP(DCFROR!$B$34,INDIRECT(IX_CAP),4,FALSE)/VLOOKUP(L97,INDIRECT(IX_CAP),4,FALSE) -> 2906.299888 | W97: =V97*R97 -> 6684.489742 | Y97: Pump, SS
A98: P | B98: 420 | C98: Anti-foam Pump | D98: Viking | F98: Gear Pump 2 GPM, 100 FT | G98: 1 | H98: 316SS | I98: HGI database | J98: 1 | K98: 1500 | L98: 2009 | M98: 1500 | N98: strm.a400.444 | O98: 10.6 | P98: kg/hr | Q98: 0.8 | R98: 2.3 | S98: 6.67896954 | T98: 0.630091466 | U98: 1036.607 | V98: =U98*VLOOKUP(DCFROR!$B$34,INDIRECT(IX_CAP),4,FALSE)/VLOOKUP(L98,INDIRECT(IX_CAP),4,FALSE) -> 1144.259997 | W98: 2631.797994 | Y98: Pump, SS
A99: T | B99: 406 | C99: Cellulase Nutrient Mix Tank | D99: Harrington | F99: HDPE, 8,000 gal | H99: HDPE | I99: HGI database | J99: 1 | K99: 9000 | L99: 2010 | M99: =K99 -> 9000 | N99: strm.a400.416 | O99: 224 | P99: kg/hr | Q99: 0.7 | R99: 3 | S99: =IF(N99<>"",VLOOKUP(N99,INDIRECT(LU_SENS),2,FALSE),"") -> 111.992484 | T99: 0.4999664464 | U99: =M99*T99^Q99 -> 5539.889609 | V99: =U99*VLOOKUP(DCFROR!$B$34,INDIRECT(IX_CAP),4,FALSE)/VLOOKUP(L99,INDIRECT(IX_CAP),4,FALSE) -> 5794.3544 | W99: 17383.0632 | Y99: Tank, storage, plastic
A100: T | B100: 410 | C100: Cellulase Hold Tank | D100: Mueller | F100: 80,000 gal | H100: 304SS | I100: YES | J100: 1 | K100: =273273*(80/94)^0.6 -> 248069.8617 | L100: 2009 | M100: =K100 -> 248069.8617 | N100: strm.a400.422 | O100: 10930 | P100: kg/hr | Q100: 0.7 | R100: 1.8 | S100: =IF(N100<>"",VLOOKUP(N100,INDIRECT(LU_SENS),2,FALSE),"") -> 6918.32341 | T100: 0.6329664602 | U100: =M100*T100^Q100 -> 180111.1061 | V100: =U100*VLOOKUP(DCFROR!$B$34,INDIRECT(IX_CAP),4,FALSE)/VLOOKUP(L100,INDIRECT(IX_CAP),4,FALSE) -> 198815.8808 | W100: 357868.5855 | Y100: Tank, storage, SS
T101: Area 400 Totals | U101: =SUM(U81:U100) -> 6474618.141 | V101: =SUM(V81:V100) -> 7145344.513 | W101: =SUM(W81:W100) -> 12203876.67
A102: A600: Wastewater | F102: Mechanical Equipment List | L102: Scaled Installed Costs
A103: T | B103: 606 | C103: Anaerobic System | D103: ADI | F103: (4) 27 MG reactors, 8 recycle pumps, 5 blowers, 8 mixers, 1 centrifuge | G103: 795 hp | H103: Concrete | J103: 4 | K103: =25800000 -> 25800000 | L103: 2012 | M103: =K103 -> 25800000 | N103: COD | O103: 27211 | P103: kg/hr | Q103: 0.6 | R103: 1.11 | S103: ='Operating Summaries'!$F$25 -> 17030.69642 | T103: =S103/O103 -> 0.6258754333 | U103: =M103*T103^Q103 -> 19476568.79 | V103: =U103*VLOOKUP(DCFROR!$B$34,INDIRECT(IX_CAP),4,FALSE)/VLOOKUP(L103,INDIRECT(IX_CAP),4,FALSE) -> 19193382.27 | W103: =V103*R103 -> 21304654.32
C104: Biogas Emergency Flare | D104: ADI | J104: 4 | K104: INCLUDED | L104: 2012 | M104: =K104 -> INCLUDED
A105: T | B105: 608 | C105: Aeration Basin | F105: Concrete and steel, not installed cost | H105: Concrete | J105: 3 | K105: =2240054+103200+64800+2500000 -> 4908054 | L105: 2012 | M105: =K105 -> 4908054 | N105: Hydraulic flow | O105: 2.7 | P105: MGD | Q105: 0.6 | R105: 2.07 | S105: ='Operating Summaries'!$F$23*60*24/10^6 -> 1.504180101 | T105: =S105/O105 -> 0.5571037409 | U105: =M105*T105^Q105 -> 3455182.387 | V105: =U105*VLOOKUP(DCFROR!$B$34,INDIRECT(IX_CAP),4,FALSE)/VLOOKUP(L105,INDIRECT(IX_CAP),4,FALSE) -> 3404944.531 | W105: =V105*R105 -> 7048235.18 | AA105: 4/22/13 - Added from B&C report recommendations - installation factor 2.07 assumed
C106: Pump - Submersible, Anaerobic Feed | F106: 2500 gpm ea | G106: 15 hp ea | H106: CS | J106: 2 | K106: INCLUDED | L106: 2012 | M106: INCLUDED | AA106: 4/22/13 - Added from B&C report recommendations
C107: Pump - Centrifugal, Aeration Basin Feed | F107: 852 gpm ea | G107: 45 hp | H107: CS | J107: 4 | K107: INCLUDED | L107: 2012 | M107: INCLUDED | AA107: 4/22/13 - Added from B&C report recommendations
C108: Aeration Grid | D108: Sanitaire | F108: Full floor aeration grid | H108: CS | J108: 1 | K108: INCLUDED | L108: 2012 | M108: INCLUDED | AA108: 4/22/13 - Added from B&C report recommendations
C109: Caustic Feed System | G109: 1.5 hp | H109: CS | J109: 4 | K109: 20000 | L109: 2012 | M109: 20000 | N109: COD | O109: 27211 | P109: kg/hr | Q109: 0.6 | R109: 3 | S109: ='Operating Summaries'!$F$25 -> 17030.69642 | T109: =S109/O109 -> 0.6258754333 | U109: =M109*T109^Q109 -> 15098.11534 | V109: =U109*VLOOKUP(DCFROR!$B$34,INDIRECT(IX_CAP),4,FALSE)/VLOOKUP(L109,INDIRECT(IX_CAP),4,FALSE) -> 14878.59091 | W109: =V109*R109 -> 44635.77273 | AA109: 4/22/13 - Added from B&C report recommendations
C110: Blowers | D110: Turblex | F110: 15000 SCFM @ 10.3psig ea | G110: 1000 hp ea | H110: CS | J110: 9 | K110: 2070000 | L110: 2012 | M110: 2070000 | N110: COD | O110: 27211 | P110: kg/hr | Q110: 0.6 | R110: 2 | S110: ='Operating Summaries'!$F$25 -> 17030.69642 | T110: =S110/O110 -> 0.6258754333 | U110: =M110*T110^Q110 -> 1562654.937 | V110: =U110*VLOOKUP(DCFROR!$B$34,INDIRECT(IX_CAP),4,FALSE)/VLOOKUP(L110,INDIRECT(IX_CAP),4,FALSE) -> 1539934.159 | W110: =V110*R110 -> 3079868.318 | AA110: 4/22/13 - Added from B&C report recommendations
C111: Surface Aerators | D111: Aqua Aerobic | G111: 100 hp ea | H111: CS | J111: 3 | K111: 150000 | L111: 2012 | M111: =K111 -> 150000 | N111: Hydraulic flow | O111: 2.7 | P111: MGD | Q111: 0.6 | R111: 2.67 | S111: ='Operating Summaries'!$F$23*60*24/10^6 -> 1.504180101 | T111: =S111/O111 -> 0.5571037409 | U111: =M111*T111^Q111 -> 105597.3219 | V111: =U111*VLOOKUP(DCFROR!$B$34,INDIRECT(IX_CAP),4,FALSE)/VLOOKUP(L111,INDIRECT(IX_CAP),4,FALSE) -> 104061.952 | W111: =V111*R111 -> 277845.4118 | AA111: 4/22/13 - Added from B&C report recommendations
A112: R | B112: 609 | C112: Membrane Bioreactor | D112: GE (ZeeWeed) | F112: Includes membrane, CIP, Scour system | G112: 85 hp ea | H112: CS | J112: 1 | K112: =4750000+148500 -> 4898500 | L112: 2012 | M112: =K112 -> 4898500 | N112: Hydraulic flow | O112: 2.7 | P112: MGD | Q112: 1 | R112: 1.64 | S112: ='Operating Summaries'!$F$23*60*24/10^6 -> 1.504180101 | T112: =S112/O112 -> 0.5571037409 | U112: =M112*T112^Q112 -> 2728972.675 | V112: =U112*VLOOKUP(DCFROR!$B$34,INDIRECT(IX_CAP),4,FALSE)/VLOOKUP(L112,INDIRECT(IX_CAP),4,FALSE) -> 2689293.804 | W112: =V112*R112 -> 4410441.839 | AA112: 4/22/13 - Added from B&C report recommendations
C113: Pump, Centrifugal , MBR, RAS | G113: 160 hp | H113: CS | J113: 6 | K113: INCLUDED | L113: 2012 | M113: INCLUDED | AA113: 4/22/13 - Added from B&C report recommendations
A114: S | B114: 612 | C114: Gravity Belt Thickeners | D114: Ashbrook | F114: 2m presses | G114: 48hp | H114: CS | J114: 3 | K114: 750000 | L114: 2012 | M114: 750000 | N114: COD | O114: 27211 | P114: kg/hr | Q114: 0.6 | R114: 1.59 | S114: ='Operating Summaries'!$F$25 -> 17030.69642 | T114: =S114/O114 -> 0.6258754333 | U114: =M114*T114^Q114 -> 566179.3252 | V114: =U114*VLOOKUP(DCFROR!$B$34,INDIRECT(IX_CAP),4,FALSE)/VLOOKUP(L114,INDIRECT(IX_CAP),4,FALSE) -> 557947.1591 | W114: =V114*R114 -> 887135.983 | AA114: 4/22/13 - Added from B&C report recommendations
A115: S | B115: 611 | C115: Centrifuge | D115: Centrisys | G115: 165 hp ea | H115: CS | J115: 1 | K115: =557000+51600+61200+17000 -> 686800 | L115: 2012 | M115: 686800 | N115: COD | O115: 27211 | P115: kg/hr | Q115: 0.6 | R115: 2.69 | S115: ='Operating Summaries'!$F$25 -> 17030.69642 | T115: =S115/O115 -> 0.6258754333 | U115: =M115*T115^Q115 -> 518469.2807 | V115: =U115*VLOOKUP(DCFROR!$B$34,INDIRECT(IX_CAP),4,FALSE)/VLOOKUP(L115,INDIRECT(IX_CAP),4,FALSE) -> 510930.8119 | W115: =V115*R115 -> 1374403.884 | AA115: 4/22/13 - Added from B&C report recommendations
C116: Pump, Centrifugal, Centrifuge Feed | F116: 105 gpm | G116: 15hp | H116: CS | J116: 2 | K116: INCLUDED | L116: 2012 | M116: INCLUDED | AA116: 4/22/13 - Added from B&C report recommendations
C117: Pump, Submersible, Centrate | F117: 100 gpm | G117: 10 hp ea | H117: CS | J117: 2 | K117: INCLUDED | L117: 2012 | M117: INCLUDED | AA117: 4/22/13 - Added from B&C report recommendations
C118: Dewatering Polymer Addition | D118: Vessco | F118: 9.8 gph neat polymer | G118: 1 hp ea | H118: CS | J118: 2 | K118: INCLUDED | L118: 2012 | M118: INCLUDED | AA118: 4/22/13 - Added from B&C report recommendations
C119: Conveyor | G119: 10 hp ea | H119: CS | J119: 1 | K119: 7000 | L119: 2012 | M119: 7000 | N119: COD | O119: 27211 | P119: kg/hr | Q119: 0.6 | R119: 2.86 | S119: ='Operating Summaries'!$F$25 -> 17030.69642 | T119: =S119/O119 -> 0.6258754333 | U119: =M119*T119^Q119 -> 5284.340368 | V119: =U119*VLOOKUP(DCFROR!$B$34,INDIRECT(IX_CAP),4,FALSE)/VLOOKUP(L119,INDIRECT(IX_CAP),4,FALSE) -> 5207.506819 | W119: =V119*R119 -> 14893.4695 | AA119: 4/22/13 - Added from B&C report recommendations
A120: S | B120: 610 | C120: Reverse Osmosis | D120: GE | H120: CS | J120: 7 | K120: 2450000 | L120: 2012 | M120: 2450000 | N120: Hydraulic flow | O120: 2.7 | P120: MGD | Q120: 1 | R120: 1.75 | S120: ='Operating Summaries'!$F$23*60*24/10^6 -> 1.504180101 | T120: =S120/O120 -> 0.5571037409 | U120: =M120*T120^Q120 -> 1364904.165 | V120: =U120*VLOOKUP(DCFROR!$B$34,INDIRECT(IX_CAP),4,FALSE)/VLOOKUP(L120,INDIRECT(IX_CAP),4,FALSE) -> 1345058.655 | W120: =V120*R120 -> 2353852.646 | AA120: 4/22/13 - Added from B&C report recommendations
A121: M | B121: 640 | C121: Evaporator | D121: GE | F121: 368 gpm | G121: 1480 hp ea | H121: Titanium | J121: 1 | K121: 5000000 | L121: 2012 | M121: 5000000 | N121: Hydraulic flow | O121: 2.7 | P121: MGD | Q121: 0.6 | R121: 1.61 | S121: ='Operating Summaries'!$F$23*60*24/10^6 -> 1.504180101 | T121: =S121/O121 -> 0.5571037409 | U121: =M121*T121^Q121 -> 3519910.729 | V121: =U121*VLOOKUP(DCFROR!$B$34,INDIRECT(IX_CAP),4,FALSE)/VLOOKUP(L121,INDIRECT(IX_CAP),4,FALSE) -> 3468731.733 | W121: =V121*R121 -> 5584658.09 | AA121: 4/22/13 - Added from B&C report recommendations
C122: Ammonia Addition System | F122: 0.63 gpm | G122: 4.5 hp | H122: CS | J122: 4 | K122: 195200 | L122: 2012 | M122: 195200 | N122: COD | O122: 27211 | P122: kg/hr | Q122: 0.6 | R122: 1.54 | S122: ='Operating Summaries'!$F$25 -> 17030.69642 | T122: =S122/O122 -> 0.6258754333 | U122: =M122*T122^Q122 -> 147357.6057 | V122: =U122*VLOOKUP(DCFROR!$B$34,INDIRECT(IX_CAP),4,FALSE)/VLOOKUP(L122,INDIRECT(IX_CAP),4,FALSE) -> 145215.0473 | W122: =V122*R122 -> 223631.1728 | Y122: in line mixer | AA122: 4/22/13 - Added from B&C report recommendations
T123: Area 600 Totals | U123: =SUM(U103:U122) -> 33466179.67 | V123: =SUM(V103:V122) -> 32979586.23 | W123: =SUM(W103:W122) -> 46604256.09
A124: A700: Storage | F124: Mechanical Equipment List | L124: Scaled Installed Costs
A125: A | B125: 720 | C125: CSL Storage Tank Agitator | D125: Lotus | G125: 10 hp | H125: SS304 | I125: YES | J125: 1 | K125: 21200 | L125: 2009 | M125: =K125 -> 21200 | N125: strm.735 | O125: 1393 | P125: kg/hr | Q125: 0.5 | R125: 1.5 | S125: =IF(N125<>"",VLOOKUP(N125,INDIRECT(LU_SENS),2,FALSE),"") -> 82.246535 | T125: =S125/O125 -> 0.05904273869 | U125: =M125*T125^Q125 -> 5151.326866 | V125: =U125*VLOOKUP(DCFROR!$B$34,INDIRECT(IX_CAP),4,FALSE)/VLOOKUP(L125,INDIRECT(IX_CAP),4,FALSE) -> 5686.298922 | W125: =V125*R125 -> 8529.448383 | Y125: Agitator, SS
A126: A | B126: 760 | C126: DAP Make-up Tank Agitator | D126: Lotus | G126: 5.5 hp | H126: SS304 | I126: YES | J126: 1 | K126: 9800 | L126: 2009 | M126: 9800 | N126: strm.755 | O126: 163 | P126: kg/hr | Q126: 0.5 | R126: 1.5 | S126: =IFERROR(VLOOKUP(N126,INDIRECT(LU_SENS),2,FALSE),0) -> 0 | T126: 0 | U126: 0 | V126: =U126*VLOOKUP(DCFROR!$B$34,INDIRECT(IX_CAP),4,FALSE)/VLOOKUP(L126,INDIRECT(IX_CAP),4,FALSE) -> 0 | W126: 0 | Y126: Agitator, SS
A127: C | B127: 755 | C127: DAP Bulk Bag Unloader | D127: Flexicon | F127: Super sack unloader | I127: HGI database | J127: 1 | K127: 30000 | L127: 2009 | M127: 30000 | N127: strm.755 | O127: 163 | P127: kg/hr | Q127: 0.6 | R127: 1.7 | S127: =IFERROR(VLOOKUP(N127,INDIRECT(LU_SENS),2,FALSE),0) -> 0 | T127: 0 | U127: 0 | V127: =U127*VLOOKUP(DCFROR!$B$34,INDIRECT(IX_CAP),4,FALSE)/VLOOKUP(L127,INDIRECT(IX_CAP),4,FALSE) -> 0 | W127: 0 | Y127: solids handling | Z127: density 1.8
A128: P | B128: 701 | C128: Product Pump | D128: Goulds | E128: 3196; 1.5X3-10 | F128: 150 GPM, 112 FT TDH | G128: 5 | H128: CS | I128: HGI database | J128: 2 | K128: 9200 | L128: 2009 | M128: 9200 | N128: strm.703 | O128: 22681 | P128: kg/hr | Q128: 0.8 | R128: 3.1 | S128: =IF(N128<>"",VLOOKUP(N128,INDIRECT(LU_SENS),2,FALSE),"") -> 102041.92 | T128: 4.499004453 | U128: 30639.45004 | V128: =U128*VLOOKUP(DCFROR!$B$34,INDIRECT(IX_CAP),4,FALSE)/VLOOKUP(L128,INDIRECT(IX_CAP),4,FALSE) -> 33821.39715 | W128: 104846.3312 | Y128: pump, CS
A129: P | B129: 703 | C129: Sulfuric Acid Pump | D129: Goulds | E129: 3196LF 1X1.5-8 | F129: 5 GPM, 150 FT TDH SIZE 2X1-10 | G129: 0.5 | H129: SS316 | I129: HGI database | J129: 1 | K129: 7493 | L129: 2010 | M129: 7493 | N129: strm.710 | O129: 1981 | P129: kg/hr | Q129: 0.8 | R129: 2.3 | S129: 2240.23928 | T129: 1.130862837 | U129: 8267.680371 | V129: =U129*VLOOKUP(DCFROR!$B$34,INDIRECT(IX_CAP),4,FALSE)/VLOOKUP(L129,INDIRECT(IX_CAP),4,FALSE) -> 8647.441288 | W129: 19889.11496 | Y129: Pump, SS
A130: P | B130: 704 | C130: Firewater Pump | D130: Goulds | E130: 3175; 8x10-14AI | F130: 2500 GPM, 150 FT TDH | G130: 125 | H130: CS | I130: HGI database | J130: 1 | K130: 15000 | L130: 2009 | M130: 15000 | N130: strm.a700.713 | O130: 8343 | P130: kg/hr | Q130: 0.8 | R130: 3.1 | S130: 37503.5915 | T130: 4.495216529 | U130: 49921.97424 | V130: =U130*VLOOKUP(DCFROR!$B$34,INDIRECT(IX_CAP),4,FALSE)/VLOOKUP(L130,INDIRECT(IX_CAP),4,FALSE) -> 55106.43679 | W130: 170829.954 | Y130: pump, CS
A131: P | B131: 720 | C131: CSL Pump | D131: Goulds | F131: 8 GPM, 80 FT TDH | G131: 0.5 | H131: CS | I131: HGI database | J131: 1 | K131: 3000 | L131: 2009 | M131: 3000 | N131: strm.735 | O131: 1393 | P131: kg/hr | Q131: 0.8 | R131: 3.1 | S131: 82.246535 | T131: 0.05904273869 | U131: 311.9280641 | V131: =U131*VLOOKUP(DCFROR!$B$34,INDIRECT(IX_CAP),4,FALSE)/VLOOKUP(L131,INDIRECT(IX_CAP),4,FALSE) -> 344.322203 | W131: 1067.398829 | Y131: pump, CS
A132: P | B132: 760 | C132: DAP Pump | D132: Goulds | F132: 2 GPM, 100 FT TDH | G132: 0.5 | H132: CS | I132: HGI database | J132: 1 | K132: 3000 | L132: 2009 | M132: 3000 | N132: strm.755 | O132: 163 | P132: kg/hr | Q132: 0.8 | R132: 3.1 | S132: =IFERROR(VLOOKUP(N132,INDIRECT(LU_SENS),2,FALSE),0) -> 0 | T132: 0 | U132: 0 | V132: =U132*VLOOKUP(DCFROR!$B$34,INDIRECT(IX_CAP),4,FALSE)/VLOOKUP(L132,INDIRECT(IX_CAP),4,FALSE) -> 0 | W132: 0 | Y132: pump, CS
A133: T | B133: 701 | C133: Product Storage Tank | D133: Mueller | F133: 750,000 gal., 1 day storage, Floating roof | H133: A285C | I133: YES | J133: 1 | K133: =1340000/2 -> 670000 | L133: 2009 | M133: 670000 | N133: strm.703 | O133: =22681/2 -> 11340.5 | P133: kg/hr | Q133: 0.7 | R133: 1.7 | S133: =IF(DCFROR!B35="concentrated",VLOOKUP(N133,INDIRECT(LU_SENS),2,FALSE),VLOOKUP(N76,INDIRECT(LU_SENS),2,FALSE)) -> 102041.92 | T133: 8.998008906 | U133: =M133*T133^Q133 -> 3118726.538 | V133: =U133*VLOOKUP(DCFROR!$B$34,INDIRECT(IX_CAP),4,FALSE)/VLOOKUP(L133,INDIRECT(IX_CAP),4,FALSE) -> 3442610.382 | W133: =V133*R133 -> 5852437.65 | Y133: tank, field-erected, CS
A134: T | B134: 703 | C134: Sulfuric Acid Storage Tank | F134: 12,600 gal, 12' dia x15' H | H134: SS | I134: HGI database | J134: 1 | K134: 96000 | L134: 2010 | M134: 96000 | N134: strm.710 | O134: 1981 | P134: kg/hr | Q134: 0.7 | R134: 1.5 | S134: 2240.23928 | T134: 1.130862837 | U134: 104630.4723 | V134: =U134*VLOOKUP(DCFROR!$B$34,INDIRECT(IX_CAP),4,FALSE)/VLOOKUP(L134,INDIRECT(IX_CAP),4,FALSE) -> 109436.4834 | W134: 164154.7252 | Y134: tank, field-erected, SS
C135: Caustic Storage Tank | F135: =F134 -> 12,600 gal, 12' dia x15' H | H135: =H134 -> SS | J135: 1 | K135: =K134 -> 96000 | L135: 2011 | M135: =K135 -> 96000 | N135: strm.a200.2 | O135: 1981 | P135: kg/hr | Q135: 0.7 | R135: 1.5 | S135: 1416.66667 | T135: 0.7151270419 | U135: =M135*T135^Q135 -> 75917.07618 | V135: =U135*VLOOKUP(DCFROR!$B$34,INDIRECT(IX_CAP),4,FALSE)/VLOOKUP(L135,INDIRECT(IX_CAP),4,FALSE) -> 74672.74644 | W135: =V135*R135 -> 112009.1197 | Y135: tank, field-erected, SS
A136: T | B136: 704 | C136: Firewater Storage Tank | F136: 600,000 gal - 4 hrs @ 2500 gpm | H136: Glass lined | I136: HGI database | J136: 1 | K136: 803000 | L136: 2009 | M136: 803000 | N136: strm.a700.713 | O136: 8343 | P136: kg/hr | Q136: 0.7 | R136: 1.7 | S136: 37503.5915 | T136: 4.495216529 | U136: 2299540.043 | V136: =U136*VLOOKUP(DCFROR!$B$34,INDIRECT(IX_CAP),4,FALSE)/VLOOKUP(L136,INDIRECT(IX_CAP),4,FALSE) -> 2538350.294 | W136: 4315195.5 | Y136: tank, field-erected, CS
A137: T | B137: 706 | C137: Ammonia Storage Tank | D137: Chemithon | F137: 28,000 gal | H137: SA- 516-70 | I137: YES | J137: 2 | K137: 196000 | L137: 2010 | M137: 196000 | N137: strm.717 | O137: 1171 | P137: kg/hr | Q137: 0.7 | R137: 2 | S137: 367.291904 | T137: 0.3136566217 | U137: 87051.08604 | V137: =U137*VLOOKUP(DCFROR!$B$34,INDIRECT(IX_CAP),4,FALSE)/VLOOKUP(L137,INDIRECT(IX_CAP),4,FALSE) -> 91049.61995 | W137: 182099.2399 | Y137: pressure vessel, SS
A138: T | B138: 720 | C138: CSL Storage Tank | F138: 70,000 gal | H138: Glass lined CS | I138: HGI database | J138: 1 | K138: 70000 | L138: 2009 | M138: 70000 | N138: strm.735 | O138: 1393 | P138: kg/hr | Q138: 0.7 | R138: 2.6 | S138: 82.246535 | T138: 0.05904273869 | U138: 9658.609011 | V138: =U138*VLOOKUP(DCFROR!$B$34,INDIRECT(IX_CAP),4,FALSE)/VLOOKUP(L138,INDIRECT(IX_CAP),4,FALSE) -> 10661.66823 | W138: 27720.33741 | Y138: tank, storage, CS
C139: Glucose Storage Tank | F139: =F138 -> 70,000 gal | H139: =H138 -> Glass lined CS | I139: =I138 -> HGI database | J139: 1 | K139: 70000 | L139: 2009 | M139: 70000 | N139: strm.a400.401 | O139: =O138 -> 1393 | P139: kg/hr | Q139: 0.7 | R139: 2.6 | S139: 1422.33257 | T139: =S139/O139 -> 1.021057121 | U139: =M139*T139^Q139 -> 71028.56932 | V139: =U139*VLOOKUP(DCFROR!$B$34,INDIRECT(IX_CAP),4,FALSE)/VLOOKUP(L139,INDIRECT(IX_CAP),4,FALSE) -> 78404.97947 | W139: =V139*R139 -> 203852.9466 | Y139: tank, storage, CS
A140: T | B140: 755 | C140: DAP Bulk Bag Holder | D140: Flexicon | F140: Super sack holder | I140: HGI database | J140: 1 | K140: INCLUDED
A141: T | B141: 760 | C141: DAP Make-up Tank | F141: 12,800 gal | H141: SS304 | I141: HGI database | J141: 1 | K141: 102000 | L141: 2009 | M141: =K141 -> 102000 | N141: strm.755 | O141: 1615 | P141: kg/hr | Q141: 0.7 | R141: 1.8 | S141: =IFERROR(VLOOKUP(N141,INDIRECT(LU_SENS),2,FALSE),0) -> 0 | T141: 0 | U141: =M141*T141^Q141 -> 0 | V141: =U141*VLOOKUP(DCFROR!$B$34,INDIRECT(IX_CAP),4,FALSE)/VLOOKUP(L141,INDIRECT(IX_CAP),4,FALSE) -> 0 | W141: 0 | Y141: tank, storage, SS
T142: Area 700 Totals | U142: =SUM(U125:U141) -> 5860844.753 | V142: =SUM(V125:V141) -> 6448792.07 | W142: =SUM(W125:W141) -> 11162631.77
A143: A800: Boiler | F143: Mechanical Equipment List | L143: Scaled Installed Costs
A144: H | B144: 801 | C144: Burner Combustion Air Preheater | F144: INCLUDED | I144: BOILER MFR | J144: 1 | K144: INCLUDED | Y144: Heat ex, S&T, SS
A145: H | B145: 811 | C145: BFW Preheater | F145: INCLUDED | I145: BOILER MFR | J145: 1 | K145: INCLUDED | Y145: Heat ex, S&T, SS
A146: H | B146: 812 | C146: Pretreatment/BFW heat recovery | D146: Mueller | F146: 9.4 MM Btu/hr | H146: SS304 | I146: HGI database | J146: 1 | K146: 41000 | L146: 2009 | M146: =K146 -> 41000 | N146: heat.QH812 | O146: 2.4 | P146: Gcal/hr | Q146: 0.7 | R146: 2.2 | S146: =IF(N146<>"",VLOOKUP(N146,INDIRECT(LU_SENS),2,FALSE),"") -> 1 | T146: =S146/O146 -> 0.4166666667 | U146: =M146*T146^Q146 -> 22214.4716 | V146: =U146*VLOOKUP(DCFROR!$B$34,INDIRECT(IX_CAP),4,FALSE)/VLOOKUP(L146,INDIRECT(IX_CAP),4,FALSE) -> 24521.47364 | W146: =V146*R146 -> 53947.242 | Y146: Heat ex, S&T, SS
A147: M | B147: 802 | C147: Air Intake Fan | F147: INCLUDED | K147: INCLUDED | Y147: boiler
A148: M | B148: 803 | C148: Boiler | E148: TowerPak | F148: 525,000 lb/hr @ 900 psig | H148: CS | I148: BOILER MFR | J148: 1 | K148: =28550000 -> 28550000 | L148: 2010 | M148: 28550000 | N148: strm.a800.a810.812 | O148: 238203.074 | P148: kg/hr | Q148: 0.6 | R148: 1.8 | S148: =IF(N148<>"",VLOOKUP(N148,INDIRECT(LU_SENS),2,FALSE),"") -> 191203.086 | T148: =S148/O148 -> 0.8026894145 | U148: =M148*T148^Q148 -> 25022726.79 | V148: =U148*VLOOKUP(DCFROR!$B$34,INDIRECT(IX_CAP),4,FALSE)/VLOOKUP(L148,INDIRECT(IX_CAP),4,FALSE) -> 26172100.4 | W148: =V148*R148 -> 47109780.72 | Y148: boiler
A149: M | B149: 811 | C149: Turbine/Generator | D149: Siemens | E149: SST-300 | F149: 23.6 kW, 2 extractions | I149: YES | J149: 1 | K149: 9500000 | L149: 2010 | M149: 9500000 | N149: work.wtotal | O149: -42200 | P149: kW | Q149: 0.6 | R149: 1.8 | S149: =IF(N149<>"",VLOOKUP(N149,INDIRECT(LU_SENS),2,FALSE),"") -> -40885.4916 | T149: =S149/O149 -> 0.9688505118 | U149: =M149*T149^Q149 -> 9321325.4 | V149: =U149*VLOOKUP(DCFROR!$B$34,INDIRECT(IX_CAP),4,FALSE)/VLOOKUP(L149,INDIRECT(IX_CAP),4,FALSE) -> 9749483.593 | W149: =V149*R149 -> 17549070.47 | Y149: turbogenerator
A150: M | B150: 820 | C150: Hot Process Water Softener System | D150: Proctor Sales | I150: YES | J150: 1 | K150: 78000 | L150: 2010 | M150: 78000 | N150: strm.a800.a810.812 | O150: 235803 | P150: kg/hr | Q150: 0.6 | R150: 1.8 | S150: =IF(N150<>"",VLOOKUP(N150,INDIRECT(LU_SENS),2,FALSE),"") -> 191203.086 | T150: =S150/O150 -> 0.8108594293 | U150: =M150*T150^Q150 -> 68779.96421 | V150: =U150*VLOOKUP(DCFROR!$B$34,INDIRECT(IX_CAP),4,FALSE)/VLOOKUP(L150,INDIRECT(IX_CAP),4,FALSE) -> 71939.24725 | W150: =V150*R150 -> 129490.645 | Y150: skid equip
A151: M | B151: 830 | C151: Amine Addition Pkg. | D151: Proctor Sales | I151: YES | J151: 1 | K151: 40000 | L151: 2010 | M151: 40000 | N151: strm.a800.a810.812 | O151: 235803 | P151: kg/hr | Q151: 0 | R151: 1.8 | S151: =IF(N151<>"",VLOOKUP(N151,INDIRECT(LU_SENS),2,FALSE),"") -> 191203.086 | T151: =S151/O151 -> 0.8108594293 | U151: =M151*T151^Q151 -> 40000 | V151: =U151*VLOOKUP(DCFROR!$B$34,INDIRECT(IX_CAP),4,FALSE)/VLOOKUP(L151,INDIRECT(IX_CAP),4,FALSE) -> 41837.32752 | W151: =V151*R151 -> 75307.18954 | Y151: skid equip
A152: M | B152: 832 | C152: Ammonia Addition Pkg | D152: Proctor Sales | I152: YES | J152: 1 | K152: INCLUDED | Y152: skid equip
A153: M | B153: 834 | C153: Phosphate Addition Pkg. | D153: Proctor Sales | I153: YES | J153: 1 | K153: INCLUDED | Y153: skid equip
A154: P | B154: 804 | C154: Condensate Pump | D154: Proctor Sales | H154: SS316 | I154: YES | J154: 2 | K154: INCLUDED | Y154: Pump
A155: P | B155: 811 | C155: Turbine Condensate Pump | D155: Proctor Sales | H155: SS304 | I155: YES | J155: 2 | K155: INCLUDED | Y155: Pump
A156: P | B156: 824 | C156: Deaerator Feed Pump | D156: Proctor Sales | H156: SS304 | I156: YES | J156: 2 | K156: INCLUDED | Y156: Pump
A157: P | B157: 826 | C157: BFW Pump | D157: Proctor Sales | H157: SS316 | I157: YES | J157: 5 | K157: INCLUDED | Y157: Pump
A158: P | B158: 828 | C158: Blowdown Pump | D158: Proctor Sales | H158: CS | I158: YES | J158: 2 | K158: INCLUDED | Y158: Pump
A159: P | B159: 830 | C159: Amine Transfer Pump | D159: Proctor Sales | H159: CS | I159: YES | J159: 1 | K159: INCLUDED | Y159: Pump
A160: T | B160: 804 | C160: Condensate Collection Tank | D160: Proctor Sales | H160: A285C | I160: YES | J160: 1 | K160: INCLUDED | Y160: Tank
A161: T | B161: 824 | C161: Condensate Surge Drum | D161: Proctor Sales | H161: SS304 | I161: YES | J161: 1 | K161: INCLUDED
A162: T | B162: 826 | C162: Deaerator | D162: Proctor Sales | F162: Tray type | H162: CS;SS316 | I162: YES | J162: 1 | K162: 305000 | L162: 2010 | M162: =K162 -> 305000 | N162: strm.a800.a810.812 | O162: 235803 | P162: kg/hr | Q162: 0.6 | R162: 3 | S162: =IF(N162<>"",VLOOKUP(N162,INDIRECT(LU_SENS),2,FALSE),"") -> 191203.086 | T162: =S162/O162 -> 0.8108594293 | U162: =M162*T162^Q162 -> 268947.296 | V162: =U162*VLOOKUP(DCFROR!$B$34,INDIRECT(IX_CAP),4,FALSE)/VLOOKUP(L162,INDIRECT(IX_CAP),4,FALSE) -> 281300.9027 | W162: =V162*R162 -> 843902.7081 | Y162: skid equip
A163: T | B163: 828 | C163: Blowdown Flash Drum | D163: Proctor Sales | H163: CS | I163: YES | J163: 1 | K163: INCLUDED | Y163: Pressure Vessel
A164: T | B164: 830 | C164: Amine Drum | D164: Proctor Sales | H164: SS316 | I164: YES | J164: 1 | K164: INCLUDED | Y164: Pressure Vessel
T165: Area 800 Totals | U165: =SUM(U144:U164) -> 34743993.92 | V165: =SUM(V144:V164) -> 36341182.95 | W165: =SUM(W144:W164) -> 65761498.97
A166: A900: Utilities | F166: Mechanical Equipment List | L166: Scaled Installed Costs
A167: M | B167: 902 | C167: Cooling Tower System | D167: Marley SPX | F167: 44,200 gpm | G167: 750 hp | H167: FIBERGLASS | J167: 1 | K167: 1375000 | L167: 2010 | M167: =K167 -> 1375000 | N167: strm.a900.945 | O167: =44200*60*3.785 -> 10037820 | P167: kg/hr | Q167: 0.6 | R167: 1.5 | S167: =IF(N167<>"",VLOOKUP(N167,INDIRECT(LU_SENS),2,FALSE),"") -> 10939040.4 | T167: =S167/O167 -> 1.089782483 | U167: =M167*T167^Q167 -> 1447793.398 | V167: =U167*VLOOKUP(DCFROR!$B$34,INDIRECT(IX_CAP),4,FALSE)/VLOOKUP(L167,INDIRECT(IX_CAP),4,FALSE) -> 1514295.164 | W167: =V167*R167 -> 2271442.746 | Y167: cooling tower
A168: M | B168: 904 | C168: Plant Air Compressor | D168: Rogers Machinery | E168: QNW752 | F168: 400 SCFM@125 psig | G168: 150 hp | I168: HGI database | J168: 1 | K168: 28000 | L168: 2010 | M168: =K168 -> 28000 | N168: DRY101 | O168: 83333 | P168: kg/hr | Q168: 0.6 | R168: 1.6 | S168: 83333.3333 | T168: 1.000004 | U168: 28000.06719 | V168: =U168*VLOOKUP(DCFROR!$B$34,INDIRECT(IX_CAP),4,FALSE)/VLOOKUP(L168,INDIRECT(IX_CAP),4,FALSE) -> 29286.19955 | W168: 46857.91927 | Y168: compressor, motor-driven
A169: M | B169: 908 | C169: Chilled Water Package | D169: Trane | F169: 2 x 2350 tons (14.2 MM kcal/hr) | G169: 3400 hp | I169: HGI database | J169: 1 | K169: 1275750 | L169: 2010 | M169: =K169 -> 1275750 | N169: heat.a900.qchwop | O169: 14.2 | P169: Gcal/hr | Q169: 0.6 | R169: 1.6 | S169: 4.28738275 | T169: =S169/O169 -> 0.3019283627 | U169: 621881.9105 | V169: =U169*VLOOKUP(DCFROR!$B$34,INDIRECT(IX_CAP),4,FALSE)/VLOOKUP(L169,INDIRECT(IX_CAP),4,FALSE) -> 650446.9293 | W169: =V169*R169 -> 1040715.087 | Y169: compressor, motor-driven
A170: M | B170: 910 | C170: CIP System | F170: 100,000 GAL | H170: SS304/SS316 | I170: HGI database | J170: 1 | K170: 421000 | L170: 2009 | M170: =K170 -> 421000 | N170: strm.a900.914 | O170: 63 | P170: kg/hr | Q170: 0.6 | R170: 1.8 | S170: 145 | T170: 2.301587302 | U170: 694222.3119 | V170: =U170*VLOOKUP(DCFROR!$B$34,INDIRECT(IX_CAP),4,FALSE)/VLOOKUP(L170,INDIRECT(IX_CAP),4,FALSE) -> 766318.2101 | W170: 1379372.778 | Y170: Skid equip
A171: P | B171: 902 | C171: Cooling Water Pump | D171: Goulds | E171: 3175; 20X24-28 | F171: 16,120 GPM, 100 FT TDH SIZE 20X20-28 | G171: 500 | H171: CS | I171: HGI database | J171: 3 | K171: =94557*3 -> 283671 | L171: 2010 | M171: 283671 | N171: strm.a900.945 | O171: =16120*60*3.785*3 -> 10982556 | P171: kg/hr | Q171: 0.8 | R171: 3.1 | S171: 10939040.4 | T171: 0.996037753 | U171: 282771.4635 | V171: =U171*VLOOKUP(DCFROR!$B$34,INDIRECT(IX_CAP),4,FALSE)/VLOOKUP(L171,INDIRECT(IX_CAP),4,FALSE) -> 295760.0583 | W171: 916856.1808 | Y171: pump, CS
A172: P | B172: 912 | C172: Make-up Water Pump | D172: Goulds | E172: 3196; 4X6-10H | F172: 685 GPM, 75 FT TDH SIZE 6X4-13 | G172: 20 | H172: CS | I172: HGI database | J172: 1 | K172: 6864 | L172: 2010 | M172: 6864 | N172: strm.a900.904 | O172: =685*60*3.785 -> 155563.5 | P172: kg/hr | Q172: 0.8 | R172: 3.1 | S172: 414454.854 | T172: 2.664216568 | U172: 15032.55822 | V172: =U172*VLOOKUP(DCFROR!$B$34,INDIRECT(IX_CAP),4,FALSE)/VLOOKUP(L172,INDIRECT(IX_CAP),4,FALSE) -> 15723.05155 | W172: 48741.45979 | Y172: pump, CS
A173: P | B173: 914 | C173: Process Water Circulating Pump | D173: Goulds | E173: 3196; 3X4-13 | F173: 2285 GPM, 75 FT TDH SIZE 8X6-13 | G173: 75 | H173: CS | I173: HGI database | J173: 1 | K173: 15292 | L173: 2010 | M173: 15292 | N173: strm.a900.905 | O173: =2285*60*3.785 -> 518923.5 | P173: kg/hr | Q173: 0.8 | R173: 3.1 | S173: 761761.108 | T173: 1.467964176 | U173: 20789.14628 | V173: =U173*VLOOKUP(DCFROR!$B$34,INDIRECT(IX_CAP),4,FALSE)/VLOOKUP(L173,INDIRECT(IX_CAP),4,FALSE) -> 21744.05805 | W173: 67406.57994 | Y173: pump, CS
A174: S | B174: 904 | C174: Instrument Air Dryer | D174: Zeks | E174: 70HSF | F174: 670 SCFM - CYCLING TYPE | H174: CS | I174: HGI database | J174: 1 | K174: 15000 | L174: 2009 | M174: 15000 | N174: DRY101 | O174: 83333 | P174: kg/hr | Q174: 0.6 | R174: 1.8 | S174: 83333.3333 | T174: 1.000004 | U174: 15000.036 | V174: =U174*VLOOKUP(DCFROR!$B$34,INDIRECT(IX_CAP),4,FALSE)/VLOOKUP(L174,INDIRECT(IX_CAP),4,FALSE) -> 16557.80942 | W174: 29804.05696 | Y174: Skid equip
A175: T | B175: 904 | C175: Plant Air Receiver | D175: Rogers Machinery | F175: 3800 gal - 72" x 228" vertical | H175: CS | I175: HGI database | J175: 1 | K175: 16000 | L175: 2009 | M175: 16000 | N175: DRY101 | O175: 83333 | P175: kg/hr | Q175: 0.6 | R175: 3.1 | S175: 83333.3333 | T175: 1.000004 | U175: 16000.0384 | V175: =U175*VLOOKUP(DCFROR!$B$34,INDIRECT(IX_CAP),4,FALSE)/VLOOKUP(L175,INDIRECT(IX_CAP),4,FALSE) -> 17661.66338 | W175: 54751.15649 | Y175: pressure vessel, CS
A176: T | B176: 914 | C176: Process Water Tank No. 1 | F176: 250,000 gal | H176: CS | I176: HGI database | J176: 1 | K176: 250000 | L176: 2009 | M176: =K176 -> 250000 | N176: strm.a900.905 | O176: 451555 | P176: kg/hr | Q176: 0.7 | R176: 1.7 | S176: 761761.108 | T176: 1.686973033 | U176: 360508.6644 | V176: =U176*VLOOKUP(DCFROR!$B$34,INDIRECT(IX_CAP),4,FALSE)/VLOOKUP(L176,INDIRECT(IX_CAP),4,FALSE) -> 397947.9623 | W176: 676511.536 | Y176: tank, field-erected, CS
T177: Area 900 Totals | U177: =SUM(U167:U176) -> 3501999.594 | V177: =SUM(V167:V176) -> 3725741.106 | W177: =SUM(W167:W176) -> 6532459.5
A179: Grand Totals | T179: Grand Totals | U179: =ROUND(U177+U165+U142+U123+U101+U79+U65+U26, -3) -> 164722000 | V179: =ROUND(V177+V165+V142+V123+V101+V79+V65+V26, -3) -> 170635000 | W179: =ROUND(W177+W165+W142+W123+W101+W79+W65+W26, -3) -> 282127000

Sheet Operating Summaries
A1: Operating Summary
A2: Feedstock | E2: Conditioning | G2: Boiler/Turbogenerator
A3: Moisture Content | D3: =VLOOKUP("CMIX.H2O.101",INDIRECT(LU_SENS),2,FALSE)/(VLOOKUP("strm.101",INDIRECT(LU_SENS),2,FALSE)) -> 0.199999999 | E3: Ammonia Loading (g/L hydrolyzate) | F3: =VLOOKUP("amload",INDIRECT(LU_SENS),2,FALSE) -> 1.84596499 | G3: WWT sludge moisture % | H3: =VLOOKUP( "CMIX.H2O.A800.623", INDIRECT(LU_SENS), 2, FALSE ) / VLOOKUP( "STRM.A800.623", INDIRECT(LU_SENS), 2, FALSE ) -> 0.5987062141
A4: Pretreatment | E4: Enzyme Production | G4: Combined boiler feed moisture | H4: =VLOOKUP( "CMIX.H2O.A800.801", INDIRECT(LU_SENS), 2, FALSE ) /VLOOKUP( "STRM.A800.801", INDIRECT(LU_SENS), 2, FALSE ) -> 0.5823982311
A5: Acid Conc (wt%) | D5: =VLOOKUP( "CMIX.H2SO4.A200.217", INDIRECT(LU_SENS), 2, FALSE )/( VLOOKUP( "CMIX.H2SO4.A200.217", INDIRECT(LU_SENS), 2, FALSE ) + VLOOKUP( "CMIX.H2O.A200.217", INDIRECT(LU_SENS), 2, FALSE ))*100 -> 0.4213716818 | E5: Glucose feed (kg/hr) | F5: =VLOOKUP( "CMIX.glucose.A400.401", INDIRECT(LU_SENS), 2, FALSE ) -> 1208.98268 | G5: Steam loop flow (kg/hr) | H5: =VLOOKUP( "STRM.A800.a810.812", INDIRECT(LU_SENS), 2, FALSE ) -> 191203.086
A6: Acid Loading (mg/g dry biomass) | D6: =VLOOKUP( "CMIX.H2SO4.A200.217", INDIRECT(LU_SENS), 2, FALSE )/( VLOOKUP( "STRM.101", INDIRECT(LU_SENS), 2, FALSE ) - VLOOKUP( "CMIX.H2O.101", INDIRECT(LU_SENS), 2, FALSE ))*1000 -> 8.99999996 | E6: Protein produced (kg/hr) | F6: =VLOOKUP("ccis.enzyme.a400.420a",INDIRECT(LU_SENS),2,FALSE) -> 289.335114
A7: Total Solids (wt%) | D7: =(VLOOKUP("SOL254",INDIRECT(LU_SENS),2,FALSE)+VLOOKUP("SCIS.A200.254s",INDIRECT(LU_SENS),2,FALSE))/(VLOOKUP("STRM.A200.254s",INDIRECT(LU_SENS),2,FALSE)) -> 0.2998262013 | E7: Protein yield (kg/kg substrate) | F7: =F6/F5 -> 0.2393211406 | G7: Total Generator Output (kW) | H7: =VLOOKUP("work.wtotal",INDIRECT(LU_SENS),2,FALSE) -> -40885.4916
A8: Insoluble Solids in (wt%) | D8: =( VLOOKUP( "SCIS.A200.M207FD", INDIRECT(LU_SENS), 2, FALSE )) / ( VLOOKUP( "STRM.A200.M207FD", INDIRECT(LU_SENS), 2, FALSE ) ) -> 0.258144585 | E8: Protein harvest titer (g/L) | F8: =F6*1000/VLOOKUP("cmix.h2o.a400.420a",INDIRECT(LU_SENS),2,FALSE) -> 39.89706906 | G8: to A100 Feedstock Handling | H8: =VLOOKUP("Work.a900.wka100",INDIRECT(LU_SENS),2,FALSE) -> 859.484703
A9: Insoluble Solids out (wt%) | D9: =( VLOOKUP( "SCIS.A200.254s", INDIRECT(LU_SENS), 2, FALSE )) / ( VLOOKUP( "STRM.A200.254s", INDIRECT(LU_SENS), 2, FALSE ) ) -> 0.1865132564 | G9: to A200 Pretreatment | H9: =VLOOKUP("Work.a900.wka200",INDIRECT(LU_SENS),2,FALSE) -> 5714.43422
A10: Temperature (°C) | D10: =VLOOKUP("TEMP.A200.217",INDIRECT(LU_SENS),2,FALSE) -> 160 | E10: Compressor electricity (kW) | F10: =VLOOKUP("work.a400.wm401",INDIRECT(LU_SENS),2,FALSE) -> 704.084961 | G10: to A300 Hydrolysis & Conditioning | H10: =VLOOKUP("Work.a900.wka300",INDIRECT(LU_SENS),2,FALSE) -> 9753.44155
A11: Pressure (atm) | D11: =VLOOKUP("PRES.A200.217",INDIRECT(LU_SENS),2,FALSE) -> 5.99881917 | E11: Chiller system electricity (kW) | F11: =VLOOKUP("work.a900.wm908-4",INDIRECT(LU_SENS),2,FALSE) -> 793.959769 | G11: to A400 Enzyme Production | H11: =VLOOKUP("Work.a900.wka400",INDIRECT(LU_SENS),2,FALSE) -> 2678.4684
A12: Conversions | B12: M207 | C12: M208 | D12: Overall | E12: A400 total electricity (kW) | F12: =VLOOKUP("work.a900.wka400",INDIRECT(LU_SENS),2,FALSE) -> 2678.4684 | G12: to A600 Wastewater | H12: =VLOOKUP("Work.a900.wka600",INDIRECT(LU_SENS),2,FALSE) -> 4498.32478
A13: Cellulose to Glucolig | B13: =VLOOKUP("PRETRX01",INDIRECT(LU_SENS),2,FALSE) -> 0.003 | D13: =B13 -> 0.003 | G13: to A700 Storage | H13: =VLOOKUP("Work.a900.wka700",INDIRECT(LU_SENS),2,FALSE) -> 4.9037903
A14: Cellulose to Cellobiose | B14: =VLOOKUP("PRETRX02",INDIRECT(LU_SENS),2,FALSE) -> 0 | D14: =B14 -> 0 | E14: Electricity demand (kWh/kg protn) | F14: =F12/F6 -> 9.25732229 | G14: to A800 Boiler/Turbogen | H14: =VLOOKUP("Work.a900.wka800",INDIRECT(LU_SENS),2,FALSE) -> 1202.87339
A15: Cellulose to Glucose | B15: =VLOOKUP("PRETRX03",INDIRECT(LU_SENS),2,FALSE) -> 0.099 | D15: =B15 -> 0.099 | E15: Production selectivity: | G15: to A900 Utilities | H15: =VLOOKUP("Work.a900.wka900",INDIRECT(LU_SENS),2,FALSE) -> 2974.93251
A16: Cellulose to HMF | B16: =VLOOKUP("PRETRX04",INDIRECT(LU_SENS),2,FALSE) -> 0.003 | D16: =B16 -> 0.003 | E16: Selectivity to protein | F16: =VLOOKUP("s4pro",INDIRECT(LU_SENS),2,FALSE) -> 0.31250025 | G16: Excess electricity to grid | H16: =-VLOOKUP("work.a900.wknet",INDIRECT(LU_SENS),2,FALSE) -> 13198.6283
A17: Xylan to Oligomer | B17: =VLOOKUP("PRETRX05",INDIRECT(LU_SENS),2,FALSE) -> 0.024 | D17: =B17-C33*B17 -> 0.024 | E17: Selectivity to cell mass | F17: =VLOOKUP("s4bms",INDIRECT(LU_SENS),2,FALSE) -> 0.0406504167
A18: Xylan to Xylose | B18: =VLOOKUP("PRETRX06",INDIRECT(LU_SENS),2,FALSE) -> 0.9 | D18: =B18+B27*C33 -> 0.9 | E18: Selectivity to CO2 | F18: =VLOOKUP("s4co2",INDIRECT(LU_SENS),2,FALSE) -> 0.676014748 | G18: ="Total Power Generated = "&TEXT(-H7/1000,"#,##0") & " MW" -> Total Power Generated = 41 MW
A19: Xylan to Furfural | B19: =VLOOKUP("PRETRX07",INDIRECT(LU_SENS),2,FALSE) -> 0.05 | D19: =B19 -> 0.05 | G19: Electricity Used (kW) | H19: =SUM(H8:H15) -> 27686.86334
A20: Mannan to Oligomer | B20: =VLOOKUP("PRETRX08",INDIRECT(LU_SENS),2,FALSE) -> 0 | D20: =B20 -> 0 | G20: Electricity Used (%) | H20: =SUM(H8:H15)/-H7 -> 0.6771806394
A21: Mannan to Mannose | B21: =VLOOKUP("PRETRX09",INDIRECT(LU_SENS),2,FALSE) -> 0.9 | D21: =B21-C33*B21 -> 0.9 | E21: Wastewater Treatment
A22: Mannan to HMF | B22: =VLOOKUP("PRETRX10",INDIRECT(LU_SENS),2,FALSE) -> 0.003 | D22: =B22+C33*B21 -> 0.003 | E22: Hydraulic Load (L/hr) | F22: =(VLOOKUP("STRM.a600.601",INDIRECT(LU_SENS),2,FALSE))/VLOOKUP("den.a600.601",INDIRECT(LU_SENS),2,FALSE) -> 237246.8064
A23: Galactan to Oligomer | B23: =VLOOKUP("PRETRX11",INDIRECT(LU_SENS),2,FALSE) -> 0.024 | D23: =B23 -> 0.024 | E23: Hydraulic Load (gpm) | F23: =F22/3.7854/60 -> 1044.569514
A24: Galactan to Galactose | B24: =VLOOKUP("PRETRX12",INDIRECT(LU_SENS),2,FALSE) -> 0.9 | D24: =B24-C36*B24 -> 0.9 | E24: Hydraulic Load (MMgal/day) | F24: =F23*60*24/1000000 -> 1.504180101
A25: Galactan to HMF | B25: =VLOOKUP("PRETRX13",INDIRECT(LU_SENS),2,FALSE) -> 0.003 | D25: =B25+C36*B24 -> 0.003 | E25: Total COD (kg/hr) | F25: =VLOOKUP("CODTO1",INDIRECT(LU_SENS),2,FALSE)/1.2 -> 17030.69642
A26: Arabinan to Oligomer | B26: =VLOOKUP("PRETRX14",INDIRECT(LU_SENS),2,FALSE) -> 0.024 | D26: =B26 -> 0.024 | E26: Total COD (g/L) | F26: =F25*1000/F22 -> 71.78472359
A27: Arabinan to Arabinose | B27: =VLOOKUP("PRETRX15",INDIRECT(LU_SENS),2,FALSE) -> 0.9 | D27: =B27-C35*B27 -> 0.9
A28: Arabinan to Furfural | B28: =VLOOKUP("PRETRX16",INDIRECT(LU_SENS),2,FALSE) -> 0.05 | D28: =B28+B27*C35 -> 0.05 | E28: Biogas composition (Dry molar%) CH4 | F28: =VLOOKUP("cmix.ch4.a600.615",INDIRECT(LU_SENS),2,FALSE)/16/(VLOOKUP("cmix.ch4.a600.615",INDIRECT(LU_SENS),2,FALSE)/16+VLOOKUP("cmix.co2.a600.615",INDIRECT(LU_SENS),2,FALSE)/44) -> 0.5104180718
A29: Acetate to Acetic Acid | B29: =VLOOKUP("PRETRX17",INDIRECT(LU_SENS),2,FALSE) -> 1 | D29: =B29 -> 1 | E29: CO2 | F29: =VLOOKUP("cmix.co2.a600.615",INDIRECT(LU_SENS),2,FALSE)/44/(VLOOKUP("cmix.ch4.a600.615",INDIRECT(LU_SENS),2,FALSE)/16+VLOOKUP("cmix.co2.a600.615",INDIRECT(LU_SENS),2,FALSE)/44) -> 0.4895819282 | G29: Biomass Composition | L29: Biomass Carbon Content
A30: Furfural to Tar | B30: =VLOOKUP("PRETRX18",INDIRECT(LU_SENS),2,FALSE) -> 0 | D30: 0 | E30: methane produced (kg/kg COD) | F30: =VLOOKUP("cmix.ch4.a600.615",INDIRECT(LU_SENS),2,FALSE)/F25/0.91 -> 0.2862245661 | G30: Component ID | H30: Biomass Composition (dry wt%) | I30: Component Formula | J30: MW (g/mol) | K30: C# | M30: kg/hr | N30: mol C | O30: kg c/hr
A31: HMF to Tar | B31: =VLOOKUP("PRETRX19",INDIRECT(LU_SENS),2,FALSE) -> 0 | D31: 0 | E31: cell mass | F31: =VLOOKUP("ccis.biomass.a600.602e",INDIRECT(LU_SENS),2,FALSE)/F25/0.91 -> 0.05572418959 | G31: EXTRACT | H31: 0.1465 | I31: C6H12O6 | J31: 180.15768 | K31: 6 | L31: cmix.extract.101 | M31: =VLOOKUP(L31,INDIRECT(LU_SENS),2,FALSE) -> 12208.3333 | N31: =M31*1000/J31*K31 -> 406588.272 | O31: =N31*12/1000 -> 4879.059264
A32: Lignin to Soluble Lignin | B32: =VLOOKUP("PRETRX20",INDIRECT(LU_SENS),2,FALSE) -> 0.05 | D32: 0.05 | G32: CELLULOS | H32: 0.3505 | I32: C6H10O5 | J32: 162.14242 | K32: 6 | L32: CCIS.CELLULOS.101 | M32: 29204.8804 | N32: 1080712.144 | O32: =N32*12/1000 -> 12968.54573
C33: =VLOOKUP("OLIG04",INDIRECT(LU_SENS),2,FALSE) -> 0 | E33: NH3-N in Combined WW mg/L | F33: =(VLOOKUP("cmix.nh4acet.a600.602",INDIRECT(LU_SENS),2,FALSE)*14/77+VLOOKUP("cmix.nh4so4.a600.602",INDIRECT(LU_SENS),2,FALSE)*14/132+VLOOKUP("cmix.dap.a600.602",INDIRECT(LU_SENS),2,FALSE)*2*14/132)/(VLOOKUP("smix.a600.602",INDIRECT(LU_SENS),2,FALSE)/VLOOKUP("den.a600.602",INDIRECT(LU_SENS),2,FALSE))*1000000 -> 0 | G33: XYLAN | H33: 0.1953 | I33: C5H8O4 | J33: 132.117 | K33: 5 | L33: CCIS.XYLAN.101 | M33: 16273.076 | N33: 615858.5193 | O33: 7390.302232
C34: =VLOOKUP("OLIG03",INDIRECT(LU_SENS),2,FALSE) -> 0 | E34: Total BOD (KG/HR) | F34: =VLOOKUP("bodto1",INDIRECT(LU_SENS),2,FALSE) -> 12205.7913 | G34: GALACTAN | H34: 0.0143 | I34: C6H10O5 | J34: 162.14242 | K34: 6 | L34: CCIS.GALACTAN.101 | M34: 1191.52579 | N34: 44091.82212 | O34: 529.1018654
C35: =VLOOKUP("OLIG01",INDIRECT(LU_SENS),2,FALSE) -> 0 | E35: Total BOD (g/L) | F35: =F34*1000/F22 -> 51.44765271 | G35: ARABINAN | H35: 0.0238 | I35: C5H8O4 | J35: 132.117 | K35: 5 | L35: CCIS.ARABINAN.101 | M35: 1983.09887 | N35: 75050.85909 | O35: 900.610309
C36: =VLOOKUP("OLIG02",INDIRECT(LU_SENS),2,FALSE) -> 0 | E36: NH3-N DEMAND (mg/L) | F36: =7*(F26-13.3)+4*F35 -> 615.183676 | G36: MANNAN | H36: 0.006 | I36: C6H10O5 | J36: 162.14242 | K36: 6 | L36: CCIS.MANNAN.101 | M36: 499.940891 | N36: 18500.06523 | O36: 222.0007827
A37: Enzymatic Hydrolysis | E37: NH3-N ADDITION (KG/HR) | F37: =IF((F36-F33)>0, (F36-F33)*22.3/24/2.205, 0) -> 259.2327282 | G37: LIGNIN | H37: 0.0077 | I37: C8H8O3 | J37: 152.14972 | K37: 8 | L37: CCIS.LIGNIN.101 | M37: 13131.7807 | N37: 690466.2434 | O37: 8285.594921
A38: Enzyme Loading (mg/g cellulose) | D38: =1000*VLOOKUP("CCIS.enzyme.422",INDIRECT(LU_SENS),2,FALSE) / VLOOKUP("CCIS.CELLULOS.A300.301",INDIRECT(LU_SENS),2,FALSE) -> 9.962427723 | E38: TOTAL Polymer (kg/hr) | F38: =VLOOKUP("scis.a600.617",INDIRECT(LU_SENS),2,FALSE)*2.205/2000*9/2.205 -> 1.718296434 | G38: ASH | H38: 0.1576 | I38: CaO | J38: 56.0774 | K38: 0 | L38: CCIS.ASH.101 | M38: 4107.84766 | N38: 0 | O38: 0
A39: Total Solids (wt%) | D39: =(VLOOKUP("SOL310FD",INDIRECT(LU_SENS),2,FALSE)+VLOOKUP("SCIS.A300.T310FD",INDIRECT(LU_SENS),2,FALSE))/(VLOOKUP("STRM.A300.T310FD",INDIRECT(LU_SENS),2,FALSE)) -> 0.1977599082 | G39: ACETATE | H39: 0.0493 | I39: C2H4O2 | J39: 60.05256 | K39: 2 | L39: CCIS.ACETATE.101 | M39: 1508.15502 | N39: 50227.83442 | O39: 602.734013
A40: Insoluble Solids (wt%) | D40: =( VLOOKUP( "SCIS.A300.T310FD", INDIRECT(LU_SENS), 2, FALSE )) / ( VLOOKUP( "STRM.A300.T310FD", INDIRECT(LU_SENS), 2, FALSE ) ) -> 0.1212182729 | G40: PROTEIN | H40: 0.0181 | I40: C1H1.57O0.31N0.29S0.007 | J40: 22.8396 | K40: 1 | L40: CCIS.PROTEIN.101 | M40: 2583.02794 | N40: 113094.2722 | O40: 1357.131267
A41: Residence Time (days) | D41: =VLOOKUP("SACHDAYS",INDIRECT(LU_SENS),2,FALSE) -> 3.5 | G41: SUCROSE | H41: 0.031 | I41: C12H22O11 | J41: 342.30008 | K41: 12 | L41: CMIX.SUCROSE.101 | M41: 641.666667 | N41: 22494.88228 | O41: 269.9385874
A42: Conversions: | B42: T310 | C42: F300 | D42: Overall | L42: Total | M42: =SUM(M31:M41) -> 83333.33324 | N42: =SUM(N31:N41) -> 3117084.914 | O42: =SUM(O31:O41) -> 37405.01897
A43: Cellulose to Glucolig | B43: =VLOOKUP("SACHRX01",INDIRECT(LU_SENS),2,FALSE) -> 0 | C43: =VLOOKUP("SAC01B",INDIRECT(LU_SENS),2,FALSE) -> 0.04 | D43: =B43+C43*(1-SUM($B$43:$B$45)) -> 0.04
A44: Cellulose to Cellobiose | B44: =VLOOKUP("SACHRX02",INDIRECT(LU_SENS),2,FALSE) -> 0 | C44: =VLOOKUP("SAC02b",INDIRECT(LU_SENS),2,FALSE) -> 0.012 | D44: =B44+C44*(1-SUM($B$43:$B$45)) -> 0.012
A45: Cellulose to Glucose | B45: =VLOOKUP("SACHRX03",INDIRECT(LU_SENS),2,FALSE) -> 0 | C45: =VLOOKUP("SAC03b",INDIRECT(LU_SENS),2,FALSE) -> 0.9 | D45: =B45+C45*(1-SUM($B$43:$B$45)) -> 0.9
A46: Glucolig to Cellobiose | B46: =VLOOKUP("SACHRX04",INDIRECT(LU_SENS),2,FALSE) -> 0 | C46: =VLOOKUP("SAC04b",INDIRECT(LU_SENS),2,FALSE) -> 0 | D46: =B46+C46*(1-SUM($B$46:$B$47)) -> 0
A47: Glucolig to Glucose | B47: =VLOOKUP("SACHRX05",INDIRECT(LU_SENS),2,FALSE) -> 0 | C47: =VLOOKUP("sac05b",INDIRECT(LU_SENS),2,FALSE) -> 0 | D47: =B47+C47*(1-SUM($B$46:$B$47)) -> 0
A48: Cellobiose to Glucose | B48: =VLOOKUP("SACHRX06",INDIRECT(LU_SENS),2,FALSE) -> 0 | C48: =VLOOKUP("sac06b",INDIRECT(LU_SENS),2,FALSE) -> 1 | D48: =B48 -> 0
A49: Xylan to Oligomer | B49: =VLOOKUP("SACHRX13",INDIRECT(LU_SENS),2,FALSE) -> 0 | C49: =VLOOKUP("sac13b",INDIRECT(LU_SENS),2,FALSE) -> 0 | D49: =B49+C49*(1-SUM($B$46:$B$47)) -> 0
A50: Xylan to Xylose | B50: =VLOOKUP("SACHRX14",INDIRECT(LU_SENS),2,FALSE) -> 0 | C50: =VLOOKUP("sac14b",INDIRECT(LU_SENS),2,FALSE) -> 0 | D50: 0
A51: Xylose Oligomer to Xylose | B51: =VLOOKUP("SACHRX15",INDIRECT(LU_SENS),2,FALSE) -> 0 | C51: =VLOOKUP("sac15b",INDIRECT(LU_SENS),2,FALSE) -> 0 | D51: 0
A52: Xylan to Tar | B52: =VLOOKUP("SACHRX23",INDIRECT(LU_SENS),2,FALSE) -> 0 | C52: =VLOOKUP("sac23b",INDIRECT(LU_SENS),2,FALSE) -> 0 | D52: 0
A53: Arabinan to Oligomer | B53: =VLOOKUP("SACHRX24",INDIRECT(LU_SENS),2,FALSE) -> 0 | C53: =VLOOKUP("sac24b",INDIRECT(LU_SENS),2,FALSE) -> 0 | D53: 0
A54: Arabinan to Arabinose | B54: =VLOOKUP("SACHRX25",INDIRECT(LU_SENS),2,FALSE) -> 0 | C54: =VLOOKUP("sac24b",INDIRECT(LU_SENS),2,FALSE) -> 0 | D54: 0
A55: Galactan to Oligomer | B55: =VLOOKUP("SACHRX32",INDIRECT(LU_SENS),2,FALSE) -> 0 | C55: =VLOOKUP("sac32b",INDIRECT(LU_SENS),2,FALSE) -> 0 | D55: 0
A56: Galactan to Galactose | B56: =VLOOKUP("SACHRX33",INDIRECT(LU_SENS),2,FALSE) -> 0 | C56: =VLOOKUP("sac33b",INDIRECT(LU_SENS),2,FALSE) -> 0 | D56: 0
A57: Galactose Oligomer to Galactose | B57: =VLOOKUP("SACHRX34",INDIRECT(LU_SENS),2,FALSE) -> 0 | C57: =VLOOKUP("sac34b",INDIRECT(LU_SENS),2,FALSE) -> 0 | D57: 0
A58: Mannan to Oligomer | B58: =VLOOKUP("SACHRX41",INDIRECT(LU_SENS),2,FALSE) -> 0 | C58: =VLOOKUP("sac41b",INDIRECT(LU_SENS),2,FALSE) -> 0 | D58: 0
A59: Mannan to Mannose | B59: =VLOOKUP("SACHRX42",INDIRECT(LU_SENS),2,FALSE) -> 0 | C59: =VLOOKUP("sac42b",INDIRECT(LU_SENS),2,FALSE) -> 0 | D59: 0
A60: Mannose Oligomer to Mannose | B60: =VLOOKUP("SACHRX43",INDIRECT(LU_SENS),2,FALSE) -> 0 | C60: =VLOOKUP("sac43b",INDIRECT(LU_SENS),2,FALSE) -> 0 | D60: 0

Sheet Cost Breakdown
A1: Portion of MFSP for each cost in each area
A2: AREA | C2: Capital Recovery Charge | D2: Raw Materials & Waste | E2: Process Electricity | F2: Grid Electricity | G2: Total Plant Electricity | H2: Fixed Costs | I2: Area Totals | J2: Labels
A3: NONE | B3: ="Feedstock & Handling: "&J3 -> Feedstock & Handling: 7.5¢ | C3: 0 | D3: =OPEX!$M$12/100 -> 0.07482202995 | E3: 0 | F3: 0 | G3: 0 | H3: 0 | I3: =D3 -> 0.07482202995 | J3: =TEXT(100*I3,"0.0") & "¢" -> 7.5¢ | K3: Feedstock
A4: A200 | B4: ="Pretreatment & Neutralization: "&J4 -> Pretreatment & Neutralization: 3.0¢ | C4: =(CAPEX200/CAPEX)*((Summary!$F$27+Summary!$F$29+Summary!$F$28)/100) -> 0.01693856674 | D4: =SUM(OPEX!$M$13:'OPEX'!$M$15)/100 -> 0.007050620067 | E4: =('Operating Summaries'!$H$9*OPEX!$B$7*OPEX!$J$40)/(OPEX!$B$3*1000000) -> 0.003152112762 | F4: 0 | G4: 0 | H4: =(CAPEX200/CAPEX)*(Summary!$F$26/100) -> 0.002965654968 | I4: =SUM(C4:H4) -> 0.03010695454 | J4: 3.0¢ | K4: Area 200
A5: A300 | B5: ="Hydrolysis & Conditioning : "&J5 -> Hydrolysis & Conditioning : 2.9¢ | C5: =(CAPEX300/CAPEX)*((Summary!$F$27+Summary!$F$29+Summary!$F$28)/100) -> 0.01745532021 | D5: =SUM(OPEX!$M$16:'OPEX'!$M$20)/100 -> 0.003595621582 | E5: =('Operating Summaries'!$H$10*OPEX!$B$7*OPEX!$J$40)/(OPEX!$B$3*1000000) -> 0.005380051007 | F5: 0 | G5: 0 | H5: =(CAPEX300/CAPEX)*(Summary!$F$26/100) -> 0.003056129711 | I5: 0.02948712251 | J5: 2.9¢ | K5: Area 300
A6: A400 | B6: ="Cellulase Enzyme: "&J6 -> Cellulase Enzyme: 1.6¢ | C6: =(CAPEX400/CAPEX)*((Summary!$F$27+Summary!$F$29+Summary!$F$28)/100) -> 0.003702169834 | D6: =SUM(OPEX!$M$21:'OPEX'!$M$27)/100 -> 0.009832101174 | E6: =('Operating Summaries'!$H$11*OPEX!$B$7*OPEX!$J$40)/(OPEX!$B$3*1000000) -> 0.001477457628 | F6: 0 | G6: 0 | H6: =(CAPEX400/CAPEX)*(Summary!$F$26/100) -> 0.0006481869762 | I6: 0.01565991561 | J6: 1.6¢ | K6: Area 400
A7: A600 | B7: ="Wastewater Treatment: "&J7 -> Wastewater Treatment: 2.1¢ | C7: =(CAPEX600/CAPEX)*((Summary!$F$27+Summary!$F$29+Summary!$F$28)/100) -> 0.01413787403 | D7: =SUM(OPEX!M28:M29)/100 -> 0.001901073542 | E7: =('Operating Summaries'!$H$12*OPEX!$B$7*OPEX!$J$40)/(OPEX!$B$3*1000000) -> 0.00248130023 | F7: 0 | G7: 0 | H7: =(CAPEX600/CAPEX)*(Summary!$F$26/100) -> 0.002475301304 | I7: 0.02099554911 | J7: 2.1¢ | K7: Area 600
A8: A700 | B8: ="Storage: "&J8 -> Storage: 0.4¢ | C8: =(CAPEX700/CAPEX)*((Summary!$F$27+Summary!$F$29+Summary!$F$28)/100) -> 0.003386297626 | D8: 0 | E8: =('Operating Summaries'!$H$13*OPEX!$B$7*OPEX!$J$40)/(OPEX!$B$3*1000000) -> 2.7049572e-06 | F8: 0 | G8: 0 | H8: =(CAPEX700/CAPEX)*(Summary!$F$26/100) -> 0.0005928831246 | I8: 0.003981885708 | J8: 0.4¢ | K8: Area 700
A9: A800 | B9: ="Boiler/Turbogenerator: "&J9 -> Boiler/Turbogenerator: 0.4¢ | C9: =(CAPEX800/CAPEX)*((Summary!$F$27+Summary!$F$29+Summary!$F$28)/100) -> 0.01994941807 | D9: =(SUM(OPEX!$M$30:$M$32)+OPEX!$M$37)/100 -> 0.002208339795 | E9: =('Operating Summaries'!$H$14*OPEX!$B$7*OPEX!$J$40)/(OPEX!$B$3*1000000) -> 0.0006635114549 | F9: =((('Operating Summaries'!$H$7*OPEX!$B$7*OPEX!$J$40)/(OPEX!$B$3*1000000)))-G9 -> -0.007754530993 | G9: =-E11 -> -0.01479812687 | H9: =(CAPEX800/CAPEX)*(Summary!$F$26/100) -> 0.00349280383 | I9: 0.003761415287 | J9: 0.4¢ | K9: Area 800
A10: A900 | B10: ="Utilities: "&J10 -> Utilities: 0.5¢ | C10: =(CAPEX900/CAPEX)*((Summary!$F$27+Summary!$F$29+Summary!$F$28)/100) -> 0.001981687882 | D10: =(OPEX!$M$34+OPEX!$M$33)/100 -> 0.0007411205066 | E10: =('Operating Summaries'!$H$15*OPEX!$B$7*OPEX!$J$40)/(OPEX!$B$3*1000000) -> 0.001640988831 | F10: 0 | G10: 0 | H10: =(CAPEX900/CAPEX)*(Summary!$F$26/100) -> 0.0003469598461 | I10: 0.004710757065 | J10: =TEXT(100*I10,"0.0") & "¢" -> 0.5¢ | K10: Area 900
B11: NET SUMMATION | C11: =SUM(C3:C10) -> 0.07755133439 | D11: 0.1001509066 | E11: 0.01479812687 | F11: -0.007754530993 | G11: -0.01479812687 | H11: 0.01357791976 | I11: 0.1835256298 | J11: =TEXT(100*I11,"0.0") & "¢" & " MSSP" -> 18.4¢ MSSP | K11: RESULT
A12: % of MFSP for each cost in each area
A13: AREA | C13: =C2 -> Capital Recovery Charge | D13: Raw Materials & Waste | E13: Process Electricity | F13: Grid Electricity | G13: Total Plant Electricity | H13: Fixed Costs | I13: Area Totals | J13: Labels
A14: =A3 -> NONE | B14: Feedstock & Handling: 7.5¢ | C14: =C3/DCFROR!$B$36 -> 0 | D14: =D3/DCFROR!$B$36 -> 0.4076925389 | E14: =E3/DCFROR!$B$36 -> 0 | F14: =F3/DCFROR!$B$36 -> 0 | G14: =G3/DCFROR!$B$36 -> 0 | H14: =H3/DCFROR!$B$36 -> 0 | I14: =D14 -> 0.4076925389 | J14: =TEXT(I14,"0%") -> 41% | K14: Feedstock
A15: A200 | B15: Pretreatment & Neutralization: 3.0¢ | C15: =C4/DCFROR!$B$36 -> 0.09229537458 | D15: =D4/DCFROR!$B$36 -> 0.03841763179 | E15: =E4/DCFROR!$B$36 -> 0.01717532732 | F15: =F4/DCFROR!$B$36 -> 0 | G15: =G4/DCFROR!$B$36 -> 0 | H15: =H4/DCFROR!$B$36 -> 0.01615935045 | I15: =SUM(C15:H15) -> 0.1640476841 | J15: =TEXT(I15,"0%") -> 16% | K15: Area 200
A16: A300 | B16: Hydrolysis & Conditioning : 2.8¢ | C16: =C5/DCFROR!$B$36 -> 0.09511107648 | D16: =D5/DCFROR!$B$36 -> 0.01959193159 | E16: =E5/DCFROR!$B$36 -> 0.02931498459 | F16: =F5/DCFROR!$B$36 -> 0 | G16: =G5/DCFROR!$B$36 -> 0 | H16: =H5/DCFROR!$B$36 -> 0.01665233197 | I16: 0.1606703246 | J16: 16% | K16: Area 300
A17: A400 | B17: Cellulase Enzyme: 1.6¢ | C17: =C6/DCFROR!$B$36 -> 0.02017249492 | D17: =D6/DCFROR!$B$36 -> 0.05357345013 | E17: =E6/DCFROR!$B$36 -> 0.00805041579 | F17: =F6/DCFROR!$B$36 -> 0 | G17: =G6/DCFROR!$B$36 -> 0 | H17: =H6/DCFROR!$B$36 -> 0.003531860793 | I17: 0.08532822164 | J17: 9% | K17: Area 400
A18: A600 | B18: Wastewater Treatment: 2.1¢ | C18: =C7/DCFROR!$B$36 -> 0.07703487546 | D18: =D7/DCFROR!$B$36 -> 0.01035862699 | E18: =E7/DCFROR!$B$36 -> 0.01352018371 | F18: =F7/DCFROR!$B$36 -> 0 | G18: =G7/DCFROR!$B$36 -> 0 | H18: =H7/DCFROR!$B$36 -> 0.01348749658 | I18: 0.1144011827 | J18: 11% | K18: Area 500
A19: A700 | B19: Storage: 0.4¢ | C19: =C8/DCFROR!$B$36 -> 0.01845136088 | D19: =D8/DCFROR!$B$36 -> 0 | E19: =E8/DCFROR!$B$36 -> 1.473885257e-05 | F19: =F8/DCFROR!$B$36 -> 0 | G19: =G8/DCFROR!$B$36 -> 0 | H19: =H8/DCFROR!$B$36 -> 0.003230519494 | I19: 0.02169661923 | J19: 2% | K19: Area 600
A20: A800 | B20: Boiler/Turbogenerator: 0.3¢ | C20: =C9/DCFROR!$B$36 -> 0.1087009923 | D20: =D9/DCFROR!$B$36 -> 0.01203286864 | E20: =E9/DCFROR!$B$36 -> 0.003615361276 | F20: =F9/DCFROR!$B$36 -> -0.04225312292 | G20: =G9/DCFROR!$B$36 -> -0.08063248109 | H20: =H9/DCFROR!$B$36 -> 0.01903169511 | I20: 0.02049531333 | J20: 2% | K20: Area 700
A21: A900 | B21: Utilities: 0.5¢ | C21: =C10/DCFROR!$B$36 -> 0.01079788084 | D21: =D10/DCFROR!$B$36 -> 0.004038239823 | E21: =E10/DCFROR!$B$36 -> 0.008941469555 | F21: =F10/DCFROR!$B$36 -> 0 | G21: =G10/DCFROR!$B$36 -> 0 | H21: =H10/DCFROR!$B$36 -> 0.001890525299 | I21: 0.02566811552 | J21: 3% | K21: Area 800
B22: NET SUMMATION | C22: =SUM(C14:C21) -> 0.4225640555 | D22: =SUM(D14:D21) -> 0.5457052879 | E22: =SUM(E14:E21) -> 0.08063248109 | F22: -0.04225312292 | G22: -0.08063248109 | H22: 0.0739837797 | I22: =SUM(I14:I21) -> 1 | K22: RESULT

Sheet aspen
B1: =DCFROR!B38 -> 0
B2: Sensitivity Block ID* DO NOT change this name | C2: MASSFLOW
B3: Import timestamp | C3: 2017-07-18 | D3: 16:18:15
B4: Imported data model | C4: C:\Aspentech Data\ASPENTECH\Aspen Plus V7.2\biochem models\FY17 sugar model\BC1707A sugars.bkp
B5: Variables in this column are used by the macro to look up data from the summary file.
B6: DO NOT list MASSFLOW sensitivity variables here. | C6: VLOOKUP ID | D6: Value | E6: Units (if available)
B7: CCIS.ACETATE.101 | C7: AEROBCHP | D7: 0
B8: CCIS.ARABINAN.101 | C8: AEROBCOD | D8: 0
B9: CCIS.ASH.101 | C9: AEROBVOL | D9: 0
B10: ccis.biomass.a600.602e | C10: AMLOAD | D10: 1.84596499
B11: CCIS.CELLULOS.101 | C11: ANEROVOL | D11: 0
B12: ccis.cellulos.a300.301 | C12: BCAIRV | D12: 0
B13: ccis.cellulos.a400.401 | C13: BODTO1 | D13: 12205.7913
B14: ccis.denz.a600.612 | C14: BURNLOHV | D14: 0
B15: ccis.enzyme.422 | C15: CARB306 | D15: 1780.45087
B16: CCIS.enzyme.750 | C16: CARB307 | D16: 1675.43186
B17: ccis.enzyme.a400.420 | C17: CCIS.ACETATE.101 | D17: 1508.15502 | E17: KG/HR
B18: ccis.enzyme.a400.420a | C18: CCIS.ARABINAN.101 | D18: 1983.09887 | E18: KG/HR
B19: ccis.enzyme.a600.612 | C19: CCIS.ASH.101 | D19: 4107.84766 | E19: KG/HR
B20: CCIS.GALACTAN.101 | C20: CCIS.BIOMASS.A600.602E | D20: 863.609798 | E20: KG/HR
B21: ccis.galactan.a400.401 | C21: CCIS.CELLULOS.101 | D21: 29204.8804 | E21: KG/HR
B22: CCIS.LIGNIN.101 | C22: CCIS.CELLULOS.A300.301 | D22: 26138.368 | E22: KG/HR
B23: CCIS.MANNAN.101 | C23: CCIS.CELLULOS.A400.401 | D23: 0 | E23: KG/HR
B24: ccis.mannan.a400.401 | C24: CCIS.DENZ.A600.612 | D24: 0 | E24: KG/HR
B25: CCIS.PROTEIN.101 | C25: CCIS.ENZYME.422 | D25: 260.401602 | E25: KG/HR
B26: CCIS.SUCROSE.101 | C26: CCIS.ENZYME.750 | D26: 1e-05 | E26: KG/HR
B27: CCIS.XYLAN.101 | C27: CCIS.ENZYME.A400.420 | D27: 260.401602 | E27: KG/HR
B28: CMIX.AACID.A800.810 | C28: CCIS.ENZYME.A400.420A | D28: 289.335114 | E28: KG/HR
B29: CMIX.ARABINOS.A300.301 | C29: CCIS.ENZYME.A600.612 | D29: 0 | E29: KG/HR
B30: CMIX.ARABINOS.A300.306A | C30: CCIS.GALACTAN.101 | D30: 1191.52579 | E30: KG/HR
B31: Cmix.arabinos.a300.306a | C31: CCIS.GALACTAN.A400.401 | D31: 0 | E31: KG/HR
B32: Cmix.arabinos.a300.306b | C32: CCIS.LIGNIN.101 | D32: 13131.7807 | E32: KG/HR
B33: CMIX.ARABINOS.A300.307 | C33: CCIS.MANNAN.101 | D33: 499.940891 | E33: KG/HR
B34: CMIX.ARABINOS.a300.t310fd | C34: CCIS.MANNAN.A400.401 | D34: 0 | E34: KG/HR
B35: cmix.arabinos.a400.401 | C35: CCIS.PROTEIN.101 | D35: 2583.02794 | E35: KG/HR
B36: CMIX.ARABINOS.a400.420 | C36: CCIS.SUCROSE.101 | D36: 0 | E36: KG/HR
B37: CMIX.ARABINOS.a400.420p | C37: CCIS.XYLAN.101 | D37: 16273.076 | E37: KG/HR
B38: CMIX.ARABOLIG.A300.301 | C38: CLVESSEL | D38: 5
B39: CMIX.ARABOLIG.A300.306A | C39: CMIX.AACID.A800.810 | D39: 0 | E39: KG/HR
B40: CMIX.ARABOLIG.a300.t310fd | C40: CMIX.ARABINOS.A300.301 | D40: 2007.86563 | E40: KG/HR
B41: CMIX.ARABOLIG.a400.401 | C41: CMIX.ARABINOS.A300.306A | D41: 1907.47235 | E41: KG/HR
B42: CMIX.ARABOLIG.a400.420 | C42: CMIX.ARABINOS.A300.306A | D42: 1907.47235 | E42: KG/HR
B43: CMIX.ARABOLIG.a400.420p | C43: CMIX.ARABINOS.A300.306B | D43: 2007.86563 | E43: KG/HR
B44: CMIX.CELLOB.A300.301 | C44: CMIX.ARABINOS.A300.307 | D44: 1907.47197 | E44: KG/HR
B45: CMIX.CELLOB.A300.306A | C45: CMIX.ARABINOS.A300.T310FD | D45: 2007.86563 | E45: KG/HR
B46: CMIX.CELLOB.a300.t310fd | C46: CMIX.ARABINOS.A400.401 | D46: 0 | E46: KG/HR
B47: CMIX.CELLOB.a400.401 | C47: CMIX.ARABINOS.A400.420 | D47: 0 | E47: KG/HR
B48: CMIX.CELLOB.a400.420 | C48: CMIX.ARABINOS.A400.420P | D48: 0 | E48: KG/HR
B49: CMIX.CELLOB.a400.420p | C49: CMIX.ARABOLIG.A300.301 | D49: 47.5940278 | E49: KG/HR
B50: cmix.ch4.a600.615 | C50: CMIX.ARABOLIG.A300.306A | D50: 45.2143264 | E50: KG/HR
B51: CMIX.CH4.A600.620 | C51: CMIX.ARABOLIG.A300.T310FD | D51: 47.5940278 | E51: KG/HR
B52: CMIX.CH4.A600.622 | C52: CMIX.ARABOLIG.A400.401 | D52: 0 | E52: KG/HR
B53: CMIX.CH4.A800.810 | C53: CMIX.ARABOLIG.A400.420 | D53: 0 | E53: KG/HR
B54: CMIX.CNUTR.A300.306A | C54: CMIX.ARABOLIG.A400.420P | D54: 0 | E54: KG/HR
B55: CMIX.CNUTR.a300.t310fd | C55: CMIX.CELLOB.A300.301 | D55: 0 | E55: KG/HR
B56: CMIX.CNUTR.a400.420 | C56: CMIX.CELLOB.A300.306A | D56: 314.531196 | E56: KG/HR
B57: CMIX.CNUTR.a400.420p | C57: CMIX.CELLOB.A300.T310FD | D57: 0 | E57: KG/HR
B58: CMIX.CO.A800.810 | C58: CMIX.CELLOB.A400.401 | D58: 0 | E58: KG/HR
B59: CMIX.CO2.703 | C59: CMIX.CELLOB.A400.420 | D59: 0 | E59: KG/HR
B60: CMIX.CO2.A400.423 | C60: CMIX.CELLOB.A400.420P | D60: 0 | E60: KG/HR
B61: CMIX.CO2.A400.435 | C61: CMIX.CH4.A600.615 | D61: 4435.88936 | E61: KG/HR
B62: cmix.co2.a600.615 | C62: CMIX.CH4.A600.620 | D62: 0.00112743758 | E62: KG/HR
B63: CMIX.CO2.A600.620 | C63: CMIX.CH4.A600.622 | D63: 1.94570139 | E63: KG/HR
B64: CMIX.CO2.A600.622 | C64: CMIX.CH4.A800.810 | D64: 0 | E64: KG/HR
B65: CMIX.CO2.A800.810 | C65: CMIX.CNUTR.A300.306A | D65: 0 | E65: KG/HR
B66: cmix.dap.a600.602 | C66: CMIX.CNUTR.A300.T310FD | D66: 0 | E66: KG/HR
B67: cmix.dap.a600.612 | C67: CMIX.CNUTR.A400.420 | D67: 0 | E67: KG/HR
B68: CMIX.DAP.A800.810 | C68: CMIX.CNUTR.A400.420P | D68: 0 | E68: KG/HR
B69: CMIX.DENAT.703 | C69: CMIX.CO.A800.810 | D69: 51.8645092 | E69: KG/HR
B70: CMIX.ETHANOL.703 | C70: CMIX.CO2.703 | D70: 5.55322336e-08 | E70: KG/HR
B71: cmix.extract.101 | C71: CMIX.CO2.A400.423 | D71: 1143.5943 | E71: KG/HR
B72: CMIX.EXTRACT.A300.306A | C72: CMIX.CO2.A400.435 | D72: 47.5451255 | E72: KG/HR
B73: CMIX.EXTRACT.a300.t310fd | C73: CMIX.CO2.A600.615 | D73: 11700.724 | E73: KG/HR
B74: CMIX.EXTRACT.a400.420 | C74: CMIX.CO2.A600.620 | D74: 21.3237366 | E74: KG/HR
B75: CMIX.EXTRACT.a400.420p | C75: CMIX.CO2.A600.622 | D75: 1521.22137 | E75: KG/HR
B76: CMIX.EXTRACT.A800.810 | C76: CMIX.CO2.A800.810 | D76: 61764.6028 | E76: KG/HR
B77: cmix.furfural.a300.306a | C77: CMIX.DAP.A600.602 | D77: 0 | E77: KG/HR
B78: CMIX.FURFURAL.A600.620 | C78: CMIX.DAP.A600.612 | D78: 0 | E78: KG/HR
B79: CMIX.FURFURAL.A600.622 | C79: CMIX.DAP.A800.810 | D79: 0 | E79: KG/HR
B80: CMIX.GALACTOS.A300.301 | C80: CMIX.DENAT.703 | D80: 0 | E80: KG/HR
B81: CMIX.GALACTOS.A300.306A | C81: CMIX.ETHANOL.703 | D81: 8.80058228e-08 | E81: KG/HR
B82: Cmix.galactos.a300.306a | C82: CMIX.EXTRACT.101 | D82: 12208.3333 | E82: KG/HR
B83: Cmix.galactos.a300.306b | C83: CMIX.EXTRACT.A300.306A | D83: 0 | E83: KG/HR
B84: CMIX.GALACTOS.A300.307 | C84: CMIX.EXTRACT.A300.T310FD | D84: 0 | E84: KG/HR
B85: CMIX.GALACTOS.a300.t310fd | C85: CMIX.EXTRACT.A400.420 | D85: 0 | E85: KG/HR
B86: cmix.galactos.a400.401 | C86: CMIX.EXTRACT.A400.420P | D86: 0 | E86: KG/HR
B87: CMIX.GALACTOS.a400.420 | C87: CMIX.EXTRACT.A800.810 | D87: 0 | E87: KG/HR
B88: CMIX.GALACTOS.a400.420p | C88: CMIX.FURFURAL.A300.306A | D88: 303.431242 | E88: KG/HR
B89: CMIX.GALAOLIG.A300.301 | C89: CMIX.FURFURAL.A600.620 | D89: 1.17652173 | E89: KG/HR
B90: CMIX.GALAOLIG.A300.306A | C90: CMIX.FURFURAL.A600.622 | D90: 0.0192928085 | E90: KG/HR
B91: CMIX.GALAOLIG.a300.t310fd | C91: CMIX.GALACTOS.A300.301 | D91: 1179.6069 | E91: KG/HR
B92: CMIX.GALAOLIG.a400.401 | C92: CMIX.GALACTOS.A300.306A | D92: 1120.62655 | E92: KG/HR
B93: CMIX.GALAOLIG.a400.420 | C93: CMIX.GALACTOS.A300.306A | D93: 1120.62655 | E93: KG/HR
B94: CMIX.GALAOLIG.a400.420p | C94: CMIX.GALACTOS.A300.306B | D94: 1179.6069 | E94: KG/HR
B95: CMIX.GLUCOLIG.A300.301 | C95: CMIX.GALACTOS.A300.307 | D95: 1120.62655 | E95: KG/HR
B96: CMIX.GLUCOLIG.A300.306A | C96: CMIX.GALACTOS.A300.T310FD | D96: 1179.6069 | E96: KG/HR
B97: CMIX.GLUCOLIG.a300.t310fd | C97: CMIX.GALACTOS.A400.401 | D97: 0 | E97: KG/HR
B98: CMIX.GLUCOLIG.a400.401 | C98: CMIX.GALACTOS.A400.420 | D98: 0 | E98: KG/HR
B99: CMIX.GLUCOLIG.a400.420 | C99: CMIX.GALACTOS.A400.420P | D99: 0 | E99: KG/HR
B100: CMIX.GLUCOLIG.a400.420p | C100: CMIX.GALAOLIG.A300.301 | D100: 28.596617 | E100: KG/HR
B101: CMIX.GLUCOLIG.A800.810 | C101: CMIX.GALAOLIG.A300.306A | D101: 27.1667861 | E101: KG/HR
B102: cmix.glucose.101 | C102: CMIX.GALAOLIG.A300.T310FD | D102: 28.596617 | E102: KG/HR
B103: CMIX.GLUCOSE.A300.301 | C103: CMIX.GALAOLIG.A400.401 | D103: 0 | E103: KG/HR
B104: CMIX.GLUCOSE.A300.306A | C104: CMIX.GALAOLIG.A400.420 | D104: 0 | E104: KG/HR
B105: Cmix.glucose.a300.306a | C105: CMIX.GALAOLIG.A400.420P | D105: 0 | E105: KG/HR
B106: Cmix.glucose.a300.306b | C106: CMIX.GLUCOLIG.A300.301 | D106: 87.6146351 | E106: KG/HR
B107: cmix.glucose.A300.307 | C107: CMIX.GLUCOLIG.A300.306A | D107: 1076.49189 | E107: KG/HR
B108: CMIX.GLUCOSE.a300.t310fd | C108: CMIX.GLUCOLIG.A300.T310FD | D108: 87.6146351 | E108: KG/HR
B109: cmix.glucose.a400.401 | C109: CMIX.GLUCOLIG.A400.401 | D109: 0 | E109: KG/HR
B110: CMIX.GLUCOSE.a400.420 | C110: CMIX.GLUCOLIG.A400.420 | D110: 0 | E110: KG/HR
B111: CMIX.GLUCOSE.a400.420p | C111: CMIX.GLUCOLIG.A400.420P | D111: 0 | E111: KG/HR
B112: CMIX.H2O.101 | C112: CMIX.GLUCOLIG.A800.810 | D112: 0 | E112: KG/HR
B113: CMIX.H2O.703 | C113: CMIX.GLUCOSE.101 | D113: 0 | E113: KG/HR
B114: cmix.h2o.710 | C114: CMIX.GLUCOSE.A300.301 | D114: 3381.38634 | E114: KG/HR
B115: cmix.h2o.903 | C115: CMIX.GLUCOSE.A300.306A | D115: 28043.6918 | E115: KG/HR
B116: cmix.h2o.a200.216 | C116: CMIX.GLUCOSE.A300.306A | D116: 28043.6918 | E116: KG/HR
B117: CMIX.H2O.A200.217 | C117: CMIX.GLUCOSE.A300.306B | D117: 29519.6756 | E117: KG/HR
B118: cmix.h2o.a200.222 | C118: CMIX.GLUCOSE.A300.307 | D118: 28043.6918 | E118: KG/HR
B119: cmix.h2o.a200.223 | C119: CMIX.GLUCOSE.A300.T310FD | D119: 3381.38634 | E119: KG/HR
B120: cmix.h2o.a200.228 | C120: CMIX.GLUCOSE.A400.401 | D120: 1208.98268 | E120: KG/HR
B121: cmix.h2o.a200.233 | C121: CMIX.GLUCOSE.A400.420 | D121: 0 | E121: KG/HR
B122: cmix.h2o.a200.239 | C122: CMIX.GLUCOSE.A400.420P | D122: 0 | E122: KG/HR
B123: cmix.h2o.a200.274 | C123: CMIX.H2O.101 | D123: 20833.3333 | E123: KG/HR
B124: cmix.h2o.a200.m207fd | C124: CMIX.H2O.703 | D124: 51257.1242 | E124: KG/HR
B125: cmix.h2o.a300.306 | C125: CMIX.H2O.710 | D125: 156.81675 | E125: KG/HR
B126: cmix.h2o.a300.306a | C126: CMIX.H2O.903 | D126: 198770.089 | E126: KG/HR
B127: cmix.h2o.a300.t310fd | C127: CMIX.H2O.A200.216 | D127: 22926.5645 | E127: KG/HR
B128: cmix.h2o.a400.401 | C128: CMIX.H2O.A200.217 | D128: 177240.129 | E128: KG/HR
B129: cmix.h2o.a400.403 | C129: CMIX.H2O.A200.222 | D129: 173399.66 | E129: KG/HR
B130: cmix.h2o.a400.407 | C130: CMIX.H2O.A200.223 | D130: 173399.66 | E130: KG/HR
B131: cmix.h2o.a400.408a | C131: CMIX.H2O.A200.228 | D131: 262442.107 | E131: KG/HR
B132: cmix.h2o.a400.411 | C132: CMIX.H2O.A200.233 | D132: 0.00671397608 | E132: KG/HR
B133: cmix.h2o.a400.418 | C133: CMIX.H2O.A200.239 | D133: 262442.114 | E133: KG/HR
B134: cmix.h2o.a400.420 | C134: CMIX.H2O.A200.274 | D134: 112520.029 | E134: KG/HR
B135: cmix.h2o.a400.420a | C135: CMIX.H2O.A200.M207FD | D135: 179632.152 | E135: KG/HR
B136: cmix.h2o.a400.420p | C136: CMIX.H2O.A300.306 | D136: 268968.95 | E136: KG/HR
B137: cmix.h2o.a400.423 | C137: CMIX.H2O.A300.306A | D137: 398259.48 | E137: KG/HR
B138: cmix.h2o.a400.435 | C138: CMIX.H2O.A300.T310FD | D138: 268968.95 | E138: KG/HR
B139: cmix.h2o.a400.450 | C139: CMIX.H2O.A400.401 | D139: 213.349885 | E139: KG/HR
B140: cmix.h2o.a400.450 | C140: CMIX.H2O.A400.403 | D140: 332.408285 | E140: KG/HR
B141: cmix.h2o.a400.f400in | C141: CMIX.H2O.A400.407 | D141: 1.97488156 | E141: KG/HR
B142: cmix.h2o.a600.602 | C142: CMIX.H2O.A400.408A | D142: 375.480597 | E142: KG/HR
B143: cmix.h2o.a600.602g | C143: CMIX.H2O.A400.411 | D143: 6672.84221 | E143: KG/HR
B144: cmix.h2o.a600.617 | C144: CMIX.H2O.A400.418 | D144: 7620.41617 | E144: KG/HR
B145: cmix.h2o.a600.620 | C145: CMIX.H2O.A400.420 | D145: 6526.8354 | E145: KG/HR
B146: cmix.h2o.a600.620b | C146: CMIX.H2O.A400.420A | D146: 7252.03933 | E146: KG/HR
B147: cmix.h2o.a600.620c | C147: CMIX.H2O.A400.420P | D147: 0 | E147: KG/HR
B148: cmix.h2o.a600.621 | C148: CMIX.H2O.A400.423 | D148: 368.376838 | E148: KG/HR
B149: cmix.h2o.a600.622 | C149: CMIX.H2O.A400.435 | D149: 18.3958057 | E149: KG/HR
B150: cmix.h2o.a600.624 | C150: CMIX.H2O.A400.450 | D150: 319.077081 | E150: KG/HR
B151: cmix.h2o.a600.627 | C151: CMIX.H2O.A400.450 | D151: 319.077081 | E151: KG/HR
B152: cmix.h2o.a600.630 | C152: CMIX.H2O.A400.F400IN | D152: 7016.15261 | E152: KG/HR
B153: cmix.h2o.a600.632 | C153: CMIX.H2O.A600.602 | D153: 209108.633 | E153: KG/HR
B154: CMIX.H2O.a600.632 | C154: CMIX.H2O.A600.602G | D154: 207604.708 | E154: KG/HR
B155: cmix.h2o.a600.944 | C155: CMIX.H2O.A600.617 | D155: 265855.742 | E155: KG/HR
B156: cmix.h2o.a700.735 | C156: CMIX.H2O.A600.620 | D156: 1844165.03 | E156: KG/HR
B157: cmix.h2o.a800.2 | C157: CMIX.H2O.A600.620B | D157: 1846662.06 | E157: KG/HR
B158: cmix.h2o.a800.3 | C158: CMIX.H2O.A600.620C | D158: 1846314.27 | E158: KG/HR
B159: cmix.h2o.a800.623 | C159: CMIX.H2O.A600.621 | D159: 1577391.42 | E159: KG/HR
B160: cmix.h2o.a800.801 | C160: CMIX.H2O.A600.622 | D160: 2497.02603 | E160: KG/HR
B161: cmix.h2o.a800.801 | C161: CMIX.H2O.A600.624 | D161: 201048.964 | E161: KG/HR
B162: cmix.h2o.a800.803 | C162: CMIX.H2O.A600.627 | D162: 1576.55472 | E162: KG/HR
B163: cmix.h2o.a800.804 | C163: CMIX.H2O.A600.630 | D163: 2502.61514 | E163: KG/HR
B164: cmix.h2o.a800.805 | C164: CMIX.H2O.A600.632 | D164: 347.781841 | E164: KG/HR
B165: cmix.h2o.a800.807 | C165: CMIX.H2O.A600.632 | D165: 347.781841 | E165: KG/HR
B166: cmix.h2o.a800.810 | C166: CMIX.H2O.A600.944 | D166: 16218.0347 | E166: KG/HR
B167: CMIX.H2O.A800.810 | C167: CMIX.H2O.A700.735 | D167: 41.3288838 | E167: KG/HR
B168: cmix.h2o.a800.a810.821v | C168: CMIX.H2O.A800.2 | D168: 58424.5175 | E168: KG/HR
B169: cmix.h2o.a900.906a | C169: CMIX.H2O.A800.3 | D169: 602.238743 | E169: KG/HR
B170: CMIX.H2O.A900.941 | C170: CMIX.H2O.A800.623 | D170: 6932.19366 | E170: KG/HR
B171: cmix.h2o.a900.944 | C171: CMIX.H2O.A800.801 | D171: 32267.0121 | E171: KG/HR
B172: cmix.h2o.a900.948 | C172: CMIX.H2O.A800.801 | D172: 32267.0121 | E172: KG/HR
B173: cmix.h2o.a900.949 | C173: CMIX.H2O.A800.803 | D173: 5458.12104 | E173: KG/HR
B174: cmix.h2o.a900.faller | C174: CMIX.H2O.A800.804 | D174: 4907.06998 | E174: KG/HR
B175: cmix.h2o.a900.riser | C175: CMIX.H2O.A800.805 | D175: 57792.9925 | E175: KG/HR
B176: CMIX.H2SO4.A200.217 | C176: CMIX.H2O.A800.807 | D176: 57792.9925 | E176: KG/HR
B177: CMIX.H2SO4.A800.810 | C177: CMIX.H2O.A800.810 | D177: 58424.5175 | E177: KG/HR
B178: cmix.hmf.a300.306a | C178: CMIX.H2O.A800.810 | D178: 58424.5175 | E178: KG/HR
B179: CMIX.HMF.A800.810 | C179: CMIX.H2O.A800.A810.821V | D179: 2103.46387 | E179: KG/HR
B180: cmix.lacid.a300.306a | C180: CMIX.H2O.A900.906A | D180: 145 | E180: KG/HR
B181: cmix.lacid.a400.420 | C181: CMIX.H2O.A900.941 | D181: 143035.83 | E181: KG/HR
B182: CMIX.LACID.A800.810 | C182: CMIX.H2O.A900.944 | D182: 16217.9675 | E182: KG/HR
B183: CMIX.lgnsol.A200.4 | C183: CMIX.H2O.A900.948 | D183: 117670.479 | E183: KG/HR
B184: CMIX.LGNSOL.A300.306A | C184: CMIX.H2O.A900.949 | D184: 244533.045 | E184: KG/HR
B185: CMIX.LGNSOL.a300.t310fd | C185: CMIX.H2O.A900.FALLER | D185: 10811978.4 | E185: KG/HR
B186: CMIX.LGNSOL.a400.420 | C186: CMIX.H2O.A900.RISER | D186: 10938840.9 | E186: KG/HR
B187: CMIX.LGNSOL.a400.420p | C187: CMIX.H2SO4.A200.217 | D187: 750 | E187: KG/HR
B188: CMIX.MANNOSE.A300.301 | C188: CMIX.H2SO4.A800.810 | D188: 1.45043831e-06 | E188: KG/HR
B189: CMIX.MANNOSE.A300.306A | C189: CMIX.HMF.A300.306A | D189: 180.266696 | E189: KG/HR
B190: Cmix.mannose.a300.306a | C190: CMIX.HMF.A800.810 | D190: 0 | E190: KG/HR
B191: Cmix.mannose.a300.306b | C191: CMIX.LACID.A300.306A | D191: 19.33806 | E191: KG/HR
B192: cmix.mannose.A300.307 | C192: CMIX.LACID.A400.420 | D192: 20.3558527 | E192: KG/HR
B193: CMIX.MANNOSE.a300.t310fd | C193: CMIX.LACID.A800.810 | D193: 0 | E193: KG/HR
B194: cmix.mannose.a400.401 | C194: CMIX.LGNSOL.A200.4 | D194: 0 | E194: KG/HR
B195: CMIX.MANNOSE.a400.420 | C195: CMIX.LGNSOL.A300.306A | D195: 498.945286 | E195: KG/HR
B196: CMIX.MANNOSE.a400.420p | C196: CMIX.LGNSOL.A300.T310FD | D196: 525.205565 | E196: KG/HR
B197: CMIX.MANOLIG.A300.301 | C197: CMIX.LGNSOL.A400.420 | D197: 0 | E197: KG/HR
B198: CMIX.MANOLIG.A300.306A | C198: CMIX.LGNSOL.A400.420P | D198: 0 | E198: KG/HR
B199: CMIX.MANOLIG.a300.t310fd | C199: CMIX.MANNOSE.A300.301 | D199: 494.939957 | E199: KG/HR
B200: CMIX.MANOLIG.a400.401 | C200: CMIX.MANNOSE.A300.306A | D200: 470.192959 | E200: KG/HR
... 377 more rows

Sheet aspenqw
B3: 7/18/2017 | C3: 3:19:37 PM
C4: C:\Aspentech Data\ASPENTECH\Aspen Plus V7.2\biochem models\FY17 sugar model\BC1707A sugars.bkp
B5: Heat / Duty streams | F5: Work streams
B7: A200.A203.Q-OUT | C7: 0.146173689 | D7: MMKCAL/HR | F7: A100.WC101 | G7: 31.6625697 | H7: KW
B8: A200.A204.Q-OUT | C8: 0.109200344 | D8: MMKCAL/HR | F8: A100.WC102 | G8: 79.1564241 | H8: KW
B9: A200.A208.Q-OUT | C9: 0.109200344 | D9: MMKCAL/HR | F9: A100.WC103 | G9: 15.8312848 | H9: KW
B10: A200.A209.Q-OUT | C10: 0.0773860705 | D10: MMKCAL/HR | F10: A100.WC104 | G10: 95.6252104 | H10: KW
B11: A200.A224.Q-OUT | C11: 0.00644883921 | D11: MMKCAL/HR | F11: A100.WC105 | G11: 15.8312848 | H11: KW
B12: A200.QC-A200 | C12: 0.666466961 | D12: MMKCAL/HR | F12: A100.WC106 | G12: 15.8312848 | H12: KW
B13: A200.QDEACT | C13: -2.62973129e-11 | D13: MMKCAL/HR | F13: A100.WC107 | G13: 7.91564241 | H13: KW
B14: A200.QH201 | C14: -14.1339559 | D14: MMKCAL/HR | F14: A100.WC108 | G14: 3.95782121 | H14: KW
B15: A200.QH244 | C15: 0.666466961 | D15: MMKCAL/HR | F15: A100.WKA100 | G15: 859.484703 | H15: KW
B16: A200.QM207 | C16: 1.75824011e-07 | D16: MMKCAL/HR | F16: A100.WM102 | G16: 316.625697 | H16: KW
B17: A200.QWT203 | C17: 0.146173689 | D17: MMKCAL/HR | F17: A100.WM103 | G17: 158.312848 | H17: KW
B18: A200.QWT204 | C18: 0.109200344 | D18: MMKCAL/HR | F18: A100.WM106 | G18: 118.734636 | H18: KW
B19: A200.QWT208 | C19: 0.109200344 | D19: MMKCAL/HR | F19: A200.1 | G19: 3866.98763 | H19: KW
B20: A200.QWT209 | C20: 0.0773860705 | D20: MMKCAL/HR | F20: A200.A203.W-CONV | G20: -170 | H20: KW
B21: A200.QWT224 | C21: 0.00644883921 | D21: MMKCAL/HR | F21: A200.A203.W-DUP | G21: -170 | H21: KW
B22: A300.10 | C22: -0.367445911 | D22: MMKCAL/HR | F22: A200.A203.W-OUT | G22: 170 | H22: KW
B23: A300.2 | C23: 1 | D23: MMKCAL/HR | F23: A200.A203.W-SPEC | G23: -170 | H23: KW
B24: A300.A300S.Q-OUT | C24: 0.0128237295 | D24: MMKCAL/HR | F24: A200.A204.W-CONV | G24: -127 | H24: KW
B25: A300.A308W.Q-OUT | C25: 0.0641186475 | D25: MMKCAL/HR | F25: A200.A204.W-DUP | G25: -127 | H25: KW
B26: A300.EVAP.3 | C26: -3.79327444e-09 | D26: MMKCAL/HR | F26: A200.A204.W-OUT | G26: 127 | H26: KW
B27: A300.EVAP.5 | C27: 79.4595324 | D27: MMKCAL/HR | F27: A200.A204.W-SPEC | G27: -127 | H27: KW
B28: A300.EVAP.6 | C28: 79.4595324 | D28: MMKCAL/HR | F28: A200.A208.W-CONV | G28: -127 | H28: KW
B29: A300.EVAP.QE301 | C29: 79.4595324 | D29: MMKCAL/HR | F29: A200.A208.W-DUP | G29: -127 | H29: KW
B30: A300.EVAP.QE302 | C30: 60.6756431 | D30: MMKCAL/HR | F30: A200.A208.W-OUT | G30: 127 | H30: KW
B31: A300.EVAP.QE303 | C31: 65.565036 | D31: MMKCAL/HR | F31: A200.A208.W-SPEC | G31: -127 | H31: KW
B32: A300.EVAP.QEVAP | C32: -79.4595324 | D32: MMKCAL/HR | F32: A200.A209.W-CONV | G32: -90 | H32: KW
B33: A300.EVAP.QH317 | C33: 67.239184 | D33: MMKCAL/HR | F33: A200.A209.W-DUP | G33: -90 | H33: KW
B34: A300.F-QCH | C34: 1e-10 | D34: MMKCAL/HR | F34: A200.A209.W-OUT | G34: 90 | H34: KW
B35: A300.QC301 | C35: 6.59473891 | D35: MMKCAL/HR | F35: A200.A209.W-SPEC | G35: -90 | H35: KW
B36: A300.QC310 | C36: 2.20878937 | D36: MMKCAL/HR | F36: A200.A224.W-CONV | G36: -7.5 | H36: KW
B37: A300.QC-A300 | C37: 8.81756396 | D37: MMKCAL/HR | F37: A200.A224.W-DUP | G37: -7.5 | H37: KW
B38: A300.QCH-A300 | C38: 1e-10 | D38: MMKCAL/HR | F38: A200.A224.W-OUT | G38: 7.5 | H38: KW
B39: A300.QWA300S | C39: 0.0128237295 | D39: MMKCAL/HR | F39: A200.A224.W-SPEC | G39: -7.5 | H39: KW
B40: A300.QWA308 | C40: 0.0641186475 | D40: MMKCAL/HR | F40: A200.W1 | G40: 762.922344 | H40: KW
B41: A300.S305.S205CW | C41: 0.0140356851 | D41: MMKCAL/HR | F41: A200.W2 | G41: 4862.40954 | H41: KW
B42: A300.S305CW | C42: 0.0140356851 | D42: MMKCAL/HR | F42: A200.WC201 | G42: 79.999744 | H42: KW
B43: A400.A400.Q-OUT | C43: 0.899897036 | D43: MMKCAL/HR | F43: A200.WC202 | G43: 79.999744 | H43: KW
B44: A400.A404.Q-OUT | C44: 0.099888571 | D44: MMKCAL/HR | F44: A200.WC203 | G44: 159.999488 | H44: KW
B45: A400.A405.Q-OUT | C45: 0.00480889856 | D45: MMKCAL/HR | F45: A200.WC204 | G45: 74.99976 | H45: KW
B46: A400.A406.Q-OUT | C46: 0.00192355942 | D46: MMKCAL/HR | F46: A200.WC205 | G46: 79.999744 | H46: KW
B47: A400.A410.Q-OUT | C47: 0.00641186475 | D47: MMKCAL/HR | F47: A200.WC206 | G47: 19.999936 | H47: KW
B48: A400.QA404 | C48: 0.099888571 | D48: MMKCAL/HR | F48: A200.WC207 | G48: 39.999872 | H48: KW
B49: A400.QCH-A400 | C49: 4.28738275 | D49: MMKCAL/HR | F49: A200.WKA200 | G49: 5714.43422 | H49: KW
B50: A400.QF400 | C50: 4.053231 | D50: MMKCAL/HR | F50: A200.WM201 | G50: 79.999744 | H50: KW
B51: A400.QF401-3 | C51: 0.234151754 | D51: MMKCAL/HR | F51: A200.WM202 | G51: 29.999904 | H51: KW
B52: A400.QM401 | C52: 0.585986541 | D52: MMKCAL/HR | F52: A200.WM203 | G52: 1999.9936 | H52: KW
B53: A400.QT405 | C53: -0.204772327 | D53: MMKCAL/HR | F53: A200.WM204 | G53: 44.999856 | H53: KW
B54: A400.QWA400 | C54: 0.899897036 | D54: MMKCAL/HR | F54: A200.WM205 | G54: 29.999904 | H54: KW
B55: A400.QWA405 | C55: 0.00480889856 | D55: MMKCAL/HR | F55: A200.WM206 | G55: 1866.99403 | H55: KW
B56: A400.QWA406 | C56: 0.00192355942 | D56: MMKCAL/HR | F56: A200.WM207 | G56: 82.0269857 | H56: KW
B57: A400.QWA410 | C57: 0.00641186475 | D57: MMKCAL/HR | F57: A200.WM208 | G57: 50 | H57: KW
B58: A600.1 | C58: 0.000997275946 | D58: MMKCAL/HR | F58: A200.WP201 | G58: 1 | H58: KW
B59: A600.16 | C59: 2.5027139 | D59: MMKCAL/HR | F59: A200.WP203 | G59: 55.6721228 | H59: KW
B60: A600.17 | C60: 22.6795457 | D60: MMKCAL/HR | F60: A200.WP204 | G60: 55.9998208 | H60: KW
B61: A600.18 | C61: -22.0008989 | D61: MMKCAL/HR | F61: A200.WP208 | G61: 226.250401 | H61: KW
B62: A600.2 | C62: -0.000870935763 | D62: MMKCAL/HR | F62: A200.WP209 | G62: 89.999712 | H62: KW
B63: A600.7 | C63: 2.54032498 | D63: MMKCAL/HR | F63: A200.WP239 | G63: 44.999856 | H63: KW
B64: A600.8 | C64: -0.436530953 | D64: MMKCAL/HR | F64: A200.WPTRX | G64: 802.024682 | H64: KW
B65: A600.A606.Q-OUT | C65: 0.171969046 | D65: MMKCAL/HR | F65: A200.WT203 | G65: 170 | H65: KW
B66: A600.EVAPBAL | C66: 0.67864679 | D66: MMKCAL/HR | F66: A200.WT204 | G66: 127 | H66: KW
B67: A600.Q608C | C67: 7.71114525 | D67: MMKCAL/HR | F67: A200.WT208 | G67: 127 | H67: KW
B68: A600.QH602 | C68: 10.1821364 | D68: MMKCAL/HR | F68: A200.WT209 | G68: 90 | H68: KW
B69: A600.QT606 | C69: 2.10379402 | D69: MMKCAL/HR | F69: A200.WT224 | G69: 7.5 | H69: KW
B70: A600.QT608 | C70: 7.71127159 | D70: MMKCAL/HR | F70: A300.A300S.W-CONV | G70: -14.9139974 | H70: KW
B71: A600.QWA606 | C71: 0.171969046 | D71: MMKCAL/HR | F71: A300.A300S.W-DUP | G71: -14.9139974 | H71: KW
B72: A600.WS611.Q-OUT | C72: 0.20197374 | D72: MMKCAL/HR | F72: A300.A300S.W-OUT | G72: 14.9139974 | H72: KW
B73: A700.QDCOOLE | C73: 0.870741162 | D73: MMKCAL/HR | F73: A300.A300S.W-SPEC | G73: -14.9139974 | H73: KW
B74: A800.A810.7 | C74: 0.0958935613 | D74: MMKCAL/HR | F74: A300.A308W.W-CONV | G74: -74.569987 | H74: KW
B75: A800.A810.9 | C75: 1 | D75: MMKCAL/HR | F75: A300.A308W.W-DUP | G75: -74.569987 | H75: KW
B76: A800.A810.QBOILER | C76: 117.405058 | D76: MMKCAL/HR | F76: A300.A308W.W-OUT | G76: 74.569987 | H76: KW
B77: A800.A810.QDEAER | C77: -0.00376964158 | D77: MMKCAL/HR | F77: A300.A308W.W-SPEC | G77: -74.569987 | H77: KW
B78: A800.A810.QH811 | C78: 12.7772965 | D78: MMKCAL/HR | F78: A300.EVAP.4 | G78: 209.6741 | H78: KW
B79: A800.A810.QM811 | C79: 63.2634153 | D79: MMKCAL/HR | F79: A300.EVAP.8 | G79: 7144.74403 | H79: KW
B80: A800.A810.QSUPER | C80: 23.9005281 | D80: MMKCAL/HR | F80: A300.EVAP.SUGWORK | G80: 7144.74403 | H80: KW
B81: A800.A810.QSUPXS | C81: -0.321280982 | D81: MMKCAL/HR | F81: A300.S205POW | G81: 2477.01024 | H81: KW
B82: A800.A810.QT405 | C82: -0.204772327 | D82: MMKCAL/HR | F82: A300.S305.1 | G82: 17.0102435 | H82: KW
B83: A800.A810.QTSTM | C83: -0.204772327 | D83: MMKCAL/HR | F83: A300.S305.S205FP | G83: 2460 | H83: KW
B84: A800.A810.QTSTMXS | C84: -4.46942745e-14 | D84: MMKCAL/HR | F84: A300.S305.S205POW | G84: 2477.01024 | H84: KW
B85: A800.QBOILER | C85: 117.405058 | D85: MMKCAL/HR | F85: A300.SUGWORK | G85: 7144.74403 | H85: KW
B86: A800.QCOMLOSS | C86: 8.29628817 | D86: MMKCAL/HR | F86: A300.WA300 | G86: 2608.69752 | H86: KW
B87: A800.QH801 | C87: 11.9669214 | D87: MMKCAL/HR | F87: A300.WA308 | G87: 74.569987 | H87: KW
B88: A800.QH812 | C88: 1 | D88: MMKCAL/HR | F88: A300.WP310 | G88: 42.2032951 | H88: KW
B89: A800.QM803 | C89: 65.2785419 | D89: MMKCAL/HR | F89: A300.WT300S | G89: 14.9139974 | H89: KW
B90: A800.QM803T | C90: 125.701336 | D90: MMKCAL/HR | F90: A400.A400.W-CONV | G90: -1046.58025 | H90: KW
B91: A800.QM811 | C91: 63.2634153 | D91: MMKCAL/HR | F91: A400.A400.W-DUP | G91: -1046.58025 | H91: KW
B92: A800.QT405 | C92: -0.204772327 | D92: MMKCAL/HR | F92: A400.A400.W-OUT | G92: 1046.58025 | H92: KW
B93: A900.10 | C93: -6.78976495e-05 | D93: MMKCAL/HR | F93: A400.A400.W-SPEC | G93: -1046.58025 | H93: KW
B94: A900.QC-A200 | C94: 0.666466961 | D94: MMKCAL/HR | F94: A400.A404.W-CONV | G94: -116.170408 | H94: KW
B95: A900.QC-A300 | C95: 8.81756396 | D95: MMKCAL/HR | F95: A400.A404.W-DUP | G95: -116.170408 | H95: KW
B96: A900.QC-A400 | C96: 0.585986541 | D96: MMKCAL/HR | F96: A400.A404.W-OUT | G96: 116.170408 | H96: KW
B97: A900.QC-EVCND | C97: 11.7313445 | D97: MMKCAL/HR | F97: A400.A404.W-SPEC | G97: -116.170408 | H97: KW
B98: A900.QCH-A300 | C98: 1e-10 | D98: MMKCAL/HR | F98: A400.A405.W-CONV | G98: -5.59274903 | H98: KW
B99: A900.QCH-A400 | C99: 4.28738275 | D99: MMKCAL/HR | F99: A400.A405.W-DUP | G99: -5.59274903 | H99: KW
B100: A900.QCHILCON | C100: 4.28738275 | D100: MMKCAL/HR | F100: A400.A405.W-OUT | G100: 5.59274903 | H100: KW
B101: A900.QCHWLOOP | C101: 4.28738275 | D101: MMKCAL/HR | F101: A400.A405.W-SPEC | G101: -5.59274903 | H101: KW
B102: A900.QCHWOP | C102: 4.28738275 | D102: MMKCAL/HR | F102: A400.A406.W-CONV | G102: -2.23709961 | H102: KW
B103: A900.QCHWXS | C103: -8.00793271e-16 | D103: MMKCAL/HR | F103: A400.A406.W-DUP | G103: -2.23709961 | H103: KW
B104: A900.QCWBAL | C104: -3.81709042e-07 | D104: MMKCAL/HR | F104: A400.A406.W-OUT | G104: 2.23709961 | H104: KW
B105: A900.QH602 | C105: 10.1821364 | D105: MMKCAL/HR | F105: A400.A406.W-SPEC | G105: -2.23709961 | H105: KW
B106: A900.QH910 | C106: -0.0912253253 | D106: MMKCAL/HR | F106: A400.A410.W-CONV | G106: -7.4569987 | H106: KW
B107: A900.QM811 | C107: 63.2634153 | D107: MMKCAL/HR | F107: A400.A410.W-DUP | G107: -7.4569987 | H107: KW
B108: A900.QT914 | C108: 6.08049769 | D108: MMKCAL/HR | F108: A400.A410.W-OUT | G108: 7.4569987 | H108: KW
B109: A900.QTTOTAL | C109: 89.35216 | D109: MMKCAL/HR | F109: A400.A410.W-SPEC | G109: -7.4569987 | H109: KW
B110: A900.QWATER | C110: 90.2133897 | D110: MMKCAL/HR | F110: A400.WKA400 | G110: 1884.50863 | H110: KW
B111: QC-A200 | C111: 0.666466961 | D111: MMKCAL/HR | F111: A400.WM401 | G111: 704.084961 | H111: KW
B112: QC-A300 | C112: 8.81756396 | D112: MMKCAL/HR | F112: A400.WP400 | G112: 0.828153138 | H112: KW
B113: QC-A400 | C113: 0.585986541 | D113: MMKCAL/HR | F113: A400.WP401 | G113: 0.0353862809 | H113: KW
B114: QCH-A300 | C114: 1e-10 | D114: MMKCAL/HR | F114: A400.WP405 | G114: 1.14188515 | H114: KW
B115: QCH-A400 | C115: 4.28738275 | D115: MMKCAL/HR | F115: A400.WP406 | G115: 0.0066259455 | H115: KW
B116: QH602 | C116: 10.1821364 | D116: MMKCAL/HR | F116: A400.WP410 | G116: 0.372504413 | H116: KW
B117: QH812 | C117: 1 | D117: MMKCAL/HR | F117: A400.WP420 | G117: 0.0016095688 | H117: KW
B118: QM811 | C118: 63.2634153 | D118: MMKCAL/HR | F118: A400.WPA400 | G118: 124.149322 | H118: KW
B119: QT405 | C119: -0.204772327 | D119: MMKCAL/HR | F119: A400.WT400 | G119: 1046.58025 | H119: KW
F120: A400.WT401-3 | G120: 116.170408 | H120: KW
F121: A400.WT405 | G121: 5.59274903 | H121: KW
F122: A400.WT406 | G122: 2.23709961 | H122: KW
F123: A400.WT410 | G123: 7.4569987 | H123: KW
F124: A600.25 | G124: 236.945459 | H124: KW
F125: A600.6 | G125: 221.484626 | H125: KW
F126: A600.A606.W-CONV | G126: -200 | H126: KW
F127: A600.A606.W-DUP | G127: -200 | H127: KW
F128: A600.A606.W-OUT | G128: 200 | H128: KW
F129: A600.A606.W-SPEC | G129: -200 | H129: KW
F130: A600.WB606 | G130: 18.9728864 | H130: KW
F131: A600.WB608 | G131: 2456.55862 | H131: KW
F132: A600.WC614 | G132: 0.05 | H132: KW
F133: A600.WKA600 | G133: 4498.32478 | H133: KW
F134: A600.WM640 | G134: 1295.7397 | H134: KW
F135: A600.WP602 | G135: 2.51173935 | H135: KW
F136: A600.WP609 | G136: 54.3786973 | H136: KW
F137: A600.WP610 | G137: 207.629856 | H137: KW
F138: A600.WP611 | G138: 1 | H138: KW
F139: A600.WP612 | G139: 1 | H139: KW
F140: A600.WP616 | G140: 25.5278215 | H140: KW
F141: A600.WP632 | G141: 0.0600066792 | H141: KW
F142: A600.WS611 | G142: 234.895459 | H142: KW
F143: A600.WS611.W-CONV | G143: -234.895459 | H143: KW
F144: A600.WS611.W-DUP | G144: -234.895459 | H144: KW
F145: A600.WS611.W-OUT | G145: 234.895459 | H145: KW
F146: A600.WS611.W-SPEC | G146: -234.895459 | H146: KW
F147: A600.WT606 | G147: 200 | H147: KW
F148: A700.WC755 | G148: 0 | H148: KW
F149: A700.WKA700 | G149: 4.9037903 | H149: KW
F150: A700.WP701 | G150: 3.97322025 | H150: KW
F151: A700.WP703 | G151: 0.597172672 | H151: KW
F152: A700.WP704 | G152: 0 | H152: KW
F153: A700.WP720 | G153: 0.0243652247 | H153: KW
F154: A700.WP760 | G154: 0.0126382619 | H154: KW
F155: A700.WT720 | G155: 0.136797182 | H155: KW
F156: A700.WT760 | G156: 0.159596712 | H156: KW
F157: A800.A810.WA810 | G157: 30.7456999 | H157: KW
F158: A800.A810.WM811HT | G158: -17675.9481 | H158: KW
F159: A800.A810.WM811IT | G159: -2329.32773 | H159: KW
F160: A800.A810.WM811VT | G160: -20880.2158 | H160: KW
F161: A800.A810.WM830 | G161: 10 | H161: KW
F162: A800.A810.WM832 | G162: 10 | H162: KW
F163: A800.A810.WM834 | G163: 10 | H163: KW
F164: A800.A810.WP804 | G164: 6.14967974 | H164: KW
F165: A800.A810.WP811 | G165: 24.3630788 | H165: KW
F166: A800.A810.WP824 | G166: 7.17556194 | H166: KW
F167: A800.A810.WP826 | G167: 465.142088 | H167: KW
F168: A800.A810.WP828 | G168: 1.67693586 | H168: KW
F169: A800.A810.WP830 | G169: 0.74569987 | H169: KW
F170: A800.A810.WPA810 | G170: 535.253044 | H170: KW
F171: A800.A810.WTOTAL | G171: -40885.4916 | H171: KW
F172: A800.WCOMBFAN | G172: 119.170548 | H172: KW
F173: A800.WKA800 | G173: 1202.87339 | H173: KW
F174: A800.WM804 | G174: 548.449801 | H174: KW
F175: A800.WPA810 | G175: 535.253044 | H175: KW
F176: A800.WPU800 | G176: 535.253044 | H176: KW
F177: A800.WTOTAL | G177: -40885.4916 | H177: KW
F178: A900.SUGWORK | G178: 7144.74403 | H178: KW
F179: A900.WA300 | G179: 2608.69752 | H179: KW
F180: A900.WA400 | G180: 1884.50863 | H180: KW
F181: A900.WCTFAN | G181: 678.412404 | H181: KW
F182: A900.WKA100 | G182: 859.484703 | H182: KW
F183: A900.WKA200 | G183: 5714.43422 | H183: KW
F184: A900.WKA300 | G184: 9753.44155 | H184: KW
F185: A900.WKA400 | G185: 2678.4684 | H185: KW
F186: A900.WKA600 | G186: 4498.32478 | H186: KW
F187: A900.WKA700 | G187: 4.9037903 | H187: KW
F188: A900.WKA800 | G188: 1202.87339 | H188: KW
F189: A900.WKA900 | G189: 2974.93251 | H189: KW
F190: A900.WKNET | G190: -13198.6283 | H190: KW
F191: A900.WM902 | G191: 936.635758 | H191: KW
F192: A900.WM904 | G192: 186 | H192: KW
F193: A900.WM908 | G193: 793.959769 | H193: KW
F194: A900.WM908-3 | G194: 1.85185185e-08 | H194: KW
F195: A900.WM908-4 | G195: 793.959769 | H195: KW
F196: A900.WM910 | G196: 250 | H196: KW
F197: A900.WMP10 | G197: 436 | H197: KW
F198: A900.WP902 | G198: 1466.09235 | H198: KW
F199: A900.WP912 | G199: 33.1405309 | H199: KW
F200: A900.WP914 | G200: 103.063862 | H200: KW
F201: A900.WP946 | G201: 258.223354 | H201: KW
F202: A900.WPU900 | G202: 2538.93251 | H202: KW
F203: A900.WTOTAL | G203: -40885.4916 | H203: KW
... 9 more rows

Sheet aspen2
A5: col number | B5: 1 | C5: 2 | D5: 3 | E5: 4 | F5: 5 | G5: 6 | H5: 7 | I5: 8 | J5: 9 | K5: 10 | L5: 11 | M5: 12 | N5: 13 | O5: 14 | P5: 15 | Q5: 16 | R5: 17 | S5: 18 | T5: 19 | U5: 20 | V5: 21 | W5: 22 | X5: 23 | Y5: 24 | Z5: 25 | AA5: 26 | AB5: 27 | AC5: 28 | AD5: 29 | AE5: 30 | AF5: 31 | AG5: 32 | AH5: 33 | AI5: 34 | AJ5: 35 | AK5: 36 | AL5: 37 | AM5: 38 | AN5: 39 | AO5: 40 | AP5: 41 | AQ5: 42 | AR5: 43 | AS5: 44 | AT5: 45 | AU5: 46 | AV5: 47 | AW5: 48 | AX5: 49 | AY5: 50 | AZ5: 51 | BA5: 52 | BB5: 53 | BC5: 54 | BD5: 55 | BE5: 56 | BF5: 57 | BG5: 58 | BH5: 59 | BI5: 60 | BJ5: 61 | BK5: 62 | BL5: 63 | BM5: 64 | BN5: 65 | BO5: 66 | BP5: 67 | BQ5: 68 | BR5: 69 | BS5: 70 | BT5: 71 | BU5: 72 | BV5: 73 | BW5: 74 | BX5: 75 | BY5: 76 | BZ5: 77 | CA5: 78 | CB5: 79 | CC5: 80 | CD5: 81 | CE5: 82 | CF5: 83 | CG5: 84 | CH5: 85 | CI5: 86 | CJ5: 87 | CK5: 88 | CL5: 89 | CM5: 90 | CN5: 91 | CO5: 92 | CP5: 93 | CQ5: 94 | CR5: 95 | CS5: 96 | CT5: 97 | CU5: 98 | CV5: 99 | CW5: 100 | CX5: 101 | CY5: 102 | CZ5: 103 | DA5: 104 | DB5: 105 | DC5: 106 | DD5: 107 | DE5: 108 | DF5: 109 | DG5: 110 | DH5: 111 | DI5: 112 | DJ5: 113 | DK5: 114 | DL5: 115 | DM5: 116 | DN5: 117 | DO5: 118 | DP5: 119 | DQ5: 120 | DR5: 121 | DS5: 122 | DT5: 123 | DU5: 124 | DV5: 125 | DW5: 126 | DX5: 127 | DY5: 128 | DZ5: 129 | EA5: 130 | EB5: 131 | EC5: 132 | ED5: 133 | EE5: 134 | EF5: 135 | EG5: 136 | EH5: 137 | EI5: 138 | EJ5: 139 | EK5: 140 | EL5: 141 | EM5: 142 | EN5: 143 | EO5: 144 | EP5: 145 | EQ5: 146 | ER5: 147 | ES5: 148 | ET5: 149 | EU5: 150 | EV5: 151 | EW5: 152 | EX5: 153 | EY5: 154 | EZ5: 155 | FA5: 156 | FB5: 157 | FC5: 158 | FD5: 159 | FE5: 160 | FF5: 161 | FG5: 162 | FH5: 163 | FI5: 164 | FJ5: 165 | FK5: 166 | FL5: 167 | FM5: 168 | FN5: 169 | FO5: 170 | FP5: 171 | FQ5: 172 | FR5: 173 | FS5: 174 | FT5: 175 | FU5: 176 | FV5: 177 | FW5: 178 | FX5: 179 | FY5: 180 | FZ5: 181 | GA5: 182 | GB5: 183 | GC5: 184 | GD5: 185 | GE5: 186 | GF5: 187 | GG5: 188 | GH5: 189 | GI5: 190 | GJ5: 191 | GK5: 192 | GL5: 193 | GM5: 194 | GN5: 195 | GO5: 196 | GP5: 197 | GQ5: 198 | GR5: 199 | GS5: 200 | GT5: 201 | GU5: 202 | GV5: 203 | GW5: 204 | GX5: 205 | GY5: 206 | GZ5: 207 | HA5: 208 | HB5: 209 | HC5: 210 | HD5: 211 | HE5: 212 | HF5: 213 | HG5: 214 | HH5: 215 | HI5: 216 | HJ5: 217 | HK5: 218 | HL5: 219 | HM5: 220 | HN5: 221 | HO5: 222 | HP5: 223 | HQ5: 224 | HR5: 225 | HS5: 226 | HT5: 227 | HU5: 228 | HV5: 229 | HW5: 230 | HX5: 231 | HY5: 232 | HZ5: 233 | IA5: 234 | IB5: 235 | IC5: 236 | ID5: 237 | IE5: 238 | IF5: 239 | IG5: 240 | IH5: 241 | II5: 242 | IJ5: 243 | IK5: 244 | IL5: 245 | IM5: 246 | IN5: 247 | IO5: 248 | IP5: 249 | IQ5: 250 | IR5: 251 | IS5: 252 | IT5: 253 | IU5: 254 | IV5: 255 | IW5: 256 | IX5: 257 | IY5: 258 | IZ5: 259 | JA5: 260 | JB5: 261 | JC5: 262 | JD5: 263 | JE5: 264 | JF5: 265 | JG5: 266 | JH5: 267 | JI5: 268 | JJ5: 269 | JK5: 270 | JL5: 271 | JM5: 272 | JN5: 273 | JO5: 274 | JP5: 275 | JQ5: 276 | JR5: 277 | JS5: 278 | JT5: 279 | JU5: 280 | JV5: 281 | JW5: 282 | JX5: 283 | JY5: 284 | JZ5: 285 | KA5: 286 | KB5: 287 | KC5: 288 | KD5: 289 | KE5: 290 | KF5: 291 | KG5: 292 | KH5: 293 | KI5: 294 | KJ5: 295 | KK5: 296 | KL5: 297 | KM5: 298 | KN5: 299 | KO5: 300 | KP5: 301 | KQ5: 302 | KR5: 303 | KS5: 304 | KT5: 305 | KU5: 306 | KV5: 307 | KW5: 308 | KX5: 309 | KY5: 310 | KZ5: 311 | LA5: 312 | LB5: 313 | LC5: 314 | LD5: 315 | LE5: 316 | LF5: 317 | LG5: 318 | LH5: 319 | LI5: 320 | LJ5: 321 | LK5: 322 | LL5: 323 | LM5: 324 | LN5: 325 | LO5: 326 | LP5: 327 | LQ5: 328 | LR5: 329 | LS5: 330 | LT5: 331 | LU5: 332 | LV5: 333 | LW5: 334 | LX5: 335 | LY5: 336 | LZ5: 337 | MA5: 338 | MB5: 339 | MC5: 340 | MD5: 341 | ME5: 342 | MF5: 343 | MG5: 344 | MH5: 345 | MI5: 346 | MJ5: 347 | MK5: 348 | ML5: 349 | MM5: 350 | MN5: 351 | MO5: 352 | MP5: 353 | MQ5: 354 | MR5: 355 | MS5: 356 | MT5: 357 | MU5: 358 | MV5: 359 | MW5: 360 | MX5: 361 | MY5: 362 | MZ5: 363 | NA5: 364 | NB5: 365 | NC5: 366 | ND5: 367 | NE5: 368 | NF5: 369 | NG5: 370 | NH5: 371 | NI5: 372 | NJ5: 373 | NK5: 374 | NL5: 375 | NM5: 376 | NN5: 377 | NO5: 378 | NP5: 379 | NQ5: 380 | NR5: 381 | NS5: 382 | NT5: 383 | NU5: 384 | NV5: 385 | NW5: 386
B6: Substream
B7: Stream Attribute
B8: Units

Sheet INDICES
B9: Plant Cost Indices
B10: Source: | C10: Chemical Engineering Magazine
C11: Current indices @ | D11: http://www.chemengonline.com/pci
C13: CE Annual | D13: Calculated | E13: Index Used
B14: Year | C14: Index | D14: Index | E14: in Calcs
B15: 1990 | C15: 357.6 | E15: =C15 -> 357.6
B16: 1991 | C16: 361.3 | E16: =C16 -> 361.3
B17: 1992 | C17: 358.2 | E17: 358.2
B18: 1993 | C18: 359.2 | E18: 359.2
B19: 1994 | C19: 368.1 | E19: 368.1
B20: 1995 | C20: 381.1 | E20: 381.1
B21: 1996 | C21: 381.7 | E21: 381.7
B22: 1997 | C22: 386.5 | E22: 386.5
B23: 1998 | C23: 389.5 | E23: 389.5
B24: 1999 | C24: 390.6 | E24: 390.6
B25: 2000 | C25: 394.1 | E25: 394.1
B26: 2001 | C26: 394.3 | E26: 394.3
B27: 2002 | C27: 395.6 | E27: 395.6
B28: 2003 | C28: 402 | E28: 402
B29: 2004 | C29: 444.2 | E29: 444.2
B30: 2005 | C30: 468.2 | E30: 468.2
B31: 2006 | C31: 499.6 | E31: 499.6
B32: 2007 | C32: 525.4 | E32: 525.4
B33: 2008 | C33: 575.4 | E33: 575.4
B34: 2009 | C34: 521.9 | E34: 521.9
B35: 2010 | C35: 550.8 | E35: 550.8
B36: 2011 | C36: 585.7 | E36: 585.7
B37: 2012 | C37: 584.6 | E37: 584.6
B38: 2013 | C38: 567.3 | E38: 567.3
B39: 2014 | C39: 576.1 | E39: 576.1
B51: Inorganic Chemical Index
B52: Source: SRI International Chemical Economics Handbook, Economic Environment of the Chemical Industry 2011
C53: Current indices @ | D53: http://www.chemical.ihs.com/CEH/Private/EECI/EECI.pdf
B55: Year | C55: US Producer | D55: Calculated | E55: Index Used
C56: Price Index | D56: Index
B57: 1980 | C57: 89 | E57: =C57 -> 89
B58: 1981 | C58: 98.4 | E58: 98.4
B59: 1982 | C59: 100 | E59: 100
B60: 1983 | C60: 100.3 | E60: 100.3
B61: 1984 | C61: 102.9 | E61: 102.9
B62: 1985 | C62: 103.7 | E62: 103.7
B63: 1986 | C63: 102.6 | E63: 102.6
B64: 1987 | C64: 106.4 | E64: 106.4
B65: 1988 | C65: 116.3 | E65: 116.3
B66: 1989 | C66: 123 | E66: 123
B67: 1990 | C67: 123.6 | E67: 123.6
B68: 1991 | C68: 125.6 | E68: 125.6
B69: 1992 | C69: 125.9 | E69: 125.9
B70: 1993 | C70: 128.2 | E70: 128.2
B71: 1994 | C71: 132.1 | E71: 132.1
B72: 1995 | C72: 139.5 | E72: 139.5
B73: 1996 | C73: 142.1 | E73: 142.1
B74: 1997 | C74: 147.1 | E74: 147.1
B75: 1998 | C75: 148.7 | E75: 148.7
B76: 1999 | C76: 149.7 | E76: 149.7
B77: 2000 | C77: 156.7 | E77: 156.7
B78: 2001 | C78: 158.4 | E78: 158.4
B79: 2002 | C79: 157.3 | E79: 157.3
B80: 2003 | C80: 164.6 | E80: 164.6
B81: 2004 | C81: 172.8 | E81: 172.8
B82: 2005 | C82: 187.3 | E82: 187.3
B83: 2006 | C83: 196.8 | E83: 196.8
B84: 2007 | C84: 203.3 | E84: 203.3
B85: 2008 | C85: 228.2 | E85: 228.2
B86: 2009 | C86: 224.7 | E86: 224.7
B87: 2010 | C87: 233.7 | E87: 233.7
B88: 2011 | C88: 252.1 | E88: 252.1
B89: 2012 | C89: 260.3 | E89: 260.3
B90: 2013 | C90: 263.9 | E90: 263.9
B91: 2014 | C91: 269.2 | E91: 269.2
B104: Labor Index
B105: Source: | C105: Bureau of Labor Statistics
B106: Series ID: | C106: CEU3232500008
B107: Chemicals
B108: Average Hourly Earnings of Production Workers
C109: Current indices @ | D109: http://data.bls.gov/cgi-bin/srgate
B112: Year | C112: Reported | D112: Calculated | E112: Index Used
B113: 1980 | E113: =D113 -> 0
B114: 1981 | E114: 0
B115: 1982 | E115: 0
B116: 1983 | E116: 0
B117: 1984 | E117: 0
B118: 1985 | E118: 0
B119: 1986 | E119: 0
B120: 1987 | E120: 0
B121: 1988 | E121: 0
B122: 1989 | E122: =D122 -> 0
B123: 1990 | C123: 12.85 | E123: =C123 -> 12.85
B124: 1991 | C124: 13.3 | E124: 13.3
B125: 1992 | C125: 13.7 | E125: 13.7
B126: 1993 | C126: 13.97 | E126: 13.97
B127: 1994 | C127: 14.33 | E127: 14.33
B128: 1995 | C128: 14.86 | E128: 14.86
B129: 1996 | C129: 15.37 | E129: 15.37
B130: 1997 | C130: 15.78 | E130: 15.78
B131: 1998 | C131: 16.23 | E131: 16.23
B132: 1999 | C132: 16.4 | E132: 16.4
B133: 2000 | C133: 17.09 | E133: 17.09
B134: 2001 | C134: 17.57 | E134: 17.57
B135: 2002 | C135: 17.97 | E135: 17.97
B136: 2003 | C136: 18.5 | E136: 18.5
B137: 2004 | C137: 19.17 | E137: 19.17
B138: 2005 | C138: 19.67 | E138: 19.67
B139: 2006 | C139: 19.6 | E139: 19.6
B140: 2007 | C140: 19.55 | E140: 19.55
B141: 2008 | C141: 19.5 | E141: 19.5
B142: 2009 | C142: 20.3 | E142: 20.3
B143: 2010 | C143: 21.07 | E143: 21.07
B144: 2011 | C144: 21.45 | E144: 21.45
B145: 2012 | C145: 21.45 | E145: 21.45
B146: 2013 | C146: 21.4 | E146: 21.4
B147: 2014 | C147: 21.49 | E147: 21.49
